Workbook

Sheet Instruções de Uso

Sheet Calculadora
F2: A calculadora elaborada pela Gerência de Petróleo, Gás e Naval da Firjan SENAI tem o intuito de simular a tarifa de gás natural e o valor total da fatura do consumidor, de acordo com a última deliberação vigente do respectivo estado selecionado.
F3: Observações:
F4: • O campo volume deve ser preenchido em m³ diários (m³/dia) de gás natural. • O campo município só deverá ser preenchido para os estados do Rio de Janeiro e São Paulo. • A tarifa para os segmentos apresentados contempla os tributos incidentes, exceto para o estado do Rio Grande do Sul nos segmentos industrial e de GNV. • Para o estado de Santa Catarina, no segmento industrial foi considerado a tarifa Amarela TG1, mais comum do segmento. • Para o segmento residencial foi considerado a tabela tarifária de medição individual para consumo de gás natural.
F5: Insira os dados abaixo para simulação do valor da sua tarifa.
F7: Segmento | I7: Distribuidora | J7: =IF($Q$10="","",$Q$10) -> 
F8: UF | I8: Agência Reguladora | J8: =IF($P$10="","",$P$10) ->  | N8: Faixa por volume x município x segmento | Y8: =_xlfn._xlws.FILTER(Tabela1[CONSUMO],($J$9>=Tabela1[FAIXA INICIAL])*($J$9<=Tabela1[FAIXA FINAL])*($G$7=Tabela1[SEGMENTO])*($G$8=Tabela1[UF])*($G$9=Tabela1[MUNICÍPIO]),"") ->  | Z8: =_xlfn._xlws.FILTER(Tabela1[CONSUMO],($J$9>=Tabela1[FAIXA INICIAL])*($G$7=Tabela1[SEGMENTO])*($G$8=Tabela1[UF])*($G$9=Tabela1[MUNICÍPIO]),"") -> 
F9: Município | I9: Volume | K9: m³/dia | N9: Estado | O9: Município | P9: Agência Regularizadora | Q9: Distribuidora | R9: Segmento | S9: Consumo | T9: Faixa Inicial | U9: Faixa Final | V9: Variável | W9: Fixo
N10: =_xlfn._xlws.FILTER(Tabela1[[ESTADO]:[FIXO]],($H$14>=Tabela1[FAIXA INICIAL])*($G$7=Tabela1[SEGMENTO])*($G$8=Tabela1[UF])*($G$9=Tabela1[MUNICÍPIO]),"Não foi encontrado valor para esse município e segmento com esse volume") -> Não foi encontrado valor para esse município e segmento com esse volume
F11: Tarifa Média | G11: =IFERROR(K33/J31,"") ->  | H11: R$/m³
F12: =I14 -> 
G13: m³/dia | H13: m³/dia
G14: =J9 -> 0 | H14: =IF($I$14="Mensal",$J$9*30,IF($I$14="Semanal",$J$9*7,IF($I$14="Faixa Única",$J$9*30,$J$9))) -> 0 | I14: =IF(_xlfn._xlws.FILTER(Tabela1[CONSUMO],($J$9>=Tabela1[FAIXA INICIAL])*($J$9<=Tabela1[FAIXA FINAL])*($G$7=Tabela1[SEGMENTO])*($G$8=Tabela1[UF])*($G$9=Tabela1[MUNICÍPIO]),"")="", Z8,Y8) -> 
F15: Faixa de Consumo (m³) | H15: Fixo (R$/m³) | I15: Variável (R$/m³) | J15: Consumo (m³) | K15: Valor na Faixa (R$)
F16: =T10 -> 0 | G16: =U10 -> 0 | H16: =$W10 -> 0 | I16: =$V10 -> 0 | J16: =IF(OR(AND($G$8="PB",$F$17<>0,OR($G$7="Residencial",$G$7="Comercial")),AND($G$8="CE",$F$17<>0,OR($G$7="Residencial",$G$7="Comercial"))),0,IF(AND($G$8="SP",OR(AND($J$7="COMGÁS",OR($G$7="Industrial",$G$7="Comercial")),AND($J$7="GÁS BRASILIANO",$G$7="Comercial"),AND($J$7="Naturgy SPS",$G$7<>"GNV"))),IF(AND(F16<>0,G16=0),$H$14,IF(G16>=$H$14,$H$14,0)),IF($I$14="Faixa Única",$H$14,IF($G16>=$H$14,$H$14,$G16-$F16)))) -> 0 | K16: =($J16*$I16) -> 0
F17: 0 | G17: 0 | H17: =$W11 -> 0 | I17: =$V11 -> 0 | J17: =IF(AND($G$8="SP",OR(AND($J$7="COMGÁS",OR($G$7="Industrial",$G$7="Comercial")),AND($J$7="GÁS BRASILIANO",$G$7="Comercial"),AND($J$7="Naturgy SPS",$G$7<>"GNV"))),IF(AND(F17<>0,G17=0),$H$14,IF(G17>=$H$14,$H$14,0)),IF($I$14<>"Faixa Única",IF($I$14<>"",IF(SUM($J$16:$J16,$G17)>=$H$14,$H$14-SUM($J$16:$J16),IF($G17=0,$H$14-SUM($J$16:$J16),$G17-$F17)),"0"),"0")) -> 0 | K17: =($J17*$I17) -> 0
F18: 0 | G18: 0 | H18: 0 | I18: 0 | J18: =IF(AND($G$8="SP",OR(AND($J$7="COMGÁS",OR($G$7="Industrial",$G$7="Comercial")),AND($J$7="GÁS BRASILIANO",$G$7="Comercial"),AND($J$7="Naturgy SPS",$G$7<>"GNV"))),IF(AND(F18<>0,G18=0),$H$14,IF(G18>=$H$14,$H$14,0)),IF($I$14<>"Faixa Única",IF($I$14<>"",IF(SUM($J$16:$J17,$G18)>=$H$14,$H$14-SUM($J$16:$J17),IF($G18=0,$H$14-SUM($J$16:$J17),$G18-$F18)),"0"),"0")) -> 0 | K18: =($J18*$I18) -> 0
F19: 0 | G19: 0 | H19: 0 | I19: 0 | J19: =IF(AND($G$8="SP",OR(AND($J$7="COMGÁS",OR($G$7="Industrial",$G$7="Comercial")),AND($J$7="GÁS BRASILIANO",$G$7="Comercial"),AND($J$7="Naturgy SPS",$G$7<>"GNV"))),IF(AND(F19<>0,G19=0),$H$14,IF(G19>=$H$14,$H$14,0)),IF($I$14<>"Faixa Única",IF($I$14<>"",IF(SUM($J$16:$J18,$G19)>=$H$14,$H$14-SUM($J$16:$J18),IF($G19=0,$H$14-SUM($J$16:$J18),$G19-$F19)),"0"),"0")) -> 0 | K19: 0
F20: 0 | G20: 0 | H20: 0 | I20: 0 | J20: =IF(AND($G$8="SP",OR(AND($J$7="COMGÁS",OR($G$7="Industrial",$G$7="Comercial")),AND($J$7="GÁS BRASILIANO",$G$7="Comercial"),AND($J$7="Naturgy SPS",$G$7<>"GNV"))),IF(AND(F20<>0,G20=0),$H$14,IF(G20>=$H$14,$H$14,0)),IF($I$14<>"Faixa Única",IF($I$14<>"",IF(SUM($J$16:$J19,$G20)>=$H$14,$H$14-SUM($J$16:$J19),IF($G20=0,$H$14-SUM($J$16:$J19),$G20-$F20)),"0"),"0")) -> 0 | K20: 0
F21: 0 | G21: 0 | H21: 0 | I21: 0 | J21: =IF(AND($G$8="SP",OR(AND($J$7="COMGÁS",OR($G$7="Industrial",$G$7="Comercial")),AND($J$7="GÁS BRASILIANO",$G$7="Comercial"),AND($J$7="Naturgy SPS",$G$7<>"GNV"))),IF(AND(F21<>0,G21=0),$H$14,IF(G21>=$H$14,$H$14,0)),IF($I$14<>"Faixa Única",IF($I$14<>"",IF(SUM($J$16:$J20,$G21)>=$H$14,$H$14-SUM($J$16:$J20),IF($G21=0,$H$14-SUM($J$16:$J20),$G21-$F21)),"0"),"0")) -> 0 | K21: 0
F22: 0 | G22: 0 | H22: 0 | I22: 0 | J22: =IF(AND($G$8="SP",OR(AND($J$7="COMGÁS",OR($G$7="Industrial",$G$7="Comercial")),AND($J$7="GÁS BRASILIANO",$G$7="Comercial"),AND($J$7="Naturgy SPS",$G$7<>"GNV"))),IF(AND(F22<>0,G22=0),$H$14,IF(G22>=$H$14,$H$14,0)),IF($I$14<>"Faixa Única",IF($I$14<>"",IF(SUM($J$16:$J21,$G22)>=$H$14,$H$14-SUM($J$16:$J21),IF($G22=0,$H$14-SUM($J$16:$J21),$G22-$F22)),"0"),"0")) -> 0 | K22: 0
F23: 0 | G23: 0 | H23: 0 | I23: 0 | J23: =IF(AND($G$8="SP",OR(AND($J$7="COMGÁS",OR($G$7="Industrial",$G$7="Comercial")),AND($J$7="GÁS BRASILIANO",$G$7="Comercial"),AND($J$7="Naturgy SPS",$G$7<>"GNV"))),IF(AND(F23<>0,G23=0),$H$14,IF(G23>=$H$14,$H$14,0)),IF($I$14<>"Faixa Única",IF($I$14<>"",IF(SUM($J$16:$J22,$G23)>=$H$14,$H$14-SUM($J$16:$J22),IF($G23=0,$H$14-SUM($J$16:$J22),$G23-$F23)),"0"),"0")) -> 0 | K23: 0
F24: 0 | G24: 0 | H24: 0 | I24: 0 | J24: =IF(AND($G$8="SP",OR(AND($J$7="COMGÁS",OR($G$7="Industrial",$G$7="Comercial")),AND($J$7="GÁS BRASILIANO",$G$7="Comercial"),AND($J$7="Naturgy SPS",$G$7<>"GNV"))),IF(AND(F24<>0,G24=0),$H$14,IF(G24>=$H$14,$H$14,0)),IF($I$14<>"Faixa Única",IF($I$14<>"",IF(SUM($J$16:$J23,$G24)>=$H$14,$H$14-SUM($J$16:$J23),IF($G24=0,$H$14-SUM($J$16:$J23),$G24-$F24)),"0"),"0")) -> 0 | K24: 0
F25: 0 | G25: 0 | H25: 0 | I25: 0 | J25: =IF(AND($G$8="SP",OR(AND($J$7="COMGÁS",OR($G$7="Industrial",$G$7="Comercial")),AND($J$7="GÁS BRASILIANO",$G$7="Comercial"),AND($J$7="Naturgy SPS",$G$7<>"GNV"))),IF(AND(F25<>0,G25=0),$H$14,IF(G25>=$H$14,$H$14,0)),IF($I$14<>"Faixa Única",IF($I$14<>"",IF(SUM($J$16:$J24,$G25)>=$H$14,$H$14-SUM($J$16:$J24),IF($G25=0,$H$14-SUM($J$16:$J24),$G25-$F25)),"0"),"0")) -> 0 | K25: 0
F26: 0 | G26: 0 | H26: 0 | I26: 0 | J26: =IF(AND($G$8="SP",OR(AND($J$7="COMGÁS",OR($G$7="Industrial",$G$7="Comercial")),AND($J$7="GÁS BRASILIANO",$G$7="Comercial"),AND($J$7="Naturgy SPS",$G$7<>"GNV"))),IF(AND(F26<>0,G26=0),$H$14,IF(G26>=$H$14,$H$14,0)),IF($I$14<>"Faixa Única",IF($I$14<>"",IF(SUM($J$16:$J25,$G26)>=$H$14,$H$14-SUM($J$16:$J25),IF($G26=0,$H$14-SUM($J$16:$J25),$G26-$F26)),"0"),"0")) -> 0 | K26: 0
F27: 0 | G27: 0 | H27: 0 | I27: 0 | J27: =IF(AND($G$8="SP",OR(AND($J$7="COMGÁS",OR($G$7="Industrial",$G$7="Comercial")),AND($J$7="GÁS BRASILIANO",$G$7="Comercial"),AND($J$7="Naturgy SPS",$G$7<>"GNV"))),IF(AND(F27<>0,G27=0),$H$14,IF(G27>=$H$14,$H$14,0)),IF($I$14<>"Faixa Única",IF($I$14<>"",IF(SUM($J$16:$J26,$G27)>=$H$14,$H$14-SUM($J$16:$J26),IF($G27=0,$H$14-SUM($J$16:$J26),$G27-$F27)),"0"),"0")) -> 0 | K27: 0
F28: 0 | G28: 0 | H28: 0 | I28: 0 | J28: =IF(AND($G$8="SP",OR(AND($J$7="COMGÁS",OR($G$7="Industrial",$G$7="Comercial")),AND($J$7="GÁS BRASILIANO",$G$7="Comercial"),AND($J$7="Naturgy SPS",$G$7<>"GNV"))),IF(AND(F28<>0,G28=0),$H$14,IF(G28>=$H$14,$H$14,0)),IF($I$14<>"Faixa Única",IF($I$14<>"",IF(SUM($J$16:$J27,$G28)>=$H$14,$H$14-SUM($J$16:$J27),IF($G28=0,$H$14-SUM($J$16:$J27),$G28-$F28)),"0"),"0")) -> 0 | K28: 0
F29: 0 | G29: 0 | H29: 0 | I29: 0 | J29: =IF(AND($G$8="SP",OR(AND($J$7="COMGÁS",OR($G$7="Industrial",$G$7="Comercial")),AND($J$7="GÁS BRASILIANO",$G$7="Comercial"),AND($J$7="Naturgy SPS",$G$7<>"GNV"))),IF(AND(F29<>0,G29=0),$H$14,IF(G29>=$H$14,$H$14,0)),IF($I$14<>"Faixa Única",IF($I$14<>"",IF(SUM($J$16:$J28,$G29)>=$H$14,$H$14-SUM($J$16:$J28),IF($G29=0,$H$14-SUM($J$16:$J28),$G29-$F29)),"0"),"0")) -> 0 | K29: 0
I31: Subtotal | J31: =SUM(J16:J29) -> 0 | K31: =SUM(K16:K29) -> 0
I32: Termo Fixo | K32: =LARGE($H$16:$H$29,1) -> 0
I33: Total c/ impostos | K33: =K31+K32 -> 0
N34: Município X Segmento (todas as faixas)
F35: Comparativo da Tarifa de Gás Natural por Distribuidora (R$/m³) | N35: Estado | O35: Município | P35: Agência Regularizadora | Q35: Distribuidora | R35: Segmento | S35: Consumo | T35: Faixa Inicial | U35: Faixa Final | V35: Variável | W35: Fixo
N36: =_xlfn._xlws.FILTER(Tabela1[[ESTADO]:[FIXO]],($G$7=Tabela1[SEGMENTO])*($G$8=Tabela1[UF])*($G$9=Tabela1[MUNICÍPIO]),"Não foi encontrado valor para esse município e segmento com esse volume") -> Não foi encontrado valor para esse município e segmento com esse volume

Sheet Cálculo (hidden)
A1: R$/m³ | B1: CEG RIO | E1: C/ ICMS 12% E PIS/COFINS 9,25% | H1: Tarifas em Vigor | Agenersa | N1: s/ tributos | W1: CEG Rio | AC1: Salineiro
A2: Faixas consumo mensal | D2: Preço Gás | E2: 2024-02-01 | G2: Variável | H2: Fixo mensal | L2: Variável | M2: Fixo mensal | P2: Margem | Q2: Tributos | R2: 0.0094 | W2: 2024-01-01 | X2: 2024-02-01 | AC2: 2024-01-01 | AE2: 2024-02-01
A3: Residencial | B3: 0 | C3: 7 | E3: 0 | F3: 7 | G3: 7.2916 | J3: 0 | K3: 7 | L3: =G3-G3*0.2125 -> 5.742135 | P3: =G3-D3-Q3 -> 5.82307176 | Q3: =T3+U3 -> 1.46852824 | R3: 0.7946 | T3: =(G3*0.12) -> 0.874992 | U3: =(G3-T3)*0.0925 -> 0.59353624 | V3: Residencial | W3: 7.4174 | X3: 7.2916 | Y3: =X3/W3-1 -> -0.0169601208 | AB3: 200 | AC3: 7.305 | AD3: =AC3*AB3 -> 1461 | AE3: 7.1766 | AF3: =AE3*AD3 -> 10485.0126 | AG3: =AE3/AC3-1 -> -0.01757700205
B4: 8.01 | C4: 23 | E4: 8.01 | F4: 23 | G4: 9.15 | J4: 7.01 | K4: 23 | L4: =G4-G4*0.2125 -> 7.205625 | P4: =G4-D4-Q4 -> 7.30719 | Q4: =T4+U4 -> 1.84281 | T4: =(G4*0.12) -> 1.098 | U4: =(G4-T4)*0.0925 -> 0.74481 | W4: 9.2764 | X4: 9.15 | Y4: =X4/W4-1 -> -0.01362597559 | AB4: 1800 | AC4: 5.0377 | AD4: =AC4*AB4 -> 9067.86 | AE4: 4.9093 | AF4: 44516.8451 | AG4: =AE4/AC4-1 -> -0.02548782182
B5: 24.01 | C5: 83 | E5: 24.01 | F5: 83 | G5: 10.8525 | J5: 23.01 | K5: 83 | L5: =G5-G5*0.2125 -> 8.54634375 | P5: =G5-D5-Q5 -> 8.6668065 | Q5: =T5+U5 -> 2.1856935 | T5: =(G5*0.12) -> 1.3023 | U5: =(G5-T5)*0.0925 -> 0.8833935 | W5: 10.9783 | X5: 10.8525 | Y5: -0.01145896906 | AB5: 8000 | AC5: 4.6801 | AD5: 37440.8 | AE5: 4.5517 | AF5: 170419.2894 | AG5: -0.02743531121
A6: Acima de | B6: 83.01 | E6: 83.01 | G6: 12.0522 | J6: 83.01 | L6: =G6-G6*0.2125 -> 9.4911075 | P6: =G6-D6-Q6 -> 9.62488692 | Q6: =T6+U6 -> 2.42731308 | T6: =(G6*0.12) -> 1.446264 | U6: =(G6-T6)*0.0925 -> 0.98104908 | W6: 12.178 | X6: 12.0522 | Y6: -0.01033010347 | AB6: =AE14-10000 -> -10000 | AC6: 4.1878 | AD6: -41878 | AE6: 4.0594 | AF6: -169999.5532 | AG6: -0.03066048999
AC7: 3.9961 | AE7: 3.8677 | AG7: -0.03213132804
G8: Variável | H8: Fixo mensal | L8: Variável | M8: Fixo mensal | P8: Margem | Q8: Tributos | X8: Variável | AC8: 3.7903 | AE8: 3.6619 | AG8: -0.0338759465
A9: Comercial | B9: 0 | C9: 200 | E9: 0 | F9: 200 | G9: 6.2966 | J9: 0 | K9: 200 | L9: =G9-G9*0.2125 -> 4.9585725 | P9: =G9-D9-Q9 -> 5.02846476 | Q9: =T9+U9 -> 1.26813524 | T9: =(G9*0.12) -> 0.755592 | U9: =(G9-T9)*0.0925 -> 0.51254324 | V9: Comercial | W9: 6.4224 | X9: 6.2966 | Y9: -0.01958769307 | AC9: 3.5469 | AE9: 3.4185 | AG9: -0.0362006259
B10: 201.01 | C10: 500 | E10: 201.01 | F10: 500 | G10: 6.2278 | J10: 200.01 | K10: 500 | L10: =G10-G10*0.2125 -> 4.9043925 | P10: 4.97352108 | Q10: 1.25427892 | T10: 0.747336 | U10: 0.50694292 | W10: 6.3536 | X10: 6.2278 | Y10: -0.01979979854 | AC10: 3.5403 | AE10: 3.4119 | AG10: -0.03626811287
B11: 501.01 | C11: 2000 | E11: 501.01 | F11: 2000 | G11: 5.1668 | J11: 500.01 | K11: 2000 | L11: 4.068855 | P11: 4.12620648 | Q11: 1.04059352 | T11: 0.620016 | U11: 0.42057752 | W11: 5.2926 | X11: 5.1668 | Y11: -0.02376903601 | AC11: 3.523 | AE11: 3.3946 | AG11: -0.03644621062
B12: 2001.01 | C12: 20000 | E12: 2001.01 | F12: 20000 | G12: 5.0536 | J12: 2000.01 | K12: 20000 | L12: 3.97971 | P12: 4.03580496 | Q12: 1.01779504 | T12: 0.606432 | U12: 0.41136304 | W12: 5.1794 | X12: 5.0536 | Y12: -0.02428852763 | AC12: 3.463 | AE12: 3.3346 | AG12: -0.03707767831
B13: 20001.01 | C13: 50000 | E13: 20001.01 | F13: 50000 | G13: 4.9551 | J13: 20000.01 | K13: 50000 | L13: 3.90214125 | P13: 3.95714286 | Q13: 0.99795714 | T13: 0.594612 | U13: 0.40334514 | W13: 5.0809 | X13: 4.9551 | Y13: -0.02475939302
A14: Acima de | B14: 50000.01 | E14: 50000.01 | G14: 4.8567 | J14: 50000.01 | L14: 3.82465125 | P14: 3.87856062 | Q14: 0.97813938 | T14: 0.582804 | U14: 0.39533538 | W14: 4.9825 | X14: 4.8567 | Y14: -0.02524836929 | AF14: =SUM(AF3:AF6) -> 55421.59386
AD15: =AD14/AC14-1 ->  | AF15: =AF14/AD14-1 ->  | AG15: =AF15/AD15-1 -> 
G16: Variável | H16: Fixo mensal | L16: Variável | M16: Fixo mensal | P16: Margem | Q16: Tributos | X16: Variável
A17: Industrial | B17: 0 | C17: 200 | E17: 0 | F17: 200 | G17: 5.1244 | J17: 0 | K17: 200 | L17: =G17-G17*0.2125 -> 4.035465 | P17: =G17-D17-Q17 -> 4.035465 | Q17: =(G17*0.12)+(G17*0.0925) -> 1.088935 | T17: =(G17*0.12) -> 0.614928 | U17: =(G17-T17)*0.0925 -> 0.41712616 | V17: Industrial | W17: 5.2544 | X17: 5.1244 | Y17: -0.02474116931
B18: 201.01 | C18: 2000 | E18: 201.01 | F18: 2000 | G18: 2.9884 | J18: 200.01 | K18: 2000 | L18: 2.353365 | P18: =G18-D18-Q18 -> 2.353365 | Q18: =(G18*0.12)+(G18*0.0925) -> 0.635035 | T18: 0.358608 | U18: 0.24325576 | W18: 5.1184 | X18: 4.9884 | Y18: -0.02539856205
B19: 2001.01 | C19: 10000 | E19: 2001.01 | F19: 10000 | G19: 4.9068 | J19: 2000.01 | K19: 10000 | L19: 3.864105 | P19: 3.864105 | Q19: 1.042695 | T19: 0.588816 | U19: 0.39941352 | W19: 5.0368 | X19: 4.9068 | Y19: -0.02581003812
B20: 10001.01 | C20: 50000 | E20: 10001.01 | F20: 50000 | G20: 4.3434 | J20: 10000.01 | K20: 50000 | L20: 3.4204275 | P20: 3.4204275 | Q20: 0.9229725 | T20: 0.521208 | U20: 0.35355276 | W20: 4.4734 | X20: 4.3434 | Y20: -0.02906066974
B21: 50001.01 | C21: 100000 | E21: 5000.01 | F21: 100000 | G21: 4.1002 | J21: 50000.01 | K21: 100000 | L21: 3.2289075 | P21: 3.2289075 | Q21: 0.8712925 | T21: 0.492024 | U21: 0.33375628 | W21: 4.2302 | X21: 4.1002 | Y21: -0.0307314075
B22: 100001.01 | C22: 300000 | E22: 100001.01 | F22: 300000 | G22: 3.8394 | J22: 100000.01 | K22: 300000 | L22: 3.0235275 | P22: 3.0235275 | Q22: 0.8158725 | T22: 0.460728 | U22: 0.31252716 | W22: 3.9694 | X22: 3.8394 | Y22: -0.03275054164
B23: 300001.01 | C23: 600000 | E23: 300001.01 | F23: 600000 | G23: 3.5312 | J23: 300000.01 | K23: 600000 | L23: 2.78082 | P23: 2.78082 | Q23: 0.75038 | T23: 0.423744 | U23: 0.28743968 | W23: 3.6612 | X23: 3.5312 | Y23: -0.03550748389
B24: 600001.01 | C24: 1500000 | E24: 600001.01 | F24: 1500000 | G24: 3.5227 | J24: 600000.01 | K24: 1500000 | L24: 2.77412625 | P24: 2.77412625 | Q24: 0.74857375 | T24: 0.422724 | U24: 0.28674778 | W24: 3.6527 | X24: 3.5227 | Y24: -0.03559011142
B25: 1500001.01 | C25: 3000000 | E25: 1500001.01 | F25: 3000000 | G25: 3.4999 | J25: 1500000.01 | K25: 3000000 | L25: 2.75617125 | P25: 2.75617125 | Q25: 0.74372875 | T25: 0.419988 | U25: 0.28489186 | W25: 3.6299 | X25: 3.4999 | Y25: -0.03581365878
A26: Acima de | B26: 3000000.01 | E26: 300000.01 | G26: 3.4243 | J26: 3000000.01 | L26: 2.69663625 | P26: 2.69663625 | Q26: 0.72766375 | T26: 0.410916 | U26: 0.27873802 | W26: 3.5543 | X26: 3.4243 | Y26: -0.03657541569
P28: Margem | Q28: Tributos
A29: GNV | B29: Faixa única | E29: Faixa única | G29: 3.4366 | J29: Faixa única | L29: =G29-G29*0.2125 -> 2.7063225 | P29: =G29-D29-Q29 -> 3.024208 | Q29: =G29*0.12 -> 0.412392 | R29: 0.8756 | V29: GNV | W29: 3.565 | X29: 3.4366 | Y29: =X29/W29-1 -> -0.03601683029
A30: No período de 23/06/2022 a 31/12/2022, ficará reduzida a alíquota de PIS/COFINS de 9,25% para 0% para o segmento veicular, conforme a Lei Complementar Federal nº 194 de 23/06/2022.
A32: R$/m³ | B32: CEG | E32: C/ ICMS 12% E PIS/COFINS 9,25% | H32: Tarifas em Vigor | Agenersa | N32: s/ tributos
A33: Faixas consumo mensal | D33: Preço Gás | E33: 2024-02-01 | G33: Variável | H33: Fixo mensal | L33: Variável | M33: Fixo mensal | P33: Margem | Q33: Tributos | R33: 0.7946 | W33: CEG | X33: 0101/2024 | Y33: 0102/2024
A34: Residencial | B34: 0 | C34: 7 | E34: 0 | F34: 7 | G34: 9.5297 | J34: 0 | K34: 7 | L34: =G34-G34*0.2125 -> 7.50463875 | P34: =G34-D34-Q34 -> 7.61041842 | Q34: =T34+U34 -> 1.91928158 | R34: 0.008 | T34: =(G34*0.12) -> 1.143564 | U34: =(G34-T34)*0.0925 -> 0.77571758 | W34: Residencial | X34: 9.6684 | Y34: 9.5297 | Z34: =Y34/X34-1 -> -0.01434570353
B35: 8.01 | C35: 23 | E35: 8.01 | F35: 23 | G35: 12.309 | J35: 7.01 | K35: 23 | L35: =G35-G35*0.2125 -> 9.6933375 | P35: =G35-D35-Q35 -> 9.8299674 | Q35: =T35+U35 -> 2.4790326 | T35: =(G35*0.12) -> 1.47708 | U35: =(G35-T35)*0.0925 -> 1.0019526 | X35: 12.4477 | Y35: 12.309 | Z35: =Y35/X35-1 -> -0.01114262073
B36: 24.01 | C36: 83 | E36: 24.01 | F36: 83 | G36: 14.8233 | J36: 23.01 | K36: 83 | L36: =G36-G36*0.2125 -> 11.67334875 | P36: =G36-D36-Q36 -> 11.83788738 | Q36: =T36+U36 -> 2.98541262 | T36: =(G36*0.12) -> 1.778796 | U36: =(G36-T36)*0.0925 -> 1.20661662 | X36: 14.962 | Y36: 14.8233 | Z36: =Y36/X36-1 -> -0.009270151049
A37: Acima de | B37: 83.01 | E37: 83.01 | G37: 15.6203 | J37: 83.01 | L37: =G37-G37*0.2125 -> 12.30098625 | P37: =G37-D37-Q37 -> 12.47437158 | Q37: =T37+U37 -> 3.14592842 | T37: =(G37*0.12) -> 1.874436 | U37: =(G37-T37)*0.0925 -> 1.27149242 | X37: 15.759 | Y37: 15.6203 | Z37: =Y37/X37-1 -> -0.008801319881
G39: Variável | H39: Fixo mensal | L39: Variável | M39: Fixo mensal | P39: Margem | Q39: Tributos | X39: Variável | Y39: Variável
A40: Comercial | B40: 0 | C40: 200 | E40: 0 | F40: 200 | G40: 9.314 | J40: 0 | K40: 200 | L40: =G40-G40*0.2125 -> 7.334775 | P40: =G40-D40-Q40 -> 7.4381604 | Q40: =T40+U40 -> 1.8758396 | T40: =(G40*0.12) -> 1.11768 | U40: =(G40-T40)*0.0925 -> 0.7581596 | W40: Comercial | X40: 9.4527 | Y40: 9.314 | Z40: =Y40/X40-1 -> -0.01467305638
B41: 201.01 | C41: 500 | E41: 201.01 | F41: 500 | G41: 9.0566 | J41: 200.01 | K41: 500 | L41: 7.1320725 | P41: 7.23260076 | Q41: 1.82399924 | T41: 1.086792 | U41: 0.73720724 | X41: 9.1953 | Y41: 9.0566 | Z41: =Y41/X41-1 -> -0.01508379281
B42: 501.01 | C42: 2000 | E42: 501.01 | F42: 2000 | G42: 8.7998 | J42: 500.01 | K42: 2000 | L42: 6.9298425 | P42: 7.02752028 | Q42: 1.77227972 | T42: 1.055976 | U42: 0.71630372 | X42: 8.9385 | Y42: 8.7998 | Z42: =Y42/X42-1 -> -0.01551714493
B43: 2001.01 | C43: 20000 | E43: 2001.01 | F43: 20000 | G43: 8.5432 | J43: 2000.01 | K43: 20000 | L43: 6.72777 | P43: 6.82259952 | Q43: 1.72060048 | T43: 1.025184 | U43: 0.69541648 | X43: 8.6819 | Y43: 8.5432 | Z43: -0.01434570353
B44: 20001.01 | C44: 50000 | E44: 20001.01 | F44: 50000 | G44: 8.2861 | J44: 20000.01 | K44: 50000 | L44: 6.52530375 | P44: 6.61727946 | Q44: 1.66882054 | T44: 0.994332 | U44: 0.67448854 | X44: 8.4248 | Y44: 8.2861 | Z44: =Y44/X44-1 -> -0.01646329883
A45: Acima de | B45: 50000.01 | E45: 50000.01 | G45: 8.0291 | J45: 50000.01 | L45: 6.32291625 | P45: 6.41203926 | Q45: 1.61706074 | T45: 0.963492 | U45: 0.65356874 | X45: 8.1678 | Y45: 8.0291 | Z45: =Y45/X45-1 -> -0.01698131688
G47: Variável | H47: Fixo mensal | L47: Variável | M47: Fixo mensal | P47: Margem | Q47: Tributos | X47: Variável | Y47: Variável
A48: Industrial | B48: 0 | C48: 200 | E48: 0 | F48: 200 | G48: 5.5378 | J48: 0 | K48: 200 | L48: =G48-G48*0.2125 -> 4.3610175 | P48: =G48-D48-Q48 -> 4.42248708 | Q48: =T48+U48 -> 1.11531292 | T48: =(G48*0.12) -> 0.664536 | U48: =(G48-T48)*0.0925 -> 0.45077692 | W48: Industrial | X48: 5.5797 | Y48: 5.5378 | Z48: =Y48/X48-1 -> -0.007509364303
B49: 201.01 | C49: 2000 | E49: 201.01 | F49: 2000 | G49: 5.3861 | J49: 200.01 | K49: 2000 | L49: 4.24155375 | P49: =G49-D49-Q49 -> 4.30133946 | Q49: =T49+U49 -> 1.08476054 | T49: 0.646332 | U49: 0.43842854 | X49: 5.428 | Y49: 5.3861 | Z49: -0.007719233604
B50: 2001.01 | C50: 10000 | E50: 2001.01 | F50: 10000 | G50: 5.2949 | J50: 2000.01 | K50: 10000 | L50: 4.16973375 | P50: 4.22850714 | Q50: 1.06639286 | T50: 0.635388 | U50: 0.43100486 | X50: 5.3368 | Y50: 5.2949 | Z50: -0.007851146755
B51: 10001.01 | C51: 50000 | E51: 10001.01 | F51: 50000 | G51: 4.7983 | J51: 10000.01 | K51: 50000 | L51: 3.77866125 | P51: 3.83192238 | Q51: 0.96637762 | T51: 0.575796 | U51: 0.39058162 | X51: 4.8402 | Y51: 4.7983 | Z51: -0.00865666708
B52: 50001.01 | C52: 100000 | E52: 50001.01 | F52: 100000 | G52: 4.5003 | J52: 50000.01 | K52: 100000 | L52: 3.54398625 | P52: 3.59393958 | Q52: 0.90636042 | T52: 0.540036 | U52: 0.36632442 | X52: 4.5422 | Y52: 4.5003 | Z52: -0.009224604817
B53: 100001.01 | C53: 300000 | E53: 100001.01 | F53: 300000 | G53: 4.1827 | J53: 100000.01 | K53: 300000 | L53: 3.29387625 | P53: 3.34030422 | Q53: 0.84239578 | T53: 0.501924 | U53: 0.34047178 | X53: 4.2246 | Y53: 4.1827 | Z53: -0.009918098755
B54: 300001.01 | C54: 600000 | E54: 300001.01 | F54: 600000 | G54: 3.8064 | J54: 300000.01 | K54: 600000 | L54: 2.99754 | P54: 3.03979104 | Q54: 0.76660896 | T54: 0.456768 | U54: 0.30984096 | X54: 3.8483 | Y54: 3.8064 | Z54: -0.01088792454
B55: 600001.01 | C55: 1500000 | E55: 600001.01 | F55: 1500000 | G55: 3.7966 | J55: 600000.01 | K55: 1500000 | L55: 2.9898225 | P55: 3.03196476 | Q55: 0.76463524 | T55: 0.455592 | U55: 0.30904324 | X55: 3.8385 | Y55: 3.7966 | Z55: -0.01091572229
B56: 1500001.01 | C56: 3000000 | E56: 1500001.01 | F56: 3000000 | G56: 3.7691 | J56: 1500000.01 | K56: 3000000 | L56: 2.96816625 | P56: 3.01000326 | Q56: 0.75909674 | T56: 0.452292 | U56: 0.30680474 | X56: 3.811 | Y56: 3.7691 | Z56: -0.01099448964
A57: Acima de | B57: 3000000.01 | E57: 3000000.01 | G57: 3.6759 | J57: 3000000.01 | L57: 2.89477125 | P57: 2.93557374 | Q57: 0.74032626 | T57: 0.441108 | U57: 0.29921826 | X57: 3.7178 | Y57: 3.6759 | Z57: -0.01127010598
P59: Margem | Q59: Tributos
A60: GNV | B60: Faixa única | E60: Faixa única | G60: 3.5692 | J60: Faixa única | L60: =G60-G60*0.2125 -> 2.810745 | P60: =G60-D60-Q60 -> 3.140896 | Q60: =G60*0.12 -> 0.428304 | R60: 0.8756 | W60: GNV | X60: 3.7515 | Y60: 3.5692 | Z60: =Y60/X60-1 -> -0.04859389578
A61: No período de 23/06/2022 a 31/12/2022, ficará reduzida a alíquota de PIS/COFINS de 9,25% para 0% para o segmento veicular, conforme a Lei Complementar Federal nº 194 de 23/06/2022.
A64: R$/m³ | B64: COMGÁS | E64: C/ ICMS 15,0% | H64: COMGÁS - Tarifas (comgas.com.br) | L64: Arsesp - Tarifas | N64: S/ ICMS
A65: Faixas consumo mensal | D65: Preço Gás | E65: 2023-12-07 | G65: Variável | H65: Fixo mensal | L65: Variável | M65: Fixo mensal | P65: Margem | Q65: Tributos | S65: RESIDENCIAIS E COMERCIAIS | V65: PIS/COFINS 8,9%
A66: Residencial | B66: 0 | C66: 1 | E66: 0 | F66: 1 | G66: 3.287 | H66: 11.39 | J66: 0 | K66: 1 | L66: 2.79411 | M66: 9.68 | N66: =G66/L66-1 -> 0.1764032196 | O66: =H66/M66-1 -> 0.1766528926 | P66: =G66-D66-Q66 -> 2.535934236 | Q66: =(G66-L66)+L66*0.0924 -> 0.751065764 | S66: 1.770233 | T66: CUSTO GÁS
B67: 1.01 | C67: 3 | E67: 1.01 | F67: 3 | G67: 10.834 | H67: 14.87 | J67: 1.01 | K67: 3 | L67: 9.209215 | M67: 12.64 | N67: =G67/L67-1 -> 0.1764303472 | O67: 0.1764240506 | P67: =G67-D67-Q67 -> 8.358283534 | Q67: =(G67-L67)+L67*0.0924 -> 2.475716466 | S67: 0.3957 | T67: TRANSPORTE
B68: 3.01 | C68: 7 | E68: 3.01 | F68: 7 | G68: 5.647 | H68: 14.87 | J68: 3.01 | K68: 7 | L68: 4.800133 | M68: 12.64 | N68: 0.1764257365 | O68: 0.1764240506 | P68: 4.356600711 | Q68: 1.290399289 | S68: =S66+S67 -> 2.165933 | U68: 2.595369 | V68: C/ PIS COFINS PASEP
B69: 7.01 | C69: 14 | E69: 7.01 | F69: 14 | G69: 9.37 | H69: 16.74 | J69: 7.01 | K69: 14 | L69: 7.964387 | M69: 14.23 | N69: 0.1764872802 | O69: 0.1763879129 | P69: 7.228477641 | Q69: 2.141522359 | S69: DEMAIS USUÁRIOS | U69: =U68-S68 -> 0.429436
B70: 14.01 | C70: 34 | E70: 14.01 | F70: 34 | G70: 11.132 | H70: 18.6 | J70: 14.01 | K70: 34 | L70: 9.462167 | M70: 15.81 | N70: 0.1764746913 | O70: 0.1764705882 | P70: 8.587862769 | Q70: 2.544137231 | S70: 2.4286 | T70: CUSTO GÁS
B71: 34.01 | C71: 600 | E71: 34.01 | F71: 600 | G71: 11.92 | H71: 18.6 | J71: 34.01 | K71: 600 | L71: 10.131846 | M71: 15.81 | N71: 0.1764884701 | O71: 0.1764705882 | P71: 9.19566343 | Q71: 2.72433657 | S71: 0.3957 | T71: TRANSPORTE
B72: 600.01 | C72: 1000 | E72: 600.01 | F72: 1000 | G72: 10.324 | H72: 18.6 | J72: 600.01 | K72: 1000 | L72: 8.775788 | M72: 15.81 | N72: 0.1764185735 | O72: 0.1764705882 | P72: 7.964905189 | Q72: 2.359094811 | S72: =S70+S71 -> 2.8243 | U72: 3.414461 | V72: C/ PIS COFINS PASEP
A73: Acima de | B73: 1000.01 | E73: 1000.01 | G73: 7.295 | H73: 18.6 | J73: 1000.01 | L73: 6.20116 | M73: 15.81 | N73: 0.1763928039 | O73: 0.1764705882 | P73: 5.628172816 | Q73: 1.666827184 | U73: =U72-S72 -> 0.590161
G75: Variável | H75: Fixo mensal | L75: Variável | M75: Fixo mensal | P75: Margem | Q75: Tributos
A76: Comercial | B76: 0 | C76: 0 | E76: 0 | F76: 0 | J76: 0 | K76: 0 | P76: =G76-D76-Q76 -> 0 | Q76: =(G76-L76)+L76*0.0924 -> 0 | R76: =AVERAGE(Q77:Q83/P77:P83) -> 0.2962646276
B77: 0.01 | C77: 50 | E77: 0.01 | F77: 50 | G77: 9.249 | H77: 60.76 | J77: 0.01 | K77: 50 | L77: 7.86163 | M77: 51.65 | N77: =G77/L77-1 -> 0.1764735812 | O77: 0.1763794773 | P77: =G77-D77-Q77 -> 7.135215388 | Q77: =(G77-L77)+L77*0.0924 -> 2.113784612
B78: 50.01 | C78: 150 | E78: 50.01 | F78: 150 | G78: 8.49 | H78: 98.73 | J78: 50.01 | K78: 150 | L78: 7.216086 | M78: 83.92 | N78: 0.1765380845 | O78: 0.1764775977 | P78: 6.549319654 | Q78: 1.940680346
B79: 150.01 | C79: 500 | E79: 150.01 | F79: 500 | G79: 7.986 | H79: 174.66 | J79: 150.01 | K79: 500 | L79: 6.788422 | M79: 148.46 | N79: 0.1764147839 | O79: 0.1764785127 | P79: 6.161171807 | Q79: 1.824828193
B80: 500.01 | C80: 2000 | E80: 500.01 | F80: 2000 | G80: 7.538 | H80: 398.71 | J80: 500.01 | K80: 2000 | L80: 6.407449 | M80: 338.9 | N80: 0.1764432304 | O80: 0.1764827383 | P80: 5.815400712 | Q80: 1.722599288
B81: 2000.01 | C81: 3500 | E81: 2000.01 | F81: 3500 | G81: 6.819 | H81: 1837.86 | J81: 2000.01 | K81: 3500 | L81: 5.79589 | M81: 1562.18 | N81: 0.176523364 | O81: 0.1764713413 | P81: 5.260349764 | Q81: 1.558650236
B82: 3500.01 | C82: 50000 | E82: 3500.01 | F82: 50000 | G82: 5.376 | H82: 6892.16 | J82: 3500.01 | K82: 50000 | L82: 4.56935 | M82: 5858.34 | N82: 0.1765349557 | O82: =H82/M82-1 -> 0.176469785 | P82: 4.14714206 | Q82: 1.22885794
A83: Acima de | B83: 50000.01 | E83: 50000.01 | G83: 5.148 | H83: 18284.09 | J83: 50000.01 | L83: 4.375689 | M83: 15541.48 | N83: 0.1765004323 | O83: 0.1764703233 | P83: 3.971375336 | Q83: 1.176624664
G85: Variável | H85: Fixo mensal | L85: Variável | M85: Fixo mensal | P85: Margem | Q85: Tributos
A86: Industrial | B86: 0 | C86: 50000 | E86: 0 | F86: 50000 | G86: 4.726 | H86: 387.36 | J86: 0 | K86: 50000 | L86: 4.01718 | M86: 329.26 | N86: =G86/L86-1 -> 0.1764471595 | O86: 0.1764562959 | P86: =G86-D86-Q86 -> 3.645992568 | Q86: =(G86-L86)+L86*0.0924 -> 1.080007432
B87: 50000.01 | C87: 300000 | E87: 50000.01 | F87: 300000 | G87: 3.502 | H87: 61597.41 | J87: 50000.01 | K87: 300000 | L87: 2.976764 | M87: 52357.8 | N87: 0.1764452943 | O87: 0.1764705545 | P87: 2.701711006 | Q87: 0.8002889936
B88: 300000.01 | C88: 500000 | E88: 300000.01 | F88: 500000 | G88: 3.36 | H88: 110975.06 | J88: 300000.01 | K88: 500000 | L88: 2.856017 | M88: 94328.8 | N88: 0.1764635855 | O88: 0.1764706007 | P88: 2.592121029 | Q88: 0.7678789708
B89: 500000.01 | C89: 1000000 | E89: 500000.01 | F89: 1000000 | G89: 3.334 | H89: 124035.06 | J89: 500000.01 | K89: 1000000 | L89: 2.833816 | M89: 105429.8 | N89: 0.1765054612 | O89: 0.1764705994 | P89: 2.571971402 | Q89: 0.7620285984
B90: 1000000.01 | C90: 2000000 | E90: 1000000.01 | F90: 2000000 | G90: 3.281 | H90: 177422.21 | J90: 1000000.01 | K90: 2000000 | L90: 2.788443 | M90: 150808.88 | N90: 0.1766423054 | O90: 0.1764705765 | P90: 2.530790867 | Q90: 0.7502091332
A91: Acima de | B91: 2000000.01 | E91: 2000000.01 | G91: 3.233 | H91: 316707.87 | J91: 2000000.01 | L91: 2.748394 | M91: 269201.69 | N91: 0.1763233365 | O91: 0.1764705861 | P91: 2.494442394 | Q91: 0.7385576056
P93: Margem | Q93: Tributos
A94: GNV | B94: Faixa única | E94: Faixa única | G94: 3.214846 | J94: Faixa única | L94: 2.732619 | P94: =G94-D94-Q94 -> 2.713330024 | Q94: =G94*0.156 -> 0.501515976 | S94: é postos? Ou frota
A95: No período de 23/06/2022 a 31/12/2022, ficará reduzida a alíquota de PIS/COFINS de 9,25% para 0% para o segmento veicular, conforme a Lei Complementar Federal nº 194 de 23/06/2022.
E97: Arsesp - Tarifas
A98: R$/m³ | B98: NECTA | E98: C/ ICMS 15,0% e PIS/COFINS 9,24% | N98: S/ ICMS
A99: Faixas consumo mensal | D99: Preço Gás | E99: 2023-08-31 | G99: Variável | H99: Fixo mensal | L99: Variável | M99: Fixo mensal | P99: Margem | Q99: Tributos | S99: RESIDENCIAIS E COMERCIAIS | V99: PIS/COFINS 9,24%
A100: Residencial | B100: 0 | C100: 1 | E100: 0 | F100: 1 | G100: =L100*(1+17.646448445628%) -> 2.915468403 | H100: =M100*(1+17.646448445628%) -> 35.31746382 | J100: 0 | K100: 1 | L100: 2.478161 | M100: 30.02 | P100: =G100-D100-Q100 -> 2.249178924 | Q100: =(G100-L100)+L100*0.0924 -> 0.6662894797 | S100: 2.683701 | T100: CUSTO GÁS
B101: 1.01 | C101: 6 | E101: 1.01 | F101: 6 | G101: 3.262676014 | H101: 35.31746382 | J101: 1.01 | K101: 6 | L101: 2.773289 | M101: 30.02 | P101: =G101-D101-Q101 -> 2.517037096 | Q101: =(G101-L101)+L101*0.0924 -> 0.7456389172 | S101: 0.3957 | T101: TRANSPORTE
B102: 6.01 | C102: 12 | E102: 6.01 | F102: 12 | G102: 8.872862201 | H102: 35.31746382 | J102: 6.01 | K102: 12 | L102: 7.541972 | M102: 30.02 | P102: =G102-D102-Q102 -> 6.845093787 | Q102: =(G102-L102)+L102*0.0924 -> 2.027768414 | S102: =S100+S101 -> 3.079401 | U102: 4.075215 | V102: C/ PIS COFINS PASEP
B103: 12.01 | C103: 40 | E103: 12.01 | F103: 40 | G103: 8.949815919 | H103: 35.31746382 | J103: 12.01 | K103: 40 | L103: 7.607383 | M103: 30.02 | P103: =G103-D103-Q103 -> 6.904460811 | Q103: =(G103-L103)+L103*0.0924 -> 2.045355108 | S103: DEMAIS USUÁRIOS | U103: =U102-S102 -> 0.995814
A104: Acima de | B104: 40.01 | E104: 40.01 | G104: 9.054313024 | H104: 35.31746382 | J104: 40.01 | L104: 7.696206 | M104: 30.02 | P104: =G104-D104-Q104 -> 6.985076566 | Q104: =(G104-L104)+L104*0.0924 -> 2.069236458 | S104: 2.892269 | T104: CUSTO GÁS
S105: 0.3957 | T105: TRANSPORTE
G106: Variável | H106: Fixo mensal | L106: Variável | M106: Fixo mensal | P106: Margem | Q106: Tributos | S106: =S104+S105 -> 3.287969 | U106: 3.823549 | V106: C/ PIS COFINS PASEP
A107: Comercial | B107: 0 | C107: 50 | E107: 0 | F107: 50 | G107: =L107*(1+17.646448445628%) -> 7.131624176 | H107: =M107*(1+17.646448445628%) -> 59.37616253 | J107: 0 | K107: 50 | L107: 6.061912 | M107: 50.47 | P107: =G107-D107-Q107 -> 5.501791331 | Q107: =(G107-L107)+L107*0.0924 -> 1.629832845 | U107: =U106-S106 -> 0.53558
B108: 50.01 | C108: 150 | E108: 50.01 | F108: 150 | G108: 6.935525193 | H108: 96.45832308 | J108: 50.01 | K108: 150 | L108: 5.895227 | M108: 81.99 | P108: 5.350508025 | Q108: 1.585017168
B109: 150.01 | C109: 500 | E109: 150.01 | F109: 500 | G109: 6.743027369 | H109: 151.5521549 | J109: 150.01 | K109: 500 | L109: 5.731603 | M109: 128.82 | P109: 5.202002883 | Q109: 1.541024486
B110: 500.01 | C110: 2000 | E110: 500.01 | F110: 2000 | G110: 6.402573841 | H110: 351.3746476 | J110: 500.01 | K110: 2000 | L110: 5.442216 | M110: 298.67 | P110: 4.939355242 | Q110: 1.463218599
B111: 2000.01 | C111: 5000 | E111: 2000.01 | F111: 5000 | G111: 5.781521769 | H111: 1795.920094 | J111: 2000.01 | K111: 5000 | L111: 4.914319 | M111: 1526.54 | P111: 4.460235924 | Q111: 1.321285844
A112: Acima de | B112: 5000.01 | E112: 5000.01 | G112: 5.001117582 | H112: 6161.497444 | J112: 5000.01 | L112: 4.250972 | M112: 5237.3 | P112: 3.858182187 | Q112: 1.142935395
G114: Variável | H114: Fixo mensal | L114: Variável | M114: Fixo mensal | P114: Margem | Q114: Tributos
A115: Industrial | B115: 0 | C115: 3000 | E115: 0 | F115: 3000 | G115: =L115*(1+17.646448445628%) -> 5.532218356 | H115: =M115*(1+17.646448445628%) -> 403.5390828 | J115: 0 | K115: 3000 | L115: 4.70241 | M115: 343.01 | P115: =G115-D115-Q115 -> 4.267907316 | Q115: =(G115-L115)+L115*0.0924 -> 1.26431104
B116: 3000.01 | C116: 7000 | E116: 3000.01 | F116: 7000 | G116: 5.202957712 | H116: 403.5390828 | J116: 3000.01 | K116: 7000 | L116: 4.422537 | M116: 343.01 | P116: =G116-D116-Q116 -> 4.013894581 | Q116: =(G116-L116)+L116*0.0924 -> 1.18906313
B117: 7000.01 | C117: 15000 | E117: 7000.01 | F117: 15000 | G117: 4.900503987 | H117: 403.5390828 | J117: 7000.01 | K117: 15000 | L117: 4.16545 | M117: 343.01 | P117: 3.78056242 | Q117: 1.119941567
B118: 15000.01 | C118: 45000 | E118: 15000.01 | F118: 45000 | G118: 4.780576374 | H118: 403.5390828 | J118: 15000.01 | K118: 45000 | L118: 4.063511 | M118: 343.01 | P118: 3.688042584 | Q118: 1.09253379
B119: 45000.01 | C119: 250000 | E119: 45000.01 | F119: 250000 | G119: 4.127464468 | H119: 2322.340892 | J119: 45000.01 | K119: 250000 | L119: 3.508363 | M119: 1974 | P119: 3.184190259 | Q119: 0.9432742093
B120: 250000.01 | C120: 500000 | E120: 250000.01 | F120: 500000 | G120: 3.932980771 | H120: 10556.08641 | J120: 250000.01 | K120: 500000 | L120: 3.343051 | M120: 8972.72 | P120: 3.034153088 | Q120: 0.8988276836
B121: 500000.01 | C121: 1000000 | E121: 500000.01 | F121: 1000000 | G121: 3.712527797 | H121: 14778.51156 | J121: 500000.01 | K121: 1000000 | L121: 3.155665 | M121: 12561.8 | P121: 2.864081554 | Q121: 0.8484462433
A122: Acima de | B122: 1000000.01 | E122: 1000000.01 | G122: 3.679085618 | H122: 19284.87642 | J122: 1000000.01 | L122: 3.127239 | M122: 16392.23 | P122: 2.838282116 | Q122: 0.8408035015
P124: Margem | Q124: Tributos
A125: GNV | B125: Faixa única | E125: Faixa única | G125: =L125*(1+17.646448445628%) -> 3.575287333 | J125: Faixa única | L125: 3.03901 | P125: =G125-D125-Q125 -> 3.017542509 | Q125: =G125*0.156 -> 0.5577448239
A126: No período de 23/06/2022 a 31/12/2022, ficará reduzida a alíquota de PIS/COFINS de 9,25% para 0% para o segmento veicular, conforme a Lei Complementar Federal nº 194 de 23/06/2022.
E127: Arsesp - Tarifas
A128: R$/m³ | B128: NATURGY SP | E128: C/ ICMS 15,6% E PIS/COFINS | N128: S/ ICMS
A129: Faixas consumo mensal | D129: Preço Gás | E129: 2023-08-25 | G129: Variável | H129: Fixo mensal | L129: Variável | M129: Fixo mensal | P129: Margem | Q129: Tributos | S129: RESIDENCIAIS E COMERCIAIS | V129: PIS/COFINS 9,0%
A130: Residencial | B130: 0 | C130: 1 | E130: 0 | F130: 1 | G130: =L130*(1+17.646448445628%) -> 0 | H130: =M130*(1+17.646448445628%) -> 26.45868626 | J130: 0 | K130: 1 | L130: 0 | M130: 22.49 | P130: - | Q130: =(G130-L130)+L130*0.0924 -> 0 | S130: 2.31645 | T130: CUSTO GÁS
B131: 1.01 | C131: 7 | E131: 1.01 | F131: 7 | G131: 7.421020322 | H131: 20.68224564 | J131: 1.01 | K131: 7 | L131: 6.3079 | M131: 17.58 | N131: =G131*(1-15.6%) -> 6.263341151 | P131: =G131-D131-Q131 -> 5.72505004 | Q131: =(G131-L131)+L131*0.0924 -> 1.695970282 | S131: 0.3957 | T131: TRANSPORTE
B132: 7.01 | C132: 16 | E132: 7.01 | F132: 16 | G132: 7.175585124 | H132: 22.29400198 | J132: 7.01 | K132: 16 | L132: 6.099279 | M132: 18.95 | P132: =G132-D132-Q132 -> 5.53570562 | Q132: =(G132-L132)+L132*0.0924 -> 1.639879504 | S132: =S130+S131 -> 2.71215 | U132: 3.762165 | V132: C/ PIS COFINS PASEP
B133: 16.01 | C133: 41 | E133: 16.01 | F133: 41 | G133: 7.009047165 | H133: 24.83516527 | J133: 16.01 | K133: 41 | L133: 5.957721 | M133: 21.11 | P133: =G133-D133-Q133 -> 5.40722758 | Q133: =(G133-L133)+L133*0.0924 -> 1.601819585 | S133: DEMAIS USUÁRIOS | U133: =U132-S132 -> 1.050015
A134: Acima de | B134: 41.01 | E134: 41.01 | G134: 6.986156695 | H134: 25.64692576 | J134: 41.01 | L134: 5.938264 | M134: 21.8 | P134: =G134-D134-Q134 -> 5.389568406 | Q134: =(G134-L134)+L134*0.0924 -> 1.596588289 | S134: 2.4286 | T134: CUSTO GÁS
S135: 0.3957 | T135: TRANSPORTE
G136: Variável | H136: Fixo mensal | L136: Variável | M136: Fixo mensal | P136: Margem | Q136: Tributos | S136: =S134+S135 -> 2.8243 | U136: 3.168868 | V136: C/ PIS COFINS PASEP
A137: Comercial | B137: 0 | C137: 50 | E137: 0 | F137: 50 | G137: =L137*(1+17.646448445628%) -> 7.698816527 | H137: =M137*(1+17.646448445628%) -> 66.10553938 | J137: 0 | K137: 50 | L137: 6.544028 | M137: 56.19 | P137: =G137-D137-Q137 -> 5.939359813 | Q137: =(G137-L137)+L137*0.0924 -> 1.759456714 | U137: =U136-S136 -> 0.344568
B138: 50.01 | C138: 500 | E138: 50.01 | F138: 500 | G138: 6.831470439 | H138: 103.2935817 | J138: 50.01 | K138: 500 | L138: 5.80678 | M138: 87.8 | P138: =G138-D138-Q138 -> 5.270233528 | Q138: =(G138-L138)+L138*0.0924 -> 1.561236911
B139: 500.01 | C139: 5000 | E139: 500.01 | F139: 5000 | G139: 6.242920551 | H139: 396.045004 | J139: 500.01 | K139: 5000 | L139: 5.30651 | M139: 336.64 | P139: =G139-D139-Q139 -> 4.816188476 | Q139: =(G139-L139)+L139*0.0924 -> 1.426732075
A140: Acima de | B140: 5000.01 | E140: 5000.01 | G140: 4.584700919 | H140: 8609.367097 | J140: 5000.01 | L140: 3.897016 | M140: 7318 | P140: =G140-D140-Q140 -> 3.536931722 | Q140: =(G140-L140)+L140*0.0924 -> 1.047769198
G142: Variável | H142: Fixo mensal | L142: Variável | M142: Fixo mensal | P142: Margem | Q142: Tributos
A143: Industrial | B143: 0 | C143: 5000 | E143: 0 | F143: 5000 | G143: =L143*(1+17.646448445628%) -> 7.323738473 | H143: =M143*(1+17.646448445628%) -> 589.067532 | J143: 0 | K143: 5000 | L143: 6.22521 | M143: 500.71 | N143: =G143*(1-15.6%) -> 6.181235271 | P143: =G143-D143-Q143 -> 5.650000596 | Q143: =(G143-L143)+L143*0.0924 -> 1.673737877
B144: 5000.01 | C144: 50000 | E144: 5000.01 | F144: 50000 | G144: 5.159228527 | H144: 11780.93888 | J144: 5000.01 | K144: 50000 | L144: 4.385367 | M144: 10013.85 | P144: =G144-D144-Q144 -> 3.980159089 | Q144: =(G144-L144)+L144*0.0924 -> 1.179069438
B145: 50000.01 | C145: 300000 | E145: 50000.01 | F145: 300000 | G145: 4.233694505 | H145: 54599.03437 | J145: 50000.01 | K145: 300000 | L145: 3.598659 | M145: 46409.42 | P145: 3.266142908 | Q145: 0.9675515968
B146: 300000.01 | C146: 500000 | E146: 300000.01 | F146: 500000 | G146: 3.923166704 | H146: 141957.4988 | J146: 300000.01 | K146: 500000 | L146: 3.334709 | M146: 120664.5 | P146: 3.026581888 | Q146: 0.8965848161
B147: 500000.01 | C147: 1000000 | E147: 500000.01 | F147: 1000000 | G147: 3.767166337 | H147: 156922.0094 | J147: 500000.01 | K147: 1000000 | L147: 3.202108 | M147: 133384.4 | P147: 2.906233221 | Q147: 0.8609331166
B148: 1000000.01 | C148: 3000000 | E148: 1000000.01 | F148: 3000000 | G148: 3.673591529 | H148: 168937.4882 | J148: 1000000.01 | K148: 3000000 | L148: 3.122569 | M148: 143597.61 | P148: 2.834043624 | Q148: 0.8395479044
A149: Acima de | B149: 3000000.01 | E149: 3000000.01 | G149: 3.631355277 | H149: =M149*(1+17.646448445628%) -> 216355.6775 | J149: 3000000.01 | L149: 3.086668 | M149: 183903.28 | P149: 2.801459877 | Q149: 0.8298954005
P151: Margem | Q151: Tributos
A152: GNV | B152: Faixa única | E152: Faixa única | G152: =L152*(1+17.646448445628%) -> 3.636996425 | J152: Faixa única | L152: 3.091463 | P152: =G152-D152-Q152 -> 3.069624982 | Q152: =G152*0.156 -> 0.5673714422
A153: No período de 23/06/2022 a 31/12/2022, ficará reduzida a alíquota de PIS/COFINS de 9,25% para 0% para o segmento veicular, conforme a Lei Complementar Federal nº 194 de 23/06/2022.
E155: https://esgas.com.br/informacoes-importantes/
A156: R$/m³ | B156: ESGÁS | E156: C/ ICMS 17% e PIS/COFINS 9,25% | I156: 24.7 | N156: S/ TRIBUTOS
A157: Faixas consumo mensal | D157: Preço Gás | E157: 2023-11-01 | G157: Variável | H157: Fixo mensal | L157: Variável | M157: Fixo mensal | P157: Margem | Q157: Tributos
A158: Residencial | B158: 0 | C158: 8 | E158: 0 | F158: 8 | G158: 0 | H158: 52.81 | J158: 0 | K158: 8 | M158: 37.83 | P158: - | Q158: =G158-L158 -> 0 | R158: 0.30106 | S158: MARGEM MÉDIA DISTRIVUIÇÃO
B159: 8.01 | C159: 16 | E159: 8.01 | F159: 16 | G159: 4.6503 | H159: 10.44 | J159: 8.01 | K159: 16 | L159: 3.3418 | M159: 7.86 | N159: =M159/H159 -> 0.7528735632 | P159: =G159-D159-Q159 -> 3.3418 | Q159: =G159-L159 -> 1.3085
B160: 16.01 | C160: 55 | E160: 16.01 | F160: 55 | G160: 4.985 | H160: 5.08 | J160: 16.01 | K160: 55 | L160: 3.5938 | M160: 3.83 | P160: =G160-D160-Q160 -> 3.5938 | Q160: =G160-L160 -> 1.3912
A161: Acima de | B161: 55.01 | E161: 55.01 | G161: 5.0835 | H161: 0 | J161: 55.01 | L161: 3.668 | P161: =G161-D161-Q161 -> 3.668 | Q161: =G161-L161 -> 1.4155
G163: Variável | H163: Fixo mensal | L163: Variável | M163: Fixo mensal | P163: Margem | Q163: Tributos
A164: Comercial | B164: 0 | C164: 200 | E164: 0 | F164: 200 | G164: 5.3344 | H164: 92.89 | J164: 0 | K164: 200 | L164: 3.857 | M164: 69.97 | P164: =G164-D164-Q164 -> 3.857 | Q164: =G164-L164 -> 1.4774
B165: 200.01 | C165: 1000 | E165: 200.01 | F165: 1000 | G165: 5.7315 | H165: 13.48 | J165: 200.01 | K165: 1000 | L165: 4.1562 | M165: 10.15 | P165: =G165-D165-Q165 -> 4.1562 | Q165: =G165-L165 -> 1.5753
B166: 1000.01 | C166: 5000 | E166: 1000.01 | F166: 5000 | G166: 5.4599 | H166: 285.11 | J166: 1000.01 | K166: 5000 | L166: 3.9516 | M166: 214.75 | P166: =G166-D166-Q166 -> 3.9516 | Q166: =G166-L166 -> 1.5083
B167: 5000.01 | C167: 15000 | E167: 5000.01 | F167: 15000 | G167: 5.3762 | H167: 703.36 | J167: 5000.01 | K167: 15000 | L167: 3.8886 | M167: 529.79 | P167: =G167-D167-Q167 -> 3.8886 | Q167: =G167-L167 -> 1.4876
A168: Acima de | B168: 15000.01 | E168: 15000.01 | G168: 5.1046 | H168: 4777.88 | J168: 15000.01 | L168: 3.684 | M168: 3598.82 | P168: =G168-D168-Q168 -> 3.684 | Q168: =G168-L168 -> 1.4206
G170: Variável | H170: Fixo mensal | L170: Variável | M170: Fixo mensal | P170: Margem | Q170: Tributos
A171: Industrial | B171: 0 | C171: 1000 | E171: 0 | F171: 1000 | G171: 5.9446 | H171: 112.99 | J171: 0 | K171: 1000 | L171: 4.3167 | M171: 85.11 | P171: =G171-D171-Q171 -> 4.3167 | Q171: =G171-L171 -> 1.6279
B172: 1000.01 | C172: 5000 | E172: 1000.01 | F172: 5000 | G172: 4.9076 | H172: 1150.04 | J172: 1000.01 | K172: 5000 | L172: 3.5333 | M172: 866.24 | P172: =G172-D172-Q172 -> 3.5333 | Q172: =G172-L172 -> 1.3743
B173: 5000.01 | C173: 50000 | E173: 5000.01 | F173: 50000 | G173: 3.9834 | H173: 5770.61 | J173: 5000.01 | K173: 50000 | L173: 2.8395 | M173: 4346.57 | P173: 2.8395 | Q173: 1.1439
B174: 50000.01 | C174: 300000 | E174: 50000.01 | F174: 300000 | G174: 3.9162 | H174: 9128.29 | J174: 50000.01 | K174: 300000 | L174: 2.7889 | M174: 6875.66 | P174: 2.7889 | Q174: 1.1273
B175: 300000.01 | C175: 500000 | E175: 300000.01 | F175: 500000 | G175: 3.871 | H175: 22721.63 | J175: 300000.01 | K175: 500000 | L175: 2.7548 | M175: 17114.5 | P175: 2.7548 | Q175: 1.1162
B176: 500000.01 | C176: 1000000 | E176: 500000.01 | F176: 1000000 | G176: 3.8259 | H176: 45261.02 | J176: 500000.01 | K176: 1000000 | L176: 2.7208 | M176: 34091.73 | P176: 2.7208 | Q176: 1.1051
B177: 1.000.000.01 | C177: 10000000 | E177: 1000000.01 | F177: 10000000 | G177: 3.8034 | H177: 67800.4 | J177: 1.000.000.01 | K177: 10000000 | L177: 2.7038 | M177: 51068.96 | P177: 2.7038 | Q177: 1.0996
A178: Acima de | B178: 10000000.01 | E178: 10000000.01 | G178: 3.742 | H178: 681243.52 | J178: 10000000.01 | L178: 2.6576 | M178: 513129.65 | P178: 2.6576 | Q178: 1.0844
P180: Margem | Q180: Tributos
A181: GNV | B181: Faixa única | E181: Faixa única | G181: 3.677 | J181: Faixa única | L181: 0.187 | M181: 6101.86 | P181: =G181-D181-Q181 -> 0.187 | Q181: =G181-L181 -> 3.49
A182: No período de 23/06/2022 a 31/12/2022, ficará reduzida a alíquota de PIS/COFINS de 9,25% para 0% para o segmento veicular, conforme a Lei Complementar Federal nº 194 de 23/06/2022.
E184: http://www.gasmig.com.br/NossosServicos/Residencial/Paginas/Tarifas.aspx
A185: R$/m³ | B185: GASMIG | E185: C/ ICMS 12% e PIS 1,65% E COFINS 7,6% | N185: S/ IMPOSTOS | R185: 01/08/2022 (ponderação contratos Gasmig com Petrobras e Galp)
A186: Faixas consumo mensal | D186: Preço Gás | E186: 2023-11-01 | G186: Variável | H186: Fixo mensal | L186: Variável | M186: Fixo mensal | P186: Margem | Q186: Tributos | R186: molécula Gás
A187: Residencial | B187: 0 | C187: 1 | E187: 0 | F187: 1 | G187: 0 | H187: 30.493822 | J187: 0 | K187: 1 | L187: =I187 -> 0 | M187: 24.3522 | P187: 0 | Q187: =G187-L187 -> 0 | R187: 2.6758
B188: 1.01 | C188: 7 | E188: 1.01 | F188: 7 | G188: 9.194152 | H188: 17.91009 | J188: 1.01 | K188: 7 | L188: 7.3424 | M188: 14.3029 | P188: =G188-D188-Q188 -> 7.3424 | Q188: 1.851752 | R188: transporte
B189: 7.01 | C189: 16 | E189: 7.01 | F189: 16 | G189: 8.145685 | H189: 28.189524 | J189: 7.01 | K189: 16 | L189: 6.5051 | M189: 22.512 | P189: =G189-D189-Q189 -> 6.5051 | Q189: 1.640585 | R189: 0.3898
B190: 16.01 | C190: 41 | E190: 16.01 | F190: 41 | G190: 7.962989 | H190: 31.975174 | J190: 16.01 | K190: 41 | L190: 6.3592 | M190: 25.5352 | P190: =G190-D190-Q190 -> 6.3592 | Q190: 1.603789
B191: 41.01 | C191: 200 | E191: 41.01 | F191: 200 | G191: 7.490284 | H191: 49.193924 | J191: 41.01 | K191: 200 | L191: 5.9817 | M191: 39.286 | P191: =G191-D191-Q191 -> 5.9817 | Q191: 1.508584
A192: Acima de | B192: 200.01 | E192: 200.01 | G192: 7.255371 | H192: 96.203386 | J192: 200.01 | L192: 5.7941 | M192: 76.8275 | P192: =G192-D192-Q192 -> 5.7941 | Q192: 1.461271
G194: Variável | H194: Fixo mensal | L194: Variável | M194: Fixo mensal | P194: Margem | Q194: Tributos
A195: Comercial | B195: 0 | C195: 50 | E195: 0 | F195: 50 | G195: 7.585702 | H195: 102.477784 | J195: 0 | K195: 50 | L195: 6.0579 | M195: 81.8382 | P195: =G195-D195-Q195 -> 6.0579 | Q195: =G195-L195 -> 1.527802
B196: 50.01 | C196: 150 | E196: 50.01 | F196: 150 | G196: 7.526222 | H196: 105.390651 | J196: 50.01 | K196: 150 | L196: 6.0104 | M196: 84.1644 | P196: =G196-D196-Q196 -> 6.0104 | Q196: =G196-L196 -> 1.515822
B197: 150.01 | C197: 300 | E197: 150.01 | F197: 300 | G197: 7.228324 | H197: 149.083285 | J197: 150.01 | K197: 300 | L197: 5.7725 | M197: 119.0571 | P197: 5.7725 | Q197: =G197-L197 -> 1.455824
B198: 300.01 | C198: 600 | E198: 300.01 | F198: 600 | G198: 6.673724 | H198: 316.143152 | J198: 300.01 | K198: 600 | L198: 5.3296 | M198: 252.4702 | P198: =G198-D198-Q198 -> 5.3296 | Q198: 1.344124
B199: 600.01 | C199: 1000 | E199: 600.01 | F199: 1000 | G199: 6.613619 | H199: 350.264847 | J199: 600.01 | K199: 1000 | L199: 5.2816 | M199: 279.7196 | P199: 5.2816 | Q199: 1.332019
B200: 1000.01 | C200: 2000 | E200: 1000.01 | F200: 2000 | G200: 5.885966 | H200: 1076.28545 | J200: 1000.01 | K200: 2000 | L200: 4.7005 | M200: 859.5157 | P200: 4.7005 | Q200: 1.185466
B201: 2000.01 | C201: 5000 | E201: 2000.01 | F201: 5000 | G201: 4.57654 | H201: 1455.460462 | J201: 2000.01 | K201: 5000 | L201: 3.6548 | M201: 1162.3228 | P201: 3.6548 | Q201: 0.92174
B202: 5000.01 | C202: 15000 | E202: 5000.01 | F202: 15000 | G202: 4.464719 | H202: 2014.174013 | J202: 5000.01 | K202: 15000 | L202: 3.5655 | M202: 1608.5084 | P202: 3.5655 | Q202: 0.899219
B203: 15000.01 | C203: 25000 | E203: 15000.01 | F203: 25000 | G203: 4.37431 | H203: 3373.04967 | J203: 15000.01 | K203: 25000 | L203: 3.4933 | M203: 2693.6991 | P203: 3.4933 | Q203: 0.88101
A204: Acima de | B204: 25000.01 | E204: 25000.01 | G204: 4.190988 | H204: 7954.220524 | J204: 25000.01 | L204: 3.3469 | M204: 6352.1972 | P204: =G204-D204-Q204 -> 3.3469 | Q204: =G204-L204 -> 0.844088
G206: Variável | H206: Fixo mensal | L206: Variável | M206: Fixo mensal | P206: Margem | Q206: Tributos
A207: Industrial | B207: 0 | C207: 12500 | E207: 0 | F207: 12500 | G207: 5.075792 | J207: 0 | K207: 12500 | L207: 4.0535 | P207: =G207-D207-Q207 -> 4.0535 | Q207: =G207-L207 -> 1.022292
B208: 12500.01 | C208: 50000 | E208: 12500.01 | F208: 50000 | G208: 3.555872 | J208: 12500.01 | K208: 50000 | L208: 2.8397 | P208: =G208-D208-Q208 -> 2.8397 | Q208: =G208-L208 -> 0.716172
B209: 50000.01 | C209: 250000 | E209: 50000.01 | F209: 250000 | G209: 3.433407 | J209: 50000.01 | K209: 250000 | L209: 2.7419 | P209: =G209-D209-Q209 -> 2.7419 | Q209: 0.691507
B210: 250000.01 | C210: 750000 | E210: 250000.01 | F210: 750000 | G210: 3.4544569 | J210: 250000.01 | K210: 750000 | L210: 2.7588 | P210: 2.7588 | Q210: 0.6956569
B211: 750000.01 | C211: 1500000 | E211: 750000.01 | F211: 1500000 | G211: 3.424661 | J211: 750000.01 | K211: 1500000 | L211: 2.7349 | P211: 2.7349 | Q211: 0.689761
B212: 1500000.01 | C212: 3000000 | E212: 1500000.01 | F212: 3000000 | G212: 3.414499 | J212: 1500000.01 | K212: 3000000 | L212: 2.7268 | P212: 2.7268 | Q212: 0.687699
B213: 3000000.01 | C213: 4500000 | E213: 3000000.01 | F213: 4500000 | G213: 3.338114 | J213: 3000000.01 | K213: 4500000 | L213: 2.6658 | P213: 2.6658 | Q213: 0.672314
B214: 4500000.01 | C214: 7000000 | E214: 4500000.01 | F214: 7000000 | G214: 3.233305 | J214: 4500000.01 | K214: 7000000 | L214: 2.5821 | P214: 2.5821 | Q214: 0.651205
A215: Acima de | B215: 7000000.01 | E215: 7000000.01 | G215: 3.172824 | J215: 7000000.01 | L215: 2.5338 | P215: 2.5338 | Q215: 0.639024
J217: http://www.desenvolvimento.mg.gov.br/application/projetos/projeto/1085 | P217: Margem | Q217: Tributos
A218: GNV | B218: Faixa única | E218: Faixa única | G218: 3.80845 | J218: Faixa única | L218: 3.20906926 | P218: =G218-D218-Q218 -> 3.20906926 | Q218: =G218-L218 -> 0.59938074
A219: No período de 23/06/2022 a 31/12/2022, ficará reduzida a alíquota de PIS/COFINS de 9,25% para 0% para o segmento veicular, conforme a Lei Complementar Federal nº 194 de 23/06/2022.
P223: Margem | Q223: Tributos
P224: 2.803 | Q224: =G224-L224 -> 0
P225: 3.0619 | Q225: =G225-L225 -> 0
P227: Margem | Q227: Tributos
... 659 more rows

Sheet Base Gráfico (hidden)
A5: Distribuidora | B5: CEG
A7: Volume | B7: =Calculadora!$J$9 -> 0 | C7: m³/dia
A9: Tarifa Média | B9: =IFERROR(F31/E29,"") ->  | G9: =_xlfn._xlws.FILTER(Tabela1[CONSUMO],(Calculadora!$J$9>=Tabela1[FAIXA INICIAL])*(Calculadora!$J$9<=Tabela1[FAIXA FINAL])*(Calculadora!$G$7=Tabela1[SEGMENTO])*($B$5=Tabela1[DISTRIBUIDORA])*("Rio de Janeiro"=Tabela1[MUNICÍPIO]),"") ->  | H9: =_xlfn._xlws.FILTER(Tabela1[CONSUMO],(Calculadora!$J$9>=Tabela1[FAIXA INICIAL])*(Calculadora!$G$7=Tabela1[SEGMENTO])*($B$5=Tabela1[DISTRIBUIDORA])*("Rio de Janeiro"=Tabela1[MUNICÍPIO]),"") ->  | I9: Faixa por volume x município x segmento | T9: =_xlfn._xlws.FILTER(Tabela1[CONSUMO],($J$9>=Tabela1[FAIXA INICIAL])*($J$9<=Tabela1[FAIXA FINAL])*($G$7=Tabela1[SEGMENTO])*($G$8=Tabela1[UF])*($G$9=Tabela1[MUNICÍPIO]),"") ->  | U9: =_xlfn._xlws.FILTER(Tabela1[CONSUMO],($J$9>=Tabela1[FAIXA INICIAL])*($G$7=Tabela1[SEGMENTO])*($G$8=Tabela1[UF])*($G$9=Tabela1[MUNICÍPIO]),"") -> 
I10: Estado | J10: Município | K10: Agência Regularizadora | L10: Distribuidora | M10: Segmento | N10: Consumo | O10: Faixa Inicial | P10: Faixa Final | Q10: Variável | R10: Fixo
B11: m³/dia | C11: m³/dia | I11: =_xlfn._xlws.FILTER(Tabela1[[ESTADO]:[FIXO]],($C12>=Tabela1[FAIXA INICIAL])*(Calculadora!$G$7=Tabela1[SEGMENTO])*($B$5=Tabela1[DISTRIBUIDORA])*("Rio de Janeiro"=Tabela1[MUNICÍPIO]),"Não foi encontrado valor para esse município e segmento com esse volume") -> Não foi encontrado valor para esse município e segmento com esse volume
B12: =B7 -> 0 | C12: =IF($D12="Mensal",Calculadora!$J$9*30,IF($D12="Semanal",Calculadora!$J$9*7,IF($D12="Faixa Única",Calculadora!$J$9*30,Calculadora!$J$9))) -> 0 | D12: =IF(_xlfn._xlws.FILTER(Tabela1[CONSUMO],(Calculadora!$J$9>=Tabela1[FAIXA INICIAL])*(Calculadora!$J$9<=Tabela1[FAIXA FINAL])*(Calculadora!$G$7=Tabela1[SEGMENTO])*($B5=Tabela1[DISTRIBUIDORA])*("Rio de Janeiro" = Tabela1[MUNICÍPIO]),"")="", H9,G9) -> 
A13: Faixa de Consumo | C13: Fixo (R$/m³) | D13: Variável (R$/m³) | E13: Consumo (m³) | F13: Tarifa Aplicada (R$)
A14: =O11 -> 0 | B14: 0 | C14: =R11 -> 0 | D14: =Q11 -> 0 | E14: =IF($D$12="Faixa Única",$C$12,IF(B14>C12,C12,B14-A14)) -> 0 | F14: =(D14*E14) -> 0
A15: 0 | B15: 0 | C15: =R12 -> 0 | D15: =Q12 -> 0 | E15: =IF($D$12<>"Faixa Única",IF($C$12<>"",IF(SUM(E14,B15)>=$C$12,$C$12-(E14),IF(B15=0,$C$12-SUM(E14),B15-A15)),"0"),"0") -> 0 | F15: =(D15*E15) -> 0
A16: 0 | B16: 0 | C16: =R13 -> 0 | D16: =Q13 -> 0 | E16: =IF($D$12<>"Faixa Única",IF($C$12<>"",IF(SUM(E15,B16)>=$C$12,$C$12-SUM($E$14:E15),IF(B16=0,$C$12-SUM($E$14:E15),B16-A16)),"0"),"0") -> 0 | F16: =(D16*E16) -> 0
A17: =O14 -> 0 | B17: =P14 -> 0 | C17: =R14 -> 0 | D17: =Q14 -> 0 | E17: =IF($D$12<>"Faixa Única",IF($C$12<>"",IF(SUM(E16,B17)>=$C$12,$C$12-SUM($E$14:E16),IF(B17=0,$C$12-SUM($E$14:E16),B17-A17)),"0"),"0") -> 0 | F17: =(D17*E17) -> 0
A18: 0 | B18: 0 | C18: 0 | D18: =Q15 -> 0 | E18: =IF($D$12<>"Faixa Única",IF($C$12<>"",IF(SUM(E17,B18)>=$C$12,$C$12-SUM($E$14:E17),IF(B18=0,$C$12-SUM($E$14:E17),B18-A18)),"0"),"0") -> 0 | F18: 0
A19: 0 | B19: 0 | C19: 0 | D19: =Q16 -> 0 | E19: =IF($D$12<>"Faixa Única",IF($C$12<>"",IF(SUM(E18,B19)>=$C$12,$C$12-SUM($E$14:E18),IF(B19=0,$C$12-SUM($E$14:E18),B19-A19)),"0"),"0") -> 0 | F19: 0
A20: 0 | B20: 0 | C20: 0 | D20: 0 | E20: =IF($D$12<>"Faixa Única",IF($C$12<>"",IF(SUM(E19,B20)>=$C$12,$C$12-SUM($E$14:E19),IF(B20=0,$C$12-SUM($E$14:E19),B20-A20)),"0"),"0") -> 0 | F20: 0
A21: 0 | B21: 0 | C21: 0 | D21: 0 | E21: =IF($D$12<>"Faixa Única",IF($C$12<>"",IF(SUM(E20,B21)>=$C$12,$C$12-SUM($E$14:E20),IF(B21=0,$C$12-SUM($E$14:E20),B21-A21)),"0"),"0") -> 0 | F21: 0
A22: 0 | B22: 0 | C22: 0 | D22: 0 | E22: =IF($D$12<>"Faixa Única",IF($C$12<>"",IF(SUM(E21,B22)>=$C$12,$C$12-SUM($E$14:E21),IF(B22=0,$C$12-SUM($E$14:E21),B22-A22)),"0"),"0") -> 0 | F22: 0
A23: 0 | B23: 0 | C23: 0 | D23: 0 | E23: =IF($D$12<>"Faixa Única",IF($C$12<>"",IF(SUM(E22,B23)>=$C$12,$C$12-SUM($E$14:E22),IF(B23=0,$C$12-SUM($E$14:E22),B23-A23)),"0"),"0") -> 0 | F23: 0
A24: 0 | B24: 0 | C24: 0 | D24: 0 | E24: =IF($D$12<>"Faixa Única",IF($C$12<>"",IF(SUM(E23,B24)>=$C$12,$C$12-SUM($E$14:E23),IF(B24=0,$C$12-SUM($E$14:E23),B24-A24)),"0"),"0") -> 0 | F24: 0
A25: 0 | B25: 0 | C25: 0 | D25: 0 | E25: =IF($D$12<>"Faixa Única",IF($C$12<>"",IF(SUM(E24,B25)>=$C$12,$C$12-SUM($E$14:E24),IF(B25=0,$C$12-SUM($E$14:E24),B25-A25)),"0"),"0") -> 0 | F25: 0
A26: 0 | B26: 0 | C26: 0 | D26: 0 | E26: =IF($D$12<>"Faixa Única",IF($C$12<>"",IF(SUM(E25,B26)>=$C$12,$C$12-SUM($E$14:E25),IF(B26=0,$C$12-SUM($E$14:E25),B26-A26)),"0"),"0") -> 0 | F26: 0
A27: 0 | B27: 0 | C27: 0 | D27: 0 | E27: =IF($D$12<>"Faixa Única",IF($C$12<>"",IF(SUM(E26,B27)>=$C$12,$C$12-SUM($E$14:E26),IF(B27=0,$C$12-SUM($E$14:E26),B27-A27)),"0"),"0") -> 0 | F27: 0
D29: Subtotal | E29: =SUM(E14:E27) -> 0 | F29: =SUM(F14:F27) -> 0
D30: Termo Fixo | F30: =LARGE(C14:C27,1) -> 0
D31: Total c/ impostos | F31: =F29+F30 -> 0
A35: Distribuidora | B35: GASMIG
A37: Volume | B37: =Calculadora!$J$9 -> 0 | C37: m³/dia
A39: Tarifa Média | B39: =IFERROR(F61/E59,"") ->  | G39: =_xlfn._xlws.FILTER(Tabela1[CONSUMO],(Calculadora!$J$9>=Tabela1[FAIXA INICIAL])*(Calculadora!$J$9<=Tabela1[FAIXA FINAL])*(Calculadora!$G$7=Tabela1[SEGMENTO])*($B$35=Tabela1[DISTRIBUIDORA]),"") ->  | H39: =_xlfn._xlws.FILTER(Tabela1[CONSUMO],(Calculadora!$J$9>=Tabela1[FAIXA INICIAL])*(Calculadora!$G$7=Tabela1[SEGMENTO])*($B$35=Tabela1[DISTRIBUIDORA]),"") ->  | I39: Faixa por volume x município x segmento
I40: Estado | J40: Município | K40: Agência Regularizadora | L40: Distribuidora | M40: Segmento | N40: Consumo | O40: Faixa Inicial | P40: Faixa Final | Q40: Variável | R40: Fixo
B41: m³/dia | C41: m³/dia | I41: =_xlfn._xlws.FILTER(Tabela1[[ESTADO]:[FIXO]],($C42>=Tabela1[FAIXA INICIAL])*(Calculadora!$G$7=Tabela1[SEGMENTO])*($B35=Tabela1[DISTRIBUIDORA]),"Não foi encontrado valor para esse município e segmento com esse volume") -> Não foi encontrado valor para esse município e segmento com esse volume
B42: =B37 -> 0 | C42: =IF($D42="Mensal",Calculadora!$J$9*30,IF($D42="Semanal",Calculadora!$J$9*7,IF($D42="Faixa Única",Calculadora!$J$9*30,Calculadora!$J$9))) -> 0 | D42: =IF(_xlfn._xlws.FILTER(Tabela1[CONSUMO],(Calculadora!$J$9>=Tabela1[FAIXA INICIAL])*(Calculadora!$J$9<=Tabela1[FAIXA FINAL])*(Calculadora!$G$7=Tabela1[SEGMENTO])*($B35=Tabela1[DISTRIBUIDORA]),"")="", H39,G39) -> 
A43: Faixa de Consumo | C43: Fixo (R$/m³) | D43: Variável (R$/m³) | E43: Consumo (m³) | F43: Tarifa Aplicada (R$)
A44: =O41 -> 0 | B44: 0 | C44: =R41 -> 0 | D44: =Q41 -> 0 | E44: =IF($D$42="Faixa Única",$C$42,IF(B44>C42,C42,B44-A44)) -> 0 | F44: =(D44*E44) -> 0
A45: 0 | B45: 0 | C45: =R42 -> 0 | D45: =Q42 -> 0 | E45: =IF($D$42<>"Faixa Única",IF($C$42<>"",IF(SUM(E44,B45)>=$C$42,$C$42-(E44),IF(B45=0,$C$42-SUM(E44),B45-A45)),"0"),"0") -> 0 | F45: =(D45*E45) -> 0
A46: 0 | B46: 0 | C46: =R43 -> 0 | D46: =Q43 -> 0 | E46: =IF($D$42<>"Faixa Única",IF($C$42<>"",IF(SUM(E45,B46)>=$C$42,$C$42-SUM($E$44:E45),IF(B46=0,$C$42-SUM($E$44:E45),B46-A46)),"0"),"0") -> 0 | F46: =(D46*E46) -> 0
A47: =O44 -> 0 | B47: =P44 -> 0 | C47: =R44 -> 0 | D47: =Q44 -> 0 | E47: =IF($D$42<>"Faixa Única",IF($C$42<>"",IF(SUM(E46,B47)>=$C$42,$C$42-SUM($E$44:E46),IF(B47=0,$C$42-SUM($E$44:E46),B47-A47)),"0"),"0") -> 0 | F47: =(D47*E47) -> 0
A48: 0 | B48: 0 | C48: =R45 -> 0 | D48: 0 | E48: =IF($D$42<>"Faixa Única",IF($C$42<>"",IF(SUM(E47,B48)>=$C$42,$C$42-SUM($E$44:E47),IF(B48=0,$C$42-SUM($E$44:E47),B48-A48)),"0"),"0") -> 0 | F48: =(D48*E48) -> 0
A49: 0 | B49: 0 | C49: 0 | D49: 0 | E49: =IF($D$42<>"Faixa Única",IF($C$42<>"",IF(SUM(E48,B49)>=$C$42,$C$42-SUM($E$44:E48),IF(B49=0,$C$42-SUM($E$44:E48),B49-A49)),"0"),"0") -> 0 | F49: 0
A50: 0 | B50: 0 | C50: 0 | D50: 0 | E50: =IF($D$42<>"Faixa Única",IF($C$42<>"",IF(SUM(E49,B50)>=$C$42,$C$42-SUM($E$44:E49),IF(B50=0,$C$42-SUM($E$44:E49),B50-A50)),"0"),"0") -> 0 | F50: 0
A51: 0 | B51: 0 | C51: 0 | D51: 0 | E51: =IF($D$42<>"Faixa Única",IF($C$42<>"",IF(SUM(E50,B51)>=$C$42,$C$42-SUM($E$44:E50),IF(B51=0,$C$42-SUM($E$44:E50),B51-A51)),"0"),"0") -> 0 | F51: 0
A52: 0 | B52: 0 | C52: 0 | D52: 0 | E52: =IF($D$42<>"Faixa Única",IF($C$42<>"",IF(SUM(E51,B52)>=$C$42,$C$42-SUM($E$44:E51),IF(B52=0,$C$42-SUM($E$44:E51),B52-A52)),"0"),"0") -> 0 | F52: 0
A53: 0 | B53: 0 | C53: 0 | D53: 0 | E53: =IF($D$42<>"Faixa Única",IF($C$42<>"",IF(SUM(E52,B53)>=$C$42,$C$42-SUM($E$44:E52),IF(B53=0,$C$42-SUM($E$44:E52),B53-A53)),"0"),"0") -> 0 | F53: 0
A54: 0 | B54: 0 | C54: 0 | D54: 0 | E54: =IF($D$42<>"Faixa Única",IF($C$42<>"",IF(SUM(E53,B54)>=$C$42,$C$42-SUM($E$44:E53),IF(B54=0,$C$42-SUM($E$44:E53),B54-A54)),"0"),"0") -> 0 | F54: 0
A55: 0 | B55: 0 | C55: 0 | D55: 0 | E55: =IF($D$42<>"Faixa Única",IF($C$42<>"",IF(SUM(E54,B55)>=$C$42,$C$42-SUM($E$44:E54),IF(B55=0,$C$42-SUM($E$44:E54),B55-A55)),"0"),"0") -> 0 | F55: 0
A56: 0 | B56: 0 | C56: 0 | D56: 0 | E56: =IF($D$42<>"Faixa Única",IF($C$42<>"",IF(SUM(E55,B56)>=$C$42,$C$42-SUM($E$44:E55),IF(B56=0,$C$42-SUM($E$44:E55),B56-A56)),"0"),"0") -> 0 | F56: 0
A57: 0 | B57: 0 | C57: 0 | D57: 0 | E57: =IF($D$42<>"Faixa Única",IF($C$42<>"",IF(SUM(E56,B57)>=$C$42,$C$42-SUM($E$44:E56),IF(B57=0,$C$42-SUM($E$44:E56),B57-A57)),"0"),"0") -> 0 | F57: 0
D59: Subtotal | E59: =SUM(E44:E57) -> 0 | F59: =SUM(F44:F57) -> 0
D60: Termo Fixo | F60: =LARGE(C44:C57,1) -> 0
D61: Total c/ impostos | F61: =F59+F60 -> 0
A64: Distribuidora | B64: COMGÁS | D64: Independente: Comercial e Industrial
B65: SP
A66: Volume | B66: =Calculadora!$J$9 -> 0 | C66: m³/dia
A68: Tarifa Média | B68: =IFERROR(F90/E88,"") ->  | G68: =_xlfn._xlws.FILTER(Tabela1[CONSUMO],(Calculadora!$J$9>=Tabela1[FAIXA INICIAL])*(Calculadora!$J$9<=Tabela1[FAIXA FINAL])*(Calculadora!$G$7=Tabela1[SEGMENTO])*($B64=Tabela1[DISTRIBUIDORA])*("São Paulo" = Tabela1[MUNICÍPIO]),"") ->  | H68: =_xlfn._xlws.FILTER(Tabela1[CONSUMO],(Calculadora!$J$9>=Tabela1[FAIXA INICIAL])*(Calculadora!$G$7=Tabela1[SEGMENTO])*($B$64=Tabela1[DISTRIBUIDORA])*("São Paulo"=Tabela1[MUNICÍPIO]),"") ->  | I68: Faixa por volume x município x segmento
I69: Estado | J69: Município | K69: Agência Regularizadora | L69: Distribuidora | M69: Segmento | N69: Consumo | O69: Faixa Inicial | P69: Faixa Final | Q69: Variável | R69: Fixo
B70: m³/dia | C70: m³/dia | I70: =_xlfn._xlws.FILTER(Tabela1[[ESTADO]:[FIXO]],($C71>=Tabela1[FAIXA INICIAL])*(Calculadora!$G$7=Tabela1[SEGMENTO])*($B64=Tabela1[DISTRIBUIDORA])*("São Paulo" = Tabela1[MUNICÍPIO]),"Não foi encontrado valor para esse município e segmento com esse volume") -> Não foi encontrado valor para esse município e segmento com esse volume
B71: =B66 -> 0 | C71: =IF($D71="Mensal",Calculadora!$J$9*30,IF($D71="Semanal",Calculadora!$J$9*7,IF($D71="Faixa Única",Calculadora!$J$9*30,Calculadora!$J$9))) -> 0 | D71: =IF(_xlfn._xlws.FILTER(Tabela1[CONSUMO],(Calculadora!$J$9>=Tabela1[FAIXA INICIAL])*(Calculadora!$J$9<=Tabela1[FAIXA FINAL])*(Calculadora!$G$7=Tabela1[SEGMENTO])*($B64=Tabela1[DISTRIBUIDORA])*("São Paulo" = Tabela1[MUNICÍPIO]),"")="", H68,G68) -> 
A72: Faixa de Consumo | C72: Fixo (R$/m³) | D72: Variável (R$/m³) | E72: Consumo (m³) | F72: Tarifa Aplicada (R$)
A73: =O70 -> 0 | B73: =P70 -> 0 | C73: =R70 -> 0 | D73: =Q70 -> 0 | E73: =IF(AND($B$65="SP",OR(AND($B$64="COMGÁS",OR(Calculadora!$G$7="Industrial",Calculadora!$G$7="Comercial")))),IF(AND(A73<>0,B73=0),$C$71,IF(B73>=$C$71,$C$71,0)),IF($D$71="Faixa Única",$C$71,IF($B73>=$C$71,$C$71,$B73-$A73))) -> 0 | F73: =(D73*E73) -> 0
A74: 0 | B74: 0 | C74: =R71 -> 0 | D74: =Q71 -> 0 | E74: =IF(AND($B$65="SP",OR(AND($B$64="COMGÁS",OR(Calculadora!$G$7="Industrial",Calculadora!$G$7="Comercial")))),IF(AND(A74<>0,B74=0),$C$71,IF(B74>=$C$71,$C$71,0)),IF($D$71<>"Faixa Única",IF($D$71<>"",IF(SUM($E$73:$E73,$B74)>=$C$71,$C$71-SUM($E$73:$E73),IF($B74=0,$C$71-SUM($E$73:$E73),$B74-$A74)),"0"),"0")) -> 0 | F74: =(D74*E74) -> 0
A75: 0 | B75: 0 | C75: =R72 -> 0 | D75: =Q72 -> 0 | E75: =IF(AND($B$65="SP",OR(AND($B$64="COMGÁS",OR(Calculadora!$G$7="Industrial",Calculadora!$G$7="Comercial")))),IF(AND(A75<>0,B75=0),$C$71,IF(B75>=$C$71,$C$71,0)),IF($D$71<>"Faixa Única",IF($D$71<>"",IF(SUM($E$73:$E74,$B75)>=$C$71,$C$71-SUM($E$73:$E74),IF($B75=0,$C$71-SUM($E$73:$E74),$B75-$A75)),"0"),"0")) -> 0 | F75: =(D75*E75) -> 0
A76: 0 | B76: 0 | C76: =R73 -> 0 | D76: =Q73 -> 0 | E76: =IF(AND($B$65="SP",OR(AND($B$64="COMGÁS",OR(Calculadora!$G$7="Industrial",Calculadora!$G$7="Comercial")))),IF(AND(A76<>0,B76=0),$C$71,IF(B76>=$C$71,$C$71,0)),IF($D$71<>"Faixa Única",IF($D$71<>"",IF(SUM($E$73:$E75,$B76)>=$C$71,$C$71-SUM($E$73:$E75),IF($B76=0,$C$71-SUM($E$73:$E75),$B76-$A76)),"0"),"0")) -> 0 | F76: =(D76*E76) -> 0
A77: 0 | B77: 0 | C77: 0 | D77: 0 | E77: =IF(AND($B$65="SP",OR(AND($B$64="COMGÁS",OR(Calculadora!$G$7="Industrial",Calculadora!$G$7="Comercial")))),IF(AND(A77<>0,B77=0),$C$71,IF(B77>=$C$71,$C$71,0)),IF($D$71<>"Faixa Única",IF($D$71<>"",IF(SUM($E$73:$E76,$B77)>=$C$71,$C$71-SUM($E$73:$E76),IF($B77=0,$C$71-SUM($E$73:$E76),$B77-$A77)),"0"),"0")) -> 0 | F77: 0
A78: 0 | B78: 0 | C78: 0 | D78: 0 | E78: =IF(AND($B$65="SP",OR(AND($B$64="COMGÁS",OR(Calculadora!$G$7="Industrial",Calculadora!$G$7="Comercial")))),IF(AND(A78<>0,B78=0),$C$71,IF(B78>=$C$71,$C$71,0)),IF($D$71<>"Faixa Única",IF($D$71<>"",IF(SUM($E$73:$E77,$B78)>=$C$71,$C$71-SUM($E$73:$E77),IF($B78=0,$C$71-SUM($E$73:$E77),$B78-$A78)),"0"),"0")) -> 0 | F78: 0
A79: 0 | B79: 0 | C79: 0 | D79: 0 | E79: =IF(AND($B$65="SP",OR(AND($B$64="COMGÁS",OR(Calculadora!$G$7="Industrial",Calculadora!$G$7="Comercial")))),IF(AND(A79<>0,B79=0),$C$71,IF(B79>=$C$71,$C$71,0)),IF($D$71<>"Faixa Única",IF($D$71<>"",IF(SUM($E$73:$E78,$B79)>=$C$71,$C$71-SUM($E$73:$E78),IF($B79=0,$C$71-SUM($E$73:$E78),$B79-$A79)),"0"),"0")) -> 0 | F79: 0
A80: 0 | B80: 0 | C80: 0 | D80: 0 | E80: =IF(AND($B$65="SP",OR(AND($B$64="COMGÁS",OR(Calculadora!$G$7="Industrial",Calculadora!$G$7="Comercial")))),IF(AND(A80<>0,B80=0),$C$71,IF(B80>=$C$71,$C$71,0)),IF($D$71<>"Faixa Única",IF($D$71<>"",IF(SUM($E$73:$E79,$B80)>=$C$71,$C$71-SUM($E$73:$E79),IF($B80=0,$C$71-SUM($E$73:$E79),$B80-$A80)),"0"),"0")) -> 0 | F80: 0
A81: 0 | B81: 0 | C81: 0 | D81: 0 | E81: =IF(AND($B$65="SP",OR(AND($B$64="COMGÁS",OR(Calculadora!$G$7="Industrial",Calculadora!$G$7="Comercial")))),IF(AND(A81<>0,B81=0),$C$71,IF(B81>=$C$71,$C$71,0)),IF($D$71<>"Faixa Única",IF($D$71<>"",IF(SUM($E$73:$E80,$B81)>=$C$71,$C$71-SUM($E$73:$E80),IF($B81=0,$C$71-SUM($E$73:$E80),$B81-$A81)),"0"),"0")) -> 0 | F81: 0
A82: 0 | B82: 0 | C82: 0 | D82: 0 | E82: =IF(AND($B$65="SP",OR(AND($B$64="COMGÁS",OR(Calculadora!$G$7="Industrial",Calculadora!$G$7="Comercial")))),IF(AND(A82<>0,B82=0),$C$71,IF(B82>=$C$71,$C$71,0)),IF($D$71<>"Faixa Única",IF($D$71<>"",IF(SUM($E$73:$E81,$B82)>=$C$71,$C$71-SUM($E$73:$E81),IF($B82=0,$C$71-SUM($E$73:$E81),$B82-$A82)),"0"),"0")) -> 0 | F82: 0
A83: 0 | B83: 0 | C83: 0 | D83: 0 | E83: =IF(AND($B$65="SP",OR(AND($B$64="COMGÁS",OR(Calculadora!$G$7="Industrial",Calculadora!$G$7="Comercial")))),IF(AND(A83<>0,B83=0),$C$71,IF(B83>=$C$71,$C$71,0)),IF($D$71<>"Faixa Única",IF($D$71<>"",IF(SUM($E$73:$E82,$B83)>=$C$71,$C$71-SUM($E$73:$E82),IF($B83=0,$C$71-SUM($E$73:$E82),$B83-$A83)),"0"),"0")) -> 0 | F83: 0
A84: 0 | B84: 0 | C84: 0 | D84: 0 | E84: =IF(AND($B$65="SP",OR(AND($B$64="COMGÁS",OR(Calculadora!$G$7="Industrial",Calculadora!$G$7="Comercial")))),IF(AND(A84<>0,B84=0),$C$71,IF(B84>=$C$71,$C$71,0)),IF($D$71<>"Faixa Única",IF($D$71<>"",IF(SUM($E$73:$E83,$B84)>=$C$71,$C$71-SUM($E$73:$E83),IF($B84=0,$C$71-SUM($E$73:$E83),$B84-$A84)),"0"),"0")) -> 0 | F84: 0
A85: 0 | B85: 0 | C85: 0 | D85: 0 | E85: =IF(AND($B$65="SP",OR(AND($B$64="COMGÁS",OR(Calculadora!$G$7="Industrial",Calculadora!$G$7="Comercial")))),IF(AND(A85<>0,B85=0),$C$71,IF(B85>=$C$71,$C$71,0)),IF($D$71<>"Faixa Única",IF($D$71<>"",IF(SUM($E$73:$E84,$B85)>=$C$71,$C$71-SUM($E$73:$E84),IF($B85=0,$C$71-SUM($E$73:$E84),$B85-$A85)),"0"),"0")) -> 0 | F85: 0
A86: 0 | B86: 0 | C86: 0 | D86: 0 | E86: =IF(AND($B$65="SP",OR(AND($B$64="COMGÁS",OR(Calculadora!$G$7="Industrial",Calculadora!$G$7="Comercial")))),IF(AND(A86<>0,B86=0),$C$71,IF(B86>=$C$71,$C$71,0)),IF($D$71<>"Faixa Única",IF($D$71<>"",IF(SUM($E$73:$E85,$B86)>=$C$71,$C$71-SUM($E$73:$E85),IF($B86=0,$C$71-SUM($E$73:$E85),$B86-$A86)),"0"),"0")) -> 0 | F86: 0
D88: Subtotal | E88: =SUM(E73:E86) -> 0 | F88: =SUM(F73:F86) -> 0
D89: Termo Fixo | F89: =LARGE(C73:C86,1) -> 0
D90: Total c/ impostos | F90: =F88+F89 -> 0 | I90: SE(FILTRO(Tabela1[CONSUMO];(Calculadora!$J$9>=Tabela1[FAIXA INICIAL])*(Calculadora!$J$9<=Tabela1[FAIXA FINAL])*(Calculadora!$G$7=Tabela1[SEGMENTO])*($B$499=Tabela1[DISTRIBUIDORA]);"")=""; H503;G503)
A93: Distribuidora | B93: GÁS BRASILIANO | D93: Independente: Comercial
B94: SP
A95: Volume | B95: =Calculadora!$J$9 -> 0 | C95: m³/dia
A97: Tarifa Média | B97: =IFERROR(F119/E117,"") ->  | G97: =_xlfn._xlws.FILTER(Tabela1[CONSUMO],(Calculadora!$J$9>=Tabela1[FAIXA INICIAL])*(Calculadora!$J$9<=Tabela1[FAIXA FINAL])*(Calculadora!$G$7=Tabela1[SEGMENTO])*($B$93=Tabela1[DISTRIBUIDORA])*("Bauru"=Tabela1[MUNICÍPIO]),"") ->  | H97: =_xlfn._xlws.FILTER(Tabela1[CONSUMO],(Calculadora!$J$9>=Tabela1[FAIXA INICIAL])*(Calculadora!$G$7=Tabela1[SEGMENTO])*($B$93=Tabela1[DISTRIBUIDORA])*("Bauru"=Tabela1[MUNICÍPIO]),"") ->  | I97: Faixa por volume x município x segmento
I98: Estado | J98: Município | K98: Agência Regularizadora | L98: Distribuidora | M98: Segmento | N98: Consumo | O98: Faixa Inicial | P98: Faixa Final | Q98: Variável | R98: Fixo
B99: m³/dia | C99: m³/dia | I99: =_xlfn._xlws.FILTER(Tabela1[[ESTADO]:[FIXO]],($C100>=Tabela1[FAIXA INICIAL])*(Calculadora!$G$7=Tabela1[SEGMENTO])*($B$93=Tabela1[DISTRIBUIDORA])*("Bauru"=Tabela1[MUNICÍPIO]),"Não foi encontrado valor para esse município e segmento com esse volume") -> Não foi encontrado valor para esse município e segmento com esse volume
B100: =B95 -> 0 | C100: =IF($D100="Mensal",Calculadora!$J$9*30,IF($D100="Semanal",Calculadora!$J$9*7,IF($D100="Faixa Única",Calculadora!$J$9*30,Calculadora!$J$9))) -> 0 | D100: =IF(_xlfn._xlws.FILTER(Tabela1[CONSUMO],(Calculadora!$J$9>=Tabela1[FAIXA INICIAL])*(Calculadora!$J$9<=Tabela1[FAIXA FINAL])*(Calculadora!$G$7=Tabela1[SEGMENTO])*($B93=Tabela1[DISTRIBUIDORA])*("Bauru" = Tabela1[MUNICÍPIO]),"")="", H97,G97) -> 
A101: Faixa de Consumo | C101: Fixo (R$/m³) | D101: Variável (R$/m³) | E101: Consumo (m³) | F101: Tarifa Aplicada (R$)
A102: =O99 -> 0 | B102: =P99 -> 0 | C102: =R99 -> 0 | D102: =Q99 -> 0 | E102: =IF(AND($B$94="SP",OR(AND($B$93="GÁS BRASILIANO",OR(Calculadora!$G$7="Comercial")))),IF(AND(A102<>0,B102=0),$C$100,IF(B102>=$C$100,$C$100,0)),IF($D$100="Faixa Única",$C$100,IF($B102>=$C$100,$C$100,$B102-$A102))) -> 0 | F102: =(D102*E102) -> 0
A103: 0 | B103: 0 | C103: =R100 -> 0 | D103: =Q100 -> 0 | E103: =IF(AND($B$94="SP",OR(AND($B$93="GÁS BRASILIANO",OR(Calculadora!$G$7="Comercial")))),IF(AND(A103<>0,B103=0),$C$100,IF(B103>=$C$100,$C$100,0)),IF($D$100<>"Faixa Única",IF($D$100<>"",IF(SUM($E$102:$E102,$B103)>=$C$100,$C$100-SUM($E$102:$E102),IF($B103=0,$C$100-SUM($E$102:$E102),$B103-$A103)),"0"),"0")) -> 0 | F103: =(D103*E103) -> 0
A104: 0 | B104: 0 | C104: =R101 -> 0 | D104: =Q101 -> 0 | E104: =IF(AND($B$94="SP",OR(AND($B$93="GÁS BRASILIANO",OR(Calculadora!$G$7="Comercial")))),IF(AND(A104<>0,B104=0),$C$100,IF(B104>=$C$100,$C$100,0)),IF($D$100<>"Faixa Única",IF($D$100<>"",IF(SUM($E$102:$E103,$B104)>=$C$100,$C$100-SUM($E$102:$E103),IF($B104=0,$C$100-SUM($E$102:$E103),$B104-$A104)),"0"),"0")) -> 0 | F104: =(D104*E104) -> 0
A105: 0 | B105: 0 | C105: =R102 -> 0 | D105: =Q102 -> 0 | E105: =IF(AND($B$94="SP",OR(AND($B$93="GÁS BRASILIANO",OR(Calculadora!$G$7="Comercial")))),IF(AND(A105<>0,B105=0),$C$100,IF(B105>=$C$100,$C$100,0)),IF($D$100<>"Faixa Única",IF($D$100<>"",IF(SUM($E$102:$E104,$B105)>=$C$100,$C$100-SUM($E$102:$E104),IF($B105=0,$C$100-SUM($E$102:$E104),$B105-$A105)),"0"),"0")) -> 0 | F105: =(D105*E105) -> 0
A106: 0 | B106: 0 | C106: 0 | D106: =Q103 -> 0 | E106: =IF(AND($B$94="SP",OR(AND($B$93="GÁS BRASILIANO",OR(Calculadora!$G$7="Comercial")))),IF(AND(A106<>0,B106=0),$C$100,IF(B106>=$C$100,$C$100,0)),IF($D$100<>"Faixa Única",IF($D$100<>"",IF(SUM($E$102:$E105,$B106)>=$C$100,$C$100-SUM($E$102:$E105),IF($B106=0,$C$100-SUM($E$102:$E105),$B106-$A106)),"0"),"0")) -> 0 | F106: 0
A107: 0 | B107: 0 | C107: 0 | D107: 0 | E107: =IF(AND($B$94="SP",OR(AND($B$93="GÁS BRASILIANO",OR(Calculadora!$G$7="Comercial")))),IF(AND(A107<>0,B107=0),$C$100,IF(B107>=$C$100,$C$100,0)),IF($D$100<>"Faixa Única",IF($D$100<>"",IF(SUM($E$102:$E106,$B107)>=$C$100,$C$100-SUM($E$102:$E106),IF($B107=0,$C$100-SUM($E$102:$E106),$B107-$A107)),"0"),"0")) -> 0 | F107: 0
A108: 0 | B108: 0 | C108: 0 | D108: 0 | E108: =IF(AND($B$94="SP",OR(AND($B$93="GÁS BRASILIANO",OR(Calculadora!$G$7="Comercial")))),IF(AND(A108<>0,B108=0),$C$100,IF(B108>=$C$100,$C$100,0)),IF($D$100<>"Faixa Única",IF($D$100<>"",IF(SUM($E$102:$E107,$B108)>=$C$100,$C$100-SUM($E$102:$E107),IF($B108=0,$C$100-SUM($E$102:$E107),$B108-$A108)),"0"),"0")) -> 0 | F108: 0
A109: 0 | B109: 0 | C109: 0 | D109: 0 | E109: =IF(AND($B$94="SP",OR(AND($B$93="GÁS BRASILIANO",OR(Calculadora!$G$7="Comercial")))),IF(AND(A109<>0,B109=0),$C$100,IF(B109>=$C$100,$C$100,0)),IF($D$100<>"Faixa Única",IF($D$100<>"",IF(SUM($E$102:$E108,$B109)>=$C$100,$C$100-SUM($E$102:$E108),IF($B109=0,$C$100-SUM($E$102:$E108),$B109-$A109)),"0"),"0")) -> 0 | F109: 0
A110: 0 | B110: 0 | C110: 0 | D110: 0 | E110: =IF(AND($B$94="SP",OR(AND($B$93="GÁS BRASILIANO",OR(Calculadora!$G$7="Comercial")))),IF(AND(A110<>0,B110=0),$C$100,IF(B110>=$C$100,$C$100,0)),IF($D$100<>"Faixa Única",IF($D$100<>"",IF(SUM($E$102:$E109,$B110)>=$C$100,$C$100-SUM($E$102:$E109),IF($B110=0,$C$100-SUM($E$102:$E109),$B110-$A110)),"0"),"0")) -> 0 | F110: 0
A111: 0 | B111: 0 | C111: 0 | D111: 0 | E111: =IF(AND($B$94="SP",OR(AND($B$93="GÁS BRASILIANO",OR(Calculadora!$G$7="Comercial")))),IF(AND(A111<>0,B111=0),$C$100,IF(B111>=$C$100,$C$100,0)),IF($D$100<>"Faixa Única",IF($D$100<>"",IF(SUM($E$102:$E110,$B111)>=$C$100,$C$100-SUM($E$102:$E110),IF($B111=0,$C$100-SUM($E$102:$E110),$B111-$A111)),"0"),"0")) -> 0 | F111: 0
A112: 0 | B112: 0 | C112: 0 | D112: 0 | E112: =IF(AND($B$94="SP",OR(AND($B$93="GÁS BRASILIANO",OR(Calculadora!$G$7="Comercial")))),IF(AND(A112<>0,B112=0),$C$100,IF(B112>=$C$100,$C$100,0)),IF($D$100<>"Faixa Única",IF($D$100<>"",IF(SUM($E$102:$E111,$B112)>=$C$100,$C$100-SUM($E$102:$E111),IF($B112=0,$C$100-SUM($E$102:$E111),$B112-$A112)),"0"),"0")) -> 0 | F112: 0
A113: 0 | B113: 0 | C113: 0 | D113: 0 | E113: =IF(AND($B$94="SP",OR(AND($B$93="GÁS BRASILIANO",OR(Calculadora!$G$7="Comercial")))),IF(AND(A113<>0,B113=0),$C$100,IF(B113>=$C$100,$C$100,0)),IF($D$100<>"Faixa Única",IF($D$100<>"",IF(SUM($E$102:$E112,$B113)>=$C$100,$C$100-SUM($E$102:$E112),IF($B113=0,$C$100-SUM($E$102:$E112),$B113-$A113)),"0"),"0")) -> 0 | F113: 0
A114: 0 | B114: 0 | C114: 0 | D114: 0 | E114: =IF(AND($B$94="SP",OR(AND($B$93="GÁS BRASILIANO",OR(Calculadora!$G$7="Comercial")))),IF(AND(A114<>0,B114=0),$C$100,IF(B114>=$C$100,$C$100,0)),IF($D$100<>"Faixa Única",IF($D$100<>"",IF(SUM($E$102:$E113,$B114)>=$C$100,$C$100-SUM($E$102:$E113),IF($B114=0,$C$100-SUM($E$102:$E113),$B114-$A114)),"0"),"0")) -> 0 | F114: 0
A115: 0 | B115: 0 | C115: 0 | D115: 0 | E115: =IF(AND($B$94="SP",OR(AND($B$93="GÁS BRASILIANO",OR(Calculadora!$G$7="Comercial")))),IF(AND(A115<>0,B115=0),$C$100,IF(B115>=$C$100,$C$100,0)),IF($D$100<>"Faixa Única",IF($D$100<>"",IF(SUM($E$102:$E114,$B115)>=$C$100,$C$100-SUM($E$102:$E114),IF($B115=0,$C$100-SUM($E$102:$E114),$B115-$A115)),"0"),"0")) -> 0 | F115: 0
D117: Subtotal | E117: =SUM(E102:E115) -> 0 | F117: =SUM(F102:F115) -> 0
D118: Termo Fixo | F118: =LARGE(C102:C115,1) -> 0
D119: Total c/ impostos | F119: =F117+F118 -> 0
A122: Distribuidora | B122: Naturgy SPS
B123: SP | D123: Independente: Residencial, Comercial e Industrial
A124: Volume | B124: =Calculadora!$J$9 -> 0 | C124: m³/dia
A126: Tarifa Média | B126: =IFERROR(F148/E146,"") ->  | G126: =_xlfn._xlws.FILTER(Tabela1[CONSUMO],(Calculadora!$J$9>=Tabela1[FAIXA INICIAL])*(Calculadora!$J$9<=Tabela1[FAIXA FINAL])*(Calculadora!$G$7=Tabela1[SEGMENTO])*($B$122=Tabela1[DISTRIBUIDORA])*("Itu"=Tabela1[MUNICÍPIO]),"") ->  | H126: =_xlfn._xlws.FILTER(Tabela1[CONSUMO],(Calculadora!$J$9>=Tabela1[FAIXA INICIAL])*(Calculadora!$G$7=Tabela1[SEGMENTO])*($B$122=Tabela1[DISTRIBUIDORA])*("Itu"=Tabela1[MUNICÍPIO]),"") ->  | I126: Faixa por volume x município x segmento
I127: Estado | J127: Município | K127: Agência Regularizadora | L127: Distribuidora | M127: Segmento | N127: Consumo | O127: Faixa Inicial | P127: Faixa Final | Q127: Variável | R127: Fixo
B128: m³/dia | C128: m³/dia | I128: =_xlfn._xlws.FILTER(Tabela1[[ESTADO]:[FIXO]],($C129>=Tabela1[FAIXA INICIAL])*(Calculadora!$G$7=Tabela1[SEGMENTO])*($B$122=Tabela1[DISTRIBUIDORA])*("Itu"=Tabela1[MUNICÍPIO]),"Não foi encontrado valor para esse município e segmento com esse volume") -> Não foi encontrado valor para esse município e segmento com esse volume
B129: =B124 -> 0 | C129: =IF($D129="Mensal",Calculadora!$J$9*30,IF($D129="Semanal",Calculadora!$J$9*7,IF($D129="Faixa Única",Calculadora!$J$9*30,Calculadora!$J$9))) -> 0 | D129: =IF(_xlfn._xlws.FILTER(Tabela1[CONSUMO],(Calculadora!$J$9>=Tabela1[FAIXA INICIAL])*(Calculadora!$J$9<=Tabela1[FAIXA FINAL])*(Calculadora!$G$7=Tabela1[SEGMENTO])*($B122=Tabela1[DISTRIBUIDORA])*("Itu" = Tabela1[MUNICÍPIO]),"")="", H126,G126) -> 
A130: Faixa de Consumo | C130: Fixo (R$/m³) | D130: Variável (R$/m³) | E130: Consumo (m³) | F130: Tarifa Aplicada (R$)
A131: =O128 -> 0 | B131: =P128 -> 0 | C131: =R128 -> 0 | D131: =Q128 -> 0 | E131: =IF(AND($B$123="SP",OR(AND($B$122="COMGÁS",OR(Calculadora!$G$7="Industrial",Calculadora!$G$7="Comercial")),AND($B$122="GÁS BRASILIANO",Calculadora!$G$7="Comercial"),AND($B$122="Naturgy SPS",Calculadora!$G$7<>"GNV"))),IF(AND(A131<>0,B131=0),$C$129,IF(B131>=$C$129,$C$129,0)),IF($D$129="Faixa Única",$C$129,IF($B131>=$C$129,$C$129,$B131-$A131))) -> 0 | F131: =(D131*E131) -> 0
A132: 0 | B132: 0 | C132: =R129 -> 0 | D132: =Q129 -> 0 | E132: =IF(AND($B$123="SP",OR(AND($B$122="COMGÁS",OR(Calculadora!$G$7="Industrial",Calculadora!$G$7="Comercial")),AND($B$122="GÁS BRASILIANO",Calculadora!$G$7="Comercial"),AND($B$122="Naturgy SPS",Calculadora!$G$7<>"GNV"))),IF(AND(A132<>0,B132=0),$C$129,IF(B132>=$C$129,$C$129,0)),IF($D$129<>"Faixa Única",IF($D$129<>"",IF(SUM($E$131:$E131,$B132)>=$C$129,$C$129-SUM($E$131:$E131),IF($B132=0,$C$129-SUM($E$131:$E131),$B132-$A132)),"0"),"0")) -> 0 | F132: =(D132*E132) -> 0
A133: 0 | B133: 0 | C133: =R130 -> 0 | D133: =Q130 -> 0 | E133: =IF(AND($B$123="SP",OR(AND($B$122="COMGÁS",OR(Calculadora!$G$7="Industrial",Calculadora!$G$7="Comercial")),AND($B$122="GÁS BRASILIANO",Calculadora!$G$7="Comercial"),AND($B$122="Naturgy SPS",Calculadora!$G$7<>"GNV"))),IF(AND(A133<>0,B133=0),$C$129,IF(B133>=$C$129,$C$129,0)),IF($D$129<>"Faixa Única",IF($D$129<>"",IF(SUM($E$131:$E132,$B133)>=$C$129,$C$129-SUM($E$131:$E132),IF($B133=0,$C$129-SUM($E$131:$E132),$B133-$A133)),"0"),"0")) -> 0 | F133: =(D133*E133) -> 0
A134: 0 | B134: 0 | C134: =R131 -> 0 | D134: =Q131 -> 0 | E134: =IF(AND($B$123="SP",OR(AND($B$122="COMGÁS",OR(Calculadora!$G$7="Industrial",Calculadora!$G$7="Comercial")),AND($B$122="GÁS BRASILIANO",Calculadora!$G$7="Comercial"),AND($B$122="Naturgy SPS",Calculadora!$G$7<>"GNV"))),IF(AND(A134<>0,B134=0),$C$129,IF(B134>=$C$129,$C$129,0)),IF($D$129<>"Faixa Única",IF($D$129<>"",IF(SUM($E$131:$E133,$B134)>=$C$129,$C$129-SUM($E$131:$E133),IF($B134=0,$C$129-SUM($E$131:$E133),$B134-$A134)),"0"),"0")) -> 0 | F134: =(D134*E134) -> 0
A135: 0 | B135: 0 | C135: 0 | D135: 0 | E135: =IF(AND($B$123="SP",OR(AND($B$122="COMGÁS",OR(Calculadora!$G$7="Industrial",Calculadora!$G$7="Comercial")),AND($B$122="GÁS BRASILIANO",Calculadora!$G$7="Comercial"),AND($B$122="Naturgy SPS",Calculadora!$G$7<>"GNV"))),IF(AND(A135<>0,B135=0),$C$129,IF(B135>=$C$129,$C$129,0)),IF($D$129<>"Faixa Única",IF($D$129<>"",IF(SUM($E$131:$E134,$B135)>=$C$129,$C$129-SUM($E$131:$E134),IF($B135=0,$C$129-SUM($E$131:$E134),$B135-$A135)),"0"),"0")) -> 0 | F135: 0
A136: 0 | B136: 0 | C136: 0 | D136: 0 | E136: =IF(AND($B$123="SP",OR(AND($B$122="COMGÁS",OR(Calculadora!$G$7="Industrial",Calculadora!$G$7="Comercial")),AND($B$122="GÁS BRASILIANO",Calculadora!$G$7="Comercial"),AND($B$122="Naturgy SPS",Calculadora!$G$7<>"GNV"))),IF(AND(A136<>0,B136=0),$C$129,IF(B136>=$C$129,$C$129,0)),IF($D$129<>"Faixa Única",IF($D$129<>"",IF(SUM($E$131:$E135,$B136)>=$C$129,$C$129-SUM($E$131:$E135),IF($B136=0,$C$129-SUM($E$131:$E135),$B136-$A136)),"0"),"0")) -> 0 | F136: 0
A137: 0 | B137: 0 | C137: 0 | D137: 0 | E137: =IF(AND($B$123="SP",OR(AND($B$122="COMGÁS",OR(Calculadora!$G$7="Industrial",Calculadora!$G$7="Comercial")),AND($B$122="GÁS BRASILIANO",Calculadora!$G$7="Comercial"),AND($B$122="Naturgy SPS",Calculadora!$G$7<>"GNV"))),IF(AND(A137<>0,B137=0),$C$129,IF(B137>=$C$129,$C$129,0)),IF($D$129<>"Faixa Única",IF($D$129<>"",IF(SUM($E$131:$E136,$B137)>=$C$129,$C$129-SUM($E$131:$E136),IF($B137=0,$C$129-SUM($E$131:$E136),$B137-$A137)),"0"),"0")) -> 0 | F137: 0
A138: 0 | B138: 0 | C138: 0 | D138: 0 | E138: =IF(AND($B$123="SP",OR(AND($B$122="COMGÁS",OR(Calculadora!$G$7="Industrial",Calculadora!$G$7="Comercial")),AND($B$122="GÁS BRASILIANO",Calculadora!$G$7="Comercial"),AND($B$122="Naturgy SPS",Calculadora!$G$7<>"GNV"))),IF(AND(A138<>0,B138=0),$C$129,IF(B138>=$C$129,$C$129,0)),IF($D$129<>"Faixa Única",IF($D$129<>"",IF(SUM($E$131:$E137,$B138)>=$C$129,$C$129-SUM($E$131:$E137),IF($B138=0,$C$129-SUM($E$131:$E137),$B138-$A138)),"0"),"0")) -> 0 | F138: 0
A139: 0 | B139: 0 | C139: 0 | D139: 0 | E139: =IF(AND($B$123="SP",OR(AND($B$122="COMGÁS",OR(Calculadora!$G$7="Industrial",Calculadora!$G$7="Comercial")),AND($B$122="GÁS BRASILIANO",Calculadora!$G$7="Comercial"),AND($B$122="Naturgy SPS",Calculadora!$G$7<>"GNV"))),IF(AND(A139<>0,B139=0),$C$129,IF(B139>=$C$129,$C$129,0)),IF($D$129<>"Faixa Única",IF($D$129<>"",IF(SUM($E$131:$E138,$B139)>=$C$129,$C$129-SUM($E$131:$E138),IF($B139=0,$C$129-SUM($E$131:$E138),$B139-$A139)),"0"),"0")) -> 0 | F139: 0
A140: 0 | B140: 0 | C140: 0 | D140: 0 | E140: =IF(AND($B$123="SP",OR(AND($B$122="COMGÁS",OR(Calculadora!$G$7="Industrial",Calculadora!$G$7="Comercial")),AND($B$122="GÁS BRASILIANO",Calculadora!$G$7="Comercial"),AND($B$122="Naturgy SPS",Calculadora!$G$7<>"GNV"))),IF(AND(A140<>0,B140=0),$C$129,IF(B140>=$C$129,$C$129,0)),IF($D$129<>"Faixa Única",IF($D$129<>"",IF(SUM($E$131:$E139,$B140)>=$C$129,$C$129-SUM($E$131:$E139),IF($B140=0,$C$129-SUM($E$131:$E139),$B140-$A140)),"0"),"0")) -> 0 | F140: 0
A141: 0 | B141: 0 | C141: 0 | D141: 0 | E141: =IF(AND($B$123="SP",OR(AND($B$122="COMGÁS",OR(Calculadora!$G$7="Industrial",Calculadora!$G$7="Comercial")),AND($B$122="GÁS BRASILIANO",Calculadora!$G$7="Comercial"),AND($B$122="Naturgy SPS",Calculadora!$G$7<>"GNV"))),IF(AND(A141<>0,B141=0),$C$129,IF(B141>=$C$129,$C$129,0)),IF($D$129<>"Faixa Única",IF($D$129<>"",IF(SUM($E$131:$E140,$B141)>=$C$129,$C$129-SUM($E$131:$E140),IF($B141=0,$C$129-SUM($E$131:$E140),$B141-$A141)),"0"),"0")) -> 0 | F141: 0
A142: 0 | B142: 0 | C142: 0 | D142: 0 | E142: =IF(AND($B$123="SP",OR(AND($B$122="COMGÁS",OR(Calculadora!$G$7="Industrial",Calculadora!$G$7="Comercial")),AND($B$122="GÁS BRASILIANO",Calculadora!$G$7="Comercial"),AND($B$122="Naturgy SPS",Calculadora!$G$7<>"GNV"))),IF(AND(A142<>0,B142=0),$C$129,IF(B142>=$C$129,$C$129,0)),IF($D$129<>"Faixa Única",IF($D$129<>"",IF(SUM($E$131:$E141,$B142)>=$C$129,$C$129-SUM($E$131:$E141),IF($B142=0,$C$129-SUM($E$131:$E141),$B142-$A142)),"0"),"0")) -> 0 | F142: 0
A143: 0 | B143: 0 | C143: 0 | D143: 0 | E143: =IF(AND($B$123="SP",OR(AND($B$122="COMGÁS",OR(Calculadora!$G$7="Industrial",Calculadora!$G$7="Comercial")),AND($B$122="GÁS BRASILIANO",Calculadora!$G$7="Comercial"),AND($B$122="Naturgy SPS",Calculadora!$G$7<>"GNV"))),IF(AND(A143<>0,B143=0),$C$129,IF(B143>=$C$129,$C$129,0)),IF($D$129<>"Faixa Única",IF($D$129<>"",IF(SUM($E$131:$E142,$B143)>=$C$129,$C$129-SUM($E$131:$E142),IF($B143=0,$C$129-SUM($E$131:$E142),$B143-$A143)),"0"),"0")) -> 0 | F143: 0
A144: 0 | B144: 0 | C144: 0 | D144: 0 | E144: =IF(AND($B$123="SP",OR(AND($B$122="COMGÁS",OR(Calculadora!$G$7="Industrial",Calculadora!$G$7="Comercial")),AND($B$122="GÁS BRASILIANO",Calculadora!$G$7="Comercial"),AND($B$122="Naturgy SPS",Calculadora!$G$7<>"GNV"))),IF(AND(A144<>0,B144=0),$C$129,IF(B144>=$C$129,$C$129,0)),IF($D$129<>"Faixa Única",IF($D$129<>"",IF(SUM($E$131:$E143,$B144)>=$C$129,$C$129-SUM($E$131:$E143),IF($B144=0,$C$129-SUM($E$131:$E143),$B144-$A144)),"0"),"0")) -> 0 | F144: 0
D146: Subtotal | E146: =SUM(E131:E144) -> 0 | F146: =SUM(F131:F144) -> 0
D147: Termo Fixo | F147: =LARGE(C131:C144,1) -> 0
D148: Total c/ impostos | F148: =F146+F147 -> 0
A151: Distribuidora | B151: CEG RIO
A153: Volume | B153: =Calculadora!$J$9 -> 0 | C153: m³/dia
A155: Tarifa Média | B155: =IFERROR(F177/E175,"") ->  | G155: =_xlfn._xlws.FILTER(Tabela1[CONSUMO],(Calculadora!$J$9>=Tabela1[FAIXA INICIAL])*(Calculadora!$J$9<=Tabela1[FAIXA FINAL])*(Calculadora!$G$7=Tabela1[SEGMENTO])*($B$151=Tabela1[DISTRIBUIDORA])*("Angra dos Reis"=Tabela1[MUNICÍPIO]),"") ->  | H155: =_xlfn._xlws.FILTER(Tabela1[CONSUMO],(Calculadora!$J$9>=Tabela1[FAIXA INICIAL])*(Calculadora!$G$7=Tabela1[SEGMENTO])*($B$151=Tabela1[DISTRIBUIDORA])*("Angra dos Reis"=Tabela1[MUNICÍPIO]),"") ->  | I155: Faixa por volume x município x segmento
I156: Estado | J156: Município | K156: Agência Regularizadora | L156: Distribuidora | M156: Segmento | N156: Consumo | O156: Faixa Inicial | P156: Faixa Final | Q156: Variável | R156: Fixo
B157: m³/dia | C157: m³/dia | I157: =_xlfn._xlws.FILTER(Tabela1[[ESTADO]:[FIXO]],($C158>=Tabela1[FAIXA INICIAL])*(Calculadora!$G$7=Tabela1[SEGMENTO])*($B$151=Tabela1[DISTRIBUIDORA])*("Angra dos Reis"=Tabela1[MUNICÍPIO]),"Não foi encontrado valor para esse município e segmento com esse volume") -> Não foi encontrado valor para esse município e segmento com esse volume
B158: =B153 -> 0 | C158: =IF($D158="Mensal",Calculadora!$J$9*30,IF($D158="Semanal",Calculadora!$J$9*7,IF($D158="Faixa Única",Calculadora!$J$9*30,Calculadora!$J$9))) -> 0 | D158: =IF(_xlfn._xlws.FILTER(Tabela1[CONSUMO],(Calculadora!$J$9>=Tabela1[FAIXA INICIAL])*(Calculadora!$J$9<=Tabela1[FAIXA FINAL])*(Calculadora!$G$7=Tabela1[SEGMENTO])*($B151=Tabela1[DISTRIBUIDORA])*("Angra dos Reis" = Tabela1[MUNICÍPIO]),"")="", H155,G155) -> 
A159: Faixa de Consumo | C159: Fixo (R$/m³) | D159: Variável (R$/m³) | E159: Consumo (m³) | F159: Tarifa Aplicada (R$)
A160: =O157 -> 0 | B160: =P157 -> 0 | C160: =R157 -> 0 | D160: =Q157 -> 0 | E160: =IF($D$158="Faixa Única",$C$158,IF(B160>C158,C158,B160-A160)) -> 0 | F160: =(D160*E160) -> 0
A161: 0 | B161: 0 | C161: =R158 -> 0 | D161: =Q158 -> 0 | E161: =IF($D$158<>"Faixa Única",IF($C$158<>"",IF(SUM(E160,B161)>=$C$158,$C$158-(E160),IF(B161=0,$C$158-SUM(E160),B161-A161)),"0"),"0") -> 0 | F161: =(D161*E161) -> 0
A162: 0 | B162: 0 | C162: =R159 -> 0 | D162: =Q159 -> 0 | E162: =IF($D$158<>"Faixa Única",IF($C$158<>"",IF(SUM(E161,B162)>=$C$158,$C$158-SUM($E$160:E161),IF(B162=0,$C$158-SUM($E$160:E161),B162-A162)),"0"),"0") -> 0 | F162: =(D162*E162) -> 0
A163: 0 | B163: 0 | C163: =R160 -> 0 | D163: =Q160 -> 0 | E163: =IF($D$158<>"Faixa Única",IF($C$158<>"",IF(SUM(E162,B163)>=$C$158,$C$158-SUM($E$160:E162),IF(B163=0,$C$158-SUM($E$160:E162),B163-A163)),"0"),"0") -> 0 | F163: =(D163*E163) -> 0
A164: 0 | B164: 0 | C164: 0 | D164: =Q161 -> 0 | E164: =IF($D$158<>"Faixa Única",IF($C$158<>"",IF(SUM(E163,B164)>=$C$158,$C$158-SUM($E$160:E163),IF(B164=0,$C$158-SUM($E$160:E163),B164-A164)),"0"),"0") -> 0 | F164: 0
A165: 0 | B165: 0 | C165: 0 | D165: =Q162 -> 0 | E165: =IF($D$158<>"Faixa Única",IF($C$158<>"",IF(SUM(E164,B165)>=$C$158,$C$158-SUM($E$160:E164),IF(B165=0,$C$158-SUM($E$160:E164),B165-A165)),"0"),"0") -> 0 | F165: 0
A166: 0 | B166: 0 | C166: 0 | D166: 0 | E166: =IF($D$158<>"Faixa Única",IF($C$158<>"",IF(SUM(E165,B166)>=$C$158,$C$158-SUM($E$160:E165),IF(B166=0,$C$158-SUM($E$160:E165),B166-A166)),"0"),"0") -> 0 | F166: 0
A167: 0 | B167: 0 | C167: 0 | D167: 0 | E167: =IF($D$158<>"Faixa Única",IF($C$158<>"",IF(SUM(E166,B167)>=$C$158,$C$158-SUM($E$160:E166),IF(B167=0,$C$158-SUM($E$160:E166),B167-A167)),"0"),"0") -> 0 | F167: 0
A168: 0 | B168: 0 | C168: 0 | D168: 0 | E168: =IF($D$158<>"Faixa Única",IF($C$158<>"",IF(SUM(E167,B168)>=$C$158,$C$158-SUM($E$160:E167),IF(B168=0,$C$158-SUM($E$160:E167),B168-A168)),"0"),"0") -> 0 | F168: 0
A169: 0 | B169: 0 | C169: 0 | D169: 0 | E169: =IF($D$158<>"Faixa Única",IF($C$158<>"",IF(SUM(E168,B169)>=$C$158,$C$158-SUM($E$160:E168),IF(B169=0,$C$158-SUM($E$160:E168),B169-A169)),"0"),"0") -> 0 | F169: 0
A170: 0 | B170: 0 | C170: 0 | D170: 0 | E170: =IF($D$158<>"Faixa Única",IF($C$158<>"",IF(SUM(E169,B170)>=$C$158,$C$158-SUM($E$160:E169),IF(B170=0,$C$158-SUM($E$160:E169),B170-A170)),"0"),"0") -> 0 | F170: 0
A171: 0 | B171: 0 | C171: 0 | D171: 0 | E171: =IF($D$158<>"Faixa Única",IF($C$158<>"",IF(SUM(E170,B171)>=$C$158,$C$158-SUM($E$160:E170),IF(B171=0,$C$158-SUM($E$160:E170),B171-A171)),"0"),"0") -> 0 | F171: 0
A172: 0 | B172: 0 | C172: 0 | D172: 0 | E172: =IF($D$158<>"Faixa Única",IF($C$158<>"",IF(SUM(E171,B172)>=$C$158,$C$158-SUM($E$160:E171),IF(B172=0,$C$158-SUM($E$160:E171),B172-A172)),"0"),"0") -> 0 | F172: 0
A173: 0 | B173: 0 | C173: 0 | D173: 0 | E173: =IF($D$158<>"Faixa Única",IF($C$158<>"",IF(SUM(E172,B173)>=$C$158,$C$158-SUM($E$160:E172),IF(B173=0,$C$158-SUM($E$160:E172),B173-A173)),"0"),"0") -> 0 | F173: 0
D175: Subtotal | E175: =SUM(E160:E173) -> 0 | F175: =SUM(F160:F173) -> 0
D176: Termo Fixo | F176: =LARGE(C160:C173,1) -> 0
D177: Total c/ impostos | F177: =F175+F176 -> 0
A180: Distribuidora | B180: ESGÁS
A182: Volume | B182: =Calculadora!$J$9 -> 0 | C182: m³/dia
A184: Tarifa Média | B184: =IFERROR(F206/E204,"") ->  | G184: =_xlfn._xlws.FILTER(Tabela1[CONSUMO],(Calculadora!$J$9>=Tabela1[FAIXA INICIAL])*(Calculadora!$J$9<=Tabela1[FAIXA FINAL])*(Calculadora!$G$7=Tabela1[SEGMENTO])*($B$180=Tabela1[DISTRIBUIDORA]),"") ->  | H184: =_xlfn._xlws.FILTER(Tabela1[CONSUMO],(Calculadora!$J$9>=Tabela1[FAIXA INICIAL])*(Calculadora!$G$7=Tabela1[SEGMENTO])*($B$180=Tabela1[DISTRIBUIDORA]),"") ->  | I184: Faixa por volume x município x segmento
I185: Estado | J185: Município | K185: Agência Regularizadora | L185: Distribuidora | M185: Segmento | N185: Consumo | O185: Faixa Inicial | P185: Faixa Final | Q185: Variável | R185: Fixo
B186: m³/dia | C186: m³/dia | I186: =_xlfn._xlws.FILTER(Tabela1[[ESTADO]:[FIXO]],($C187>=Tabela1[FAIXA INICIAL])*(Calculadora!$G$7=Tabela1[SEGMENTO])*($B$180=Tabela1[DISTRIBUIDORA]),"Não foi encontrado valor para esse município e segmento com esse volume") -> Não foi encontrado valor para esse município e segmento com esse volume
B187: =B182 -> 0 | C187: =IF($D187="Mensal",Calculadora!$J$9*30,IF($D187="Semanal",Calculadora!$J$9*7,IF($D187="Faixa Única",Calculadora!$J$9*30,Calculadora!$J$9))) -> 0 | D187: =IF(_xlfn._xlws.FILTER(Tabela1[CONSUMO],(Calculadora!$J$9>=Tabela1[FAIXA INICIAL])*(Calculadora!$J$9<=Tabela1[FAIXA FINAL])*(Calculadora!$G$7=Tabela1[SEGMENTO])*($B180=Tabela1[DISTRIBUIDORA]),"")="", H184,G184) -> 
A188: Faixa de Consumo | C188: Fixo (R$/m³) | D188: Variável (R$/m³) | E188: Consumo (m³) | F188: Tarifa Aplicada (R$)
A189: =O186 -> 0 | B189: =P186 -> 0 | C189: =R186 -> 0 | D189: =Q186 -> 0 | E189: =IF($D$187="Faixa Única",$C$187,IF(B189>C187,C187,B189-A189)) -> 0 | F189: =(D189*E189) -> 0
A190: 0 | B190: 0 | C190: =R187 -> 0 | D190: =Q187 -> 0 | E190: =IF($D$187<>"Faixa Única",IF($C$187<>"",IF(SUM(E189,B190)>=$C$187,$C$187-(E189),IF(B190=0,$C$187-SUM(E189),B190-A190)),"0"),"0") -> 0 | F190: =(D190*E190) -> 0
A191: 0 | B191: 0 | C191: =R188 -> 0 | D191: =Q188 -> 0 | E191: =IF($D$187<>"Faixa Única",IF($C$187<>"",IF(SUM(E190,B191)>=$C$187,$C$187-SUM($E$189:E190),IF(B191=0,$C$187-SUM($E$189:E190),B191-A191)),"0"),"0") -> 0 | F191: =(D191*E191) -> 0
A192: 0 | B192: 0 | C192: =R189 -> 0 | D192: =Q189 -> 0 | E192: =IF($D$187<>"Faixa Única",IF($C$187<>"",IF(SUM(E191,B192)>=$C$187,$C$187-SUM($E$189:E191),IF(B192=0,$C$187-SUM($E$189:E191),B192-A192)),"0"),"0") -> 0 | F192: =(D192*E192) -> 0
A193: 0 | B193: 0 | C193: 0 | D193: =Q190 -> 0 | E193: =IF($D$187<>"Faixa Única",IF($C$187<>"",IF(SUM(E192,B193)>=$C$187,$C$187-SUM($E$189:E192),IF(B193=0,$C$187-SUM($E$189:E192),B193-A193)),"0"),"0") -> 0 | F193: 0
A194: 0 | B194: 0 | C194: 0 | D194: =Q191 -> 0 | E194: =IF($D$187<>"Faixa Única",IF($C$187<>"",IF(SUM(E193,B194)>=$C$187,$C$187-SUM($E$189:E193),IF(B194=0,$C$187-SUM($E$189:E193),B194-A194)),"0"),"0") -> 0 | F194: 0
A195: 0 | B195: 0 | C195: 0 | D195: 0 | E195: =IF($D$187<>"Faixa Única",IF($C$187<>"",IF(SUM(E194,B195)>=$C$187,$C$187-SUM($E$189:E194),IF(B195=0,$C$187-SUM($E$189:E194),B195-A195)),"0"),"0") -> 0 | F195: 0
A196: 0 | B196: 0 | C196: 0 | D196: 0 | E196: =IF($D$187<>"Faixa Única",IF($C$187<>"",IF(SUM(E195,B196)>=$C$187,$C$187-SUM($E$189:E195),IF(B196=0,$C$187-SUM($E$189:E195),B196-A196)),"0"),"0") -> 0 | F196: 0
A197: 0 | B197: 0 | C197: 0 | D197: 0 | E197: =IF($D$187<>"Faixa Única",IF($C$187<>"",IF(SUM(E196,B197)>=$C$187,$C$187-SUM($E$189:E196),IF(B197=0,$C$187-SUM($E$189:E196),B197-A197)),"0"),"0") -> 0 | F197: 0
A198: 0 | B198: 0 | C198: 0 | D198: 0 | E198: =IF($D$187<>"Faixa Única",IF($C$187<>"",IF(SUM(E197,B198)>=$C$187,$C$187-SUM($E$189:E197),IF(B198=0,$C$187-SUM($E$189:E197),B198-A198)),"0"),"0") -> 0 | F198: 0
A199: 0 | B199: 0 | C199: 0 | D199: 0 | E199: =IF($D$187<>"Faixa Única",IF($C$187<>"",IF(SUM(E198,B199)>=$C$187,$C$187-SUM($E$189:E198),IF(B199=0,$C$187-SUM($E$189:E198),B199-A199)),"0"),"0") -> 0 | F199: 0
A200: 0 | B200: 0 | C200: 0 | D200: 0 | E200: =IF($D$187<>"Faixa Única",IF($C$187<>"",IF(SUM(E199,B200)>=$C$187,$C$187-SUM($E$189:E199),IF(B200=0,$C$187-SUM($E$189:E199),B200-A200)),"0"),"0") -> 0 | F200: 0
A201: 0 | B201: 0 | C201: 0 | D201: 0 | E201: =IF($D$187<>"Faixa Única",IF($C$187<>"",IF(SUM(E200,B201)>=$C$187,$C$187-SUM($E$189:E200),IF(B201=0,$C$187-SUM($E$189:E200),B201-A201)),"0"),"0") -> 0 | F201: 0
A202: 0 | B202: 0 | C202: 0 | D202: 0 | E202: =IF($D$187<>"Faixa Única",IF($C$187<>"",IF(SUM(E201,B202)>=$C$187,$C$187-SUM($E$189:E201),IF(B202=0,$C$187-SUM($E$189:E201),B202-A202)),"0"),"0") -> 0 | F202: 0
D204: Subtotal | E204: =SUM(E189:E202) -> 0 | F204: =SUM(F189:F202) -> 0
D205: Termo Fixo | F205: =LARGE(C189:C202,1) -> 0
D206: Total c/ impostos | F206: =F204+F205 -> 0
A209: Distribuidora | B209: SCGÁS
A211: Volume | B211: =Calculadora!$J$9 -> 0 | C211: m³/dia
A213: Tarifa Média | B213: =IFERROR(F235/E233,"") ->  | G213: =_xlfn._xlws.FILTER(Tabela1[CONSUMO],(Calculadora!$J$9>=Tabela1[FAIXA INICIAL])*(Calculadora!$J$9<=Tabela1[FAIXA FINAL])*(Calculadora!$G$7=Tabela1[SEGMENTO])*($B$209=Tabela1[DISTRIBUIDORA]),"") ->  | H213: =_xlfn._xlws.FILTER(Tabela1[CONSUMO],(Calculadora!$J$9>=Tabela1[FAIXA INICIAL])*(Calculadora!$G$7=Tabela1[SEGMENTO])*($B$209=Tabela1[DISTRIBUIDORA]),"") ->  | I213: Faixa por volume x município x segmento
I214: Estado | J214: Município | K214: Agência Regularizadora | L214: Distribuidora | M214: Segmento | N214: Consumo | O214: Faixa Inicial | P214: Faixa Final | Q214: Variável | R214: Fixo
B215: m³/dia | C215: m³/dia | I215: =_xlfn._xlws.FILTER(Tabela1[[ESTADO]:[FIXO]],($C216>=Tabela1[FAIXA INICIAL])*(Calculadora!$G$7=Tabela1[SEGMENTO])*($B$209=Tabela1[DISTRIBUIDORA]),"Não foi encontrado valor para esse município e segmento com esse volume") -> Não foi encontrado valor para esse município e segmento com esse volume
B216: =B211 -> 0 | C216: =IF($D216="Mensal",Calculadora!$J$9*30,IF($D216="Semanal",Calculadora!$J$9*7,IF($D216="Faixa Única",Calculadora!$J$9*30,Calculadora!$J$9))) -> 0 | D216: =IF(_xlfn._xlws.FILTER(Tabela1[CONSUMO],(Calculadora!$J$9>=Tabela1[FAIXA INICIAL])*(Calculadora!$J$9<=Tabela1[FAIXA FINAL])*(Calculadora!$G$7=Tabela1[SEGMENTO])*($B$209=Tabela1[DISTRIBUIDORA]),"")="", H213,G213) -> 
A217: Faixa de Consumo | C217: Fixo (R$/m³) | D217: Variável (R$/m³) | E217: Consumo (m³) | F217: Tarifa Aplicada (R$)
A218: =O215 -> 0 | B218: =P215 -> 0 | C218: =R215 -> 0 | D218: =Q215 -> 0 | E218: =IF($D$216="Faixa Única",$C$216,IF(B218>C216,C216,B218-A218)) -> 0 | F218: =(D218*E218) -> 0
A219: 0 | B219: 0 | C219: =R216 -> 0 | D219: =Q216 -> 0 | E219: =IF($D$216<>"Faixa Única",IF($C$216<>"",IF(SUM(E218,B219)>=$C$216,$C$216-(E218),IF(B219=0,$C$216-SUM(E218),B219-A219)),"0"),"0") -> 0 | F219: =(D219*E219) -> 0
A220: 0 | B220: 0 | C220: =R217 -> 0 | D220: =Q217 -> 0 | E220: =IF($D$216<>"Faixa Única",IF($C$216<>"",IF(SUM(E219,B220)>=$C$216,$C$216-SUM($E$218:E219),IF(B220=0,$C$216-SUM($E$218:E219),B220-A220)),"0"),"0") -> 0 | F220: =(D220*E220) -> 0
A221: 0 | B221: 0 | C221: =R218 -> 0 | D221: =Q218 -> 0 | E221: =IF($D$216<>"Faixa Única",IF($C$216<>"",IF(SUM(E220,B221)>=$C$216,$C$216-SUM($E$218:E220),IF(B221=0,$C$216-SUM($E$218:E220),B221-A221)),"0"),"0") -> 0 | F221: =(D221*E221) -> 0
A222: 0 | B222: 0 | C222: 0 | D222: =Q219 -> 0 | E222: =IF($D$216<>"Faixa Única",IF($C$216<>"",IF(SUM(E221,B222)>=$C$216,$C$216-SUM($E$218:E221),IF(B222=0,$C$216-SUM($E$218:E221),B222-A222)),"0"),"0") -> 0 | F222: 0
A223: 0 | B223: 0 | C223: 0 | D223: =Q220 -> 0 | E223: =IF($D$216<>"Faixa Única",IF($C$216<>"",IF(SUM(E222,B223)>=$C$216,$C$216-SUM($E$218:E222),IF(B223=0,$C$216-SUM($E$218:E222),B223-A223)),"0"),"0") -> 0 | F223: 0
A224: 0 | B224: 0 | C224: 0 | D224: 0 | E224: =IF($D$216<>"Faixa Única",IF($C$216<>"",IF(SUM(E223,B224)>=$C$216,$C$216-SUM($E$218:E223),IF(B224=0,$C$216-SUM($E$218:E223),B224-A224)),"0"),"0") -> 0 | F224: 0
A225: 0 | B225: 0 | C225: 0 | D225: 0 | E225: =IF($D$216<>"Faixa Única",IF($C$216<>"",IF(SUM(E224,B225)>=$C$216,$C$216-SUM($E$218:E224),IF(B225=0,$C$216-SUM($E$218:E224),B225-A225)),"0"),"0") -> 0 | F225: 0
A226: 0 | B226: 0 | C226: 0 | D226: 0 | E226: =IF($D$216<>"Faixa Única",IF($C$216<>"",IF(SUM(E225,B226)>=$C$216,$C$216-SUM($E$218:E225),IF(B226=0,$C$216-SUM($E$218:E225),B226-A226)),"0"),"0") -> 0 | F226: 0
A227: 0 | B227: 0 | C227: 0 | D227: 0 | E227: =IF($D$216<>"Faixa Única",IF($C$216<>"",IF(SUM(E226,B227)>=$C$216,$C$216-SUM($E$218:E226),IF(B227=0,$C$216-SUM($E$218:E226),B227-A227)),"0"),"0") -> 0 | F227: 0
A228: 0 | B228: 0 | C228: 0 | D228: 0 | E228: =IF($D$216<>"Faixa Única",IF($C$216<>"",IF(SUM(E227,B228)>=$C$216,$C$216-SUM($E$218:E227),IF(B228=0,$C$216-SUM($E$218:E227),B228-A228)),"0"),"0") -> 0 | F228: 0
A229: 0 | B229: 0 | C229: 0 | D229: 0 | E229: =IF($D$216<>"Faixa Única",IF($C$216<>"",IF(SUM(E228,B229)>=$C$216,$C$216-SUM($E$218:E228),IF(B229=0,$C$216-SUM($E$218:E228),B229-A229)),"0"),"0") -> 0 | F229: 0
A230: 0 | B230: 0 | C230: 0 | D230: 0 | E230: =IF($D$216<>"Faixa Única",IF($C$216<>"",IF(SUM(E229,B230)>=$C$216,$C$216-SUM($E$218:E229),IF(B230=0,$C$216-SUM($E$218:E229),B230-A230)),"0"),"0") -> 0 | F230: 0
A231: 0 | B231: 0 | C231: 0 | D231: 0 | E231: =IF($D$216<>"Faixa Única",IF($C$216<>"",IF(SUM(E230,B231)>=$C$216,$C$216-SUM($E$218:E230),IF(B231=0,$C$216-SUM($E$218:E230),B231-A231)),"0"),"0") -> 0 | F231: 0
D233: Subtotal | E233: =SUM(E218:E231) -> 0 | F233: =SUM(F218:F231) -> 0
D234: Termo Fixo | F234: =LARGE(C218:C231,1) -> 0
D235: Total c/ impostos | F235: =F233+F234 -> 0
A238: Distribuidora | B238: SULGÁS
A240: Volume | B240: =Calculadora!$J$9 -> 0 | C240: m³/dia
A242: Tarifa Média | B242: =IFERROR(F264/E262,"") ->  | G242: =_xlfn._xlws.FILTER(Tabela1[CONSUMO],(Calculadora!$J$9>=Tabela1[FAIXA INICIAL])*(Calculadora!$J$9<=Tabela1[FAIXA FINAL])*(Calculadora!$G$7=Tabela1[SEGMENTO])*($B$238=Tabela1[DISTRIBUIDORA]),"") ->  | H242: =_xlfn._xlws.FILTER(Tabela1[CONSUMO],(Calculadora!$J$9>=Tabela1[FAIXA INICIAL])*(Calculadora!$G$7=Tabela1[SEGMENTO])*($B$238=Tabela1[DISTRIBUIDORA]),"") ->  | I242: Faixa por volume x município x segmento
I243: Estado | J243: Município | K243: Agência Regularizadora | L243: Distribuidora | M243: Segmento | N243: Consumo | O243: Faixa Inicial | P243: Faixa Final | Q243: Variável | R243: Fixo
B244: m³/dia | C244: m³/dia | I244: =_xlfn._xlws.FILTER(Tabela1[[ESTADO]:[FIXO]],($C245>=Tabela1[FAIXA INICIAL])*(Calculadora!$G$7=Tabela1[SEGMENTO])*($B$238=Tabela1[DISTRIBUIDORA]),"Não foi encontrado valor para esse município e segmento com esse volume") -> Não foi encontrado valor para esse município e segmento com esse volume
... 261 more rows

Sheet Dados Gráfico (hidden)
A1: Distribuidora | B1: Tarifa Média | D1: Distribuidora | E1: Tarifa Média | F1: Desempate
A2: ALGÁS (AL) | B2: ='Base Gráfico'!B329 ->  | D2: =INDEX($A$2:$B$20,MATCH(ROW(A1),$F$2:$F$20,0),1) ->  | E2: =INDEX($A$2:$B$20,MATCH(ROW(A1),$F$2:$F$20,0),2) ->  | F2: =_xlfn.RANK.EQ(B2,$B$2:$B$20,0)+COUNTIF($B$2:B2,B2)-1 -> 
A3: BAHIAGÁS (BA) | B3: ='Base Gráfico'!B271 ->  | D3: =INDEX($A$2:$B$20,MATCH(ROW(A2),$F$2:$F$20,0),1) ->  | E3: =INDEX($A$2:$B$20,MATCH(ROW(A2),$F$2:$F$20,0),2) ->  | F3: =_xlfn.RANK.EQ(B3,$B$2:$B$20,0)+COUNTIF($B$2:B3,B3)-1 -> 
A4: CEG (RJ) | B4: ='Base Gráfico'!B9 ->  | F4: =_xlfn.RANK.EQ(B4,$B$2:$B$20,0)+COUNTIF($B$2:B4,B4)-1 -> 
A5: CEG RIO (RJ) | B5: ='Base Gráfico'!B155 ->  | F5: =_xlfn.RANK.EQ(B5,$B$2:$B$20,0)+COUNTIF($B$2:B5,B5)-1 -> 
A6: CEGÁS (CE) | B6: ='Base Gráfico'!B445 ->  | F6: =_xlfn.RANK.EQ(B6,$B$2:$B$20,0)+COUNTIF($B$2:B6,B6)-1 -> 
A7: CIGÁS (AM) | B7: ='Base Gráfico'!B503 ->  | F7: =_xlfn.RANK.EQ(B7,$B$2:$B$20,0)+COUNTIF($B$2:B7,B7)-1 -> 
A8: COMGÁS (SP) | B8: ='Base Gráfico'!B68 ->  | F8: =_xlfn.RANK.EQ(B8,$B$2:$B$20,0)+COUNTIF($B$2:B8,B8)-1 -> 
A9: COMPAGAS (PR) | B9: ='Base Gráfico'!B532 ->  | F9: =_xlfn.RANK.EQ(B9,$B$2:$B$20,0)+COUNTIF($B$2:B9,B9)-1 -> 
A10: COPERGÁS (PE) | B10: ='Base Gráfico'!B358 ->  | F10: =_xlfn.RANK.EQ(B10,$B$2:$B$20,0)+COUNTIF($B$2:B10,B10)-1 -> 
A11: ESGÁS (ES) | B11: ='Base Gráfico'!B184 ->  | F11: =_xlfn.RANK.EQ(B11,$B$2:$B$20,0)+COUNTIF($B$2:B11,B11)-1 -> 
A12: GÁS BRASILIANO (SP) | B12: ='Base Gráfico'!B97 ->  | F12: =_xlfn.RANK.EQ(B12,$B$2:$B$20,0)+COUNTIF($B$2:B12,B12)-1 -> 
A13: GASMIG (MG) | B13: ='Base Gráfico'!B39 ->  | F13: =_xlfn.RANK.EQ(B13,$B$2:$B$20,0)+COUNTIF($B$2:B13,B13)-1 -> 
A14: MSGÁS (MS) | B14: ='Base Gráfico'!B474 ->  | F14: =_xlfn.RANK.EQ(B14,$B$2:$B$20,0)+COUNTIF($B$2:B14,B14)-1 -> 
A15: Naturgy SPS (SP) | B15: ='Base Gráfico'!B126 ->  | F15: =_xlfn.RANK.EQ(B15,$B$2:$B$20,0)+COUNTIF($B$2:B15,B15)-1 -> 
A16: PBGÁS (PB) | B16: ='Base Gráfico'!B387 ->  | F16: =_xlfn.RANK.EQ(B16,$B$2:$B$20,0)+COUNTIF($B$2:B16,B16)-1 -> 
A17: POTIGÁS (RN) | B17: ='Base Gráfico'!B416 ->  | F17: =_xlfn.RANK.EQ(B17,$B$2:$B$20,0)+COUNTIF($B$2:B17,B17)-1 -> 
A18: SCGÁS (SC) | B18: ='Base Gráfico'!B213 ->  | F18: =_xlfn.RANK.EQ(B18,$B$2:$B$20,0)+COUNTIF($B$2:B18,B18)-1 -> 
A19: SERGÁS (SE) | B19: ='Base Gráfico'!B300 ->  | F19: =_xlfn.RANK.EQ(B19,$B$2:$B$20,0)+COUNTIF($B$2:B19,B19)-1 -> 
A20: SULGÁS (RS) | B20: ='Base Gráfico'!B242 ->  | F20: =_xlfn.RANK.EQ(B20,$B$2:$B$20,0)+COUNTIF($B$2:B20,B20)-1 -> 
C24: ÍNDICE($A$2:$B$20;CORRESP(LIN(A1);$F$2:$F$20;0);1) | G24: ÍNDICE($A$2:$B$20;CORRESP(LIN(A1);$F$2:$F$20;0);2) | L24: ORDEM.EQ(B2;$B$2:$B$20;0)+CONT.SE($B$2:B2;B2)-1

Sheet Base (hidden)
A1: UF | B1: ESTADO | C1: MUNICÍPIO | D1: AGÊNCIA REGULADORA | E1: DISTRIBUIDORA | F1: SEGMENTO | G1: CONSUMO | H1: FAIXA INICIAL | I1: FAIXA FINAL | J1: VARIÁVEL | K1: FIXO | L1: OBS
A2: RJ | B2: Rio de Janeiro | C2: Angra dos Reis | D2: AGENERSA | E2: CEG RIO | F2: Residencial | G2: Mensal | H2: 0 | I2: 7 | J2: =Cálculo!$G$3 -> 7.2916
A3: RJ | B3: Rio de Janeiro | C3: Angra dos Reis | D3: AGENERSA | E3: CEG RIO | F3: Residencial | G3: Mensal | H3: 7.01 | I3: 23 | J3: =Cálculo!$G$4 -> 9.15
A4: RJ | B4: Rio de Janeiro | C4: Angra dos Reis | D4: AGENERSA | E4: CEG RIO | F4: Residencial | G4: Mensal | H4: 23.01 | I4: 83 | J4: =Cálculo!$G$5 -> 10.8525
A5: RJ | B5: Rio de Janeiro | C5: Angra dos Reis | D5: AGENERSA | E5: CEG RIO | F5: Residencial | G5: Mensal | H5: 83.01 | J5: =Cálculo!$G$6 -> 12.0522
A6: RJ | B6: Rio de Janeiro | C6: Angra dos Reis | D6: AGENERSA | E6: CEG RIO | F6: Comercial | G6: Mensal | H6: 0 | I6: 200 | J6: =Cálculo!$G$9 -> 6.2966
A7: RJ | B7: Rio de Janeiro | C7: Angra dos Reis | D7: AGENERSA | E7: CEG RIO | F7: Comercial | G7: Mensal | H7: 200.01 | I7: 500 | J7: =Cálculo!$G$10 -> 6.2278
A8: RJ | B8: Rio de Janeiro | C8: Angra dos Reis | D8: AGENERSA | E8: CEG RIO | F8: Comercial | G8: Mensal | H8: 500.01 | I8: 2000 | J8: =Cálculo!$G$11 -> 5.1668
A9: RJ | B9: Rio de Janeiro | C9: Angra dos Reis | D9: AGENERSA | E9: CEG RIO | F9: Comercial | G9: Mensal | H9: 2000.01 | I9: 20000 | J9: =Cálculo!$G$12 -> 5.0536
A10: RJ | B10: Rio de Janeiro | C10: Angra dos Reis | D10: AGENERSA | E10: CEG RIO | F10: Comercial | G10: Mensal | H10: 20000.01 | I10: 50000 | J10: =Cálculo!$G$13 -> 4.9551
A11: RJ | B11: Rio de Janeiro | C11: Angra dos Reis | D11: AGENERSA | E11: CEG RIO | F11: Comercial | G11: Mensal | H11: 50000.01 | J11: =Cálculo!$G$14 -> 4.8567
A12: RJ | B12: Rio de Janeiro | C12: Angra dos Reis | D12: AGENERSA | E12: CEG RIO | F12: Industrial | G12: Mensal | H12: 0 | I12: 200 | J12: =Cálculo!$G$17 -> 5.1244
A13: RJ | B13: Rio de Janeiro | C13: Angra dos Reis | D13: AGENERSA | E13: CEG RIO | F13: Industrial | G13: Mensal | H13: 200.01 | I13: 2000 | J13: =Cálculo!$G$18 -> 2.9884
A14: RJ | B14: Rio de Janeiro | C14: Angra dos Reis | D14: AGENERSA | E14: CEG RIO | F14: Industrial | G14: Mensal | H14: 2000.01 | I14: 10000 | J14: =Cálculo!$G$19 -> 4.9068
A15: RJ | B15: Rio de Janeiro | C15: Angra dos Reis | D15: AGENERSA | E15: CEG RIO | F15: Industrial | G15: Mensal | H15: 10000.01 | I15: 50000 | J15: =Cálculo!$G$20 -> 4.3434
A16: RJ | B16: Rio de Janeiro | C16: Angra dos Reis | D16: AGENERSA | E16: CEG RIO | F16: Industrial | G16: Mensal | H16: 50000.01 | I16: 100000 | J16: =Cálculo!$G$21 -> 4.1002
A17: RJ | B17: Rio de Janeiro | C17: Angra dos Reis | D17: AGENERSA | E17: CEG RIO | F17: Industrial | G17: Mensal | H17: 100000.01 | I17: 300000 | J17: =Cálculo!$G$22 -> 3.8394
A18: RJ | B18: Rio de Janeiro | C18: Angra dos Reis | D18: AGENERSA | E18: CEG RIO | F18: Industrial | G18: Mensal | H18: 300000.01 | I18: 600000 | J18: =Cálculo!$G$23 -> 3.5312
A19: RJ | B19: Rio de Janeiro | C19: Angra dos Reis | D19: AGENERSA | E19: CEG RIO | F19: Industrial | G19: Mensal | H19: 600000.01 | I19: 1500000 | J19: =Cálculo!$G$24 -> 3.5227
A20: RJ | B20: Rio de Janeiro | C20: Angra dos Reis | D20: AGENERSA | E20: CEG RIO | F20: Industrial | G20: Mensal | H20: 1500000.01 | I20: 3000000 | J20: =Cálculo!$G$25 -> 3.4999
A21: RJ | B21: Rio de Janeiro | C21: Angra dos Reis | D21: AGENERSA | E21: CEG RIO | F21: Industrial | G21: Mensal | H21: 3000000.01 | J21: =Cálculo!$G$26 -> 3.4243
A22: RJ | B22: Rio de Janeiro | C22: Angra dos Reis | D22: AGENERSA | E22: CEG RIO | F22: GNV | G22: Faixa Única | J22: =Cálculo!$G$29 -> 3.4366
A23: RJ | B23: Rio de Janeiro | C23: Rio de Janeiro | D23: AGENERSA | E23: CEG | F23: Residencial | G23: Mensal | H23: 0 | I23: 7 | J23: =Cálculo!$G$34 -> 9.5297
A24: RJ | B24: Rio de Janeiro | C24: Rio de Janeiro | D24: AGENERSA | E24: CEG | F24: Residencial | G24: Mensal | H24: 7.01 | I24: 23 | J24: =Cálculo!$G$35 -> 12.309
A25: RJ | B25: Rio de Janeiro | C25: Rio de Janeiro | D25: AGENERSA | E25: CEG | F25: Residencial | G25: Mensal | H25: 23.01 | I25: 83 | J25: =Cálculo!$G$36 -> 14.8233
A26: RJ | B26: Rio de Janeiro | C26: Rio de Janeiro | D26: AGENERSA | E26: CEG | F26: Residencial | G26: Mensal | H26: 83.01 | J26: =Cálculo!$G$37 -> 15.6203
A27: RJ | B27: Rio de Janeiro | C27: Rio de Janeiro | D27: AGENERSA | E27: CEG | F27: Comercial | G27: Mensal | H27: 0 | I27: 200 | J27: =Cálculo!$G$40 -> 9.314
A28: RJ | B28: Rio de Janeiro | C28: Rio de Janeiro | D28: AGENERSA | E28: CEG | F28: Comercial | G28: Mensal | H28: 200.01 | I28: 500 | J28: =Cálculo!$G$41 -> 9.0566
A29: RJ | B29: Rio de Janeiro | C29: Rio de Janeiro | D29: AGENERSA | E29: CEG | F29: Comercial | G29: Mensal | H29: 500.01 | I29: 2000 | J29: =Cálculo!$G$42 -> 8.7998
A30: RJ | B30: Rio de Janeiro | C30: Rio de Janeiro | D30: AGENERSA | E30: CEG | F30: Comercial | G30: Mensal | H30: 2000.01 | I30: 20000 | J30: =Cálculo!$G$43 -> 8.5432
A31: RJ | B31: Rio de Janeiro | C31: Rio de Janeiro | D31: AGENERSA | E31: CEG | F31: Comercial | G31: Mensal | H31: 20000.01 | I31: 50000 | J31: =Cálculo!$G$44 -> 8.2861
A32: RJ | B32: Rio de Janeiro | C32: Rio de Janeiro | D32: AGENERSA | E32: CEG | F32: Comercial | G32: Mensal | H32: 50000.01 | J32: =Cálculo!$G$45 -> 8.0291
A33: RJ | B33: Rio de Janeiro | C33: Rio de Janeiro | D33: AGENERSA | E33: CEG | F33: Industrial | G33: Mensal | H33: 0 | I33: 200 | J33: =Cálculo!$G$48 -> 5.5378
A34: RJ | B34: Rio de Janeiro | C34: Rio de Janeiro | D34: AGENERSA | E34: CEG | F34: Industrial | G34: Mensal | H34: 200.01 | I34: 2000 | J34: =Cálculo!$G$49 -> 5.3861
A35: RJ | B35: Rio de Janeiro | C35: Rio de Janeiro | D35: AGENERSA | E35: CEG | F35: Industrial | G35: Mensal | H35: 2000.01 | I35: 10000 | J35: =Cálculo!$G$50 -> 5.2949
A36: RJ | B36: Rio de Janeiro | C36: Rio de Janeiro | D36: AGENERSA | E36: CEG | F36: Industrial | G36: Mensal | H36: 10000.01 | I36: 50000 | J36: =Cálculo!$G$51 -> 4.7983
A37: RJ | B37: Rio de Janeiro | C37: Rio de Janeiro | D37: AGENERSA | E37: CEG | F37: Industrial | G37: Mensal | H37: 50000.01 | I37: 100000 | J37: =Cálculo!$G$52 -> 4.5003
A38: RJ | B38: Rio de Janeiro | C38: Rio de Janeiro | D38: AGENERSA | E38: CEG | F38: Industrial | G38: Mensal | H38: 100000.01 | I38: 300000 | J38: =Cálculo!$G$53 -> 4.1827
A39: RJ | B39: Rio de Janeiro | C39: Rio de Janeiro | D39: AGENERSA | E39: CEG | F39: Industrial | G39: Mensal | H39: 300000.01 | I39: 600000 | J39: =Cálculo!$G$54 -> 3.8064
A40: RJ | B40: Rio de Janeiro | C40: Rio de Janeiro | D40: AGENERSA | E40: CEG | F40: Industrial | G40: Mensal | H40: 600000.01 | I40: 1500000 | J40: =Cálculo!$G$55 -> 3.7966
A41: RJ | B41: Rio de Janeiro | C41: Rio de Janeiro | D41: AGENERSA | E41: CEG | F41: Industrial | G41: Mensal | H41: 1500000.01 | I41: 3000000 | J41: =Cálculo!$G$56 -> 3.7691
A42: RJ | B42: Rio de Janeiro | C42: Rio de Janeiro | D42: AGENERSA | E42: CEG | F42: Industrial | G42: Mensal | H42: 3000000.01 | J42: =Cálculo!$G$57 -> 3.6759
A43: RJ | B43: Rio de Janeiro | C43: Rio de Janeiro | D43: AGENERSA | E43: CEG | F43: GNV | G43: Faixa Única | J43: =Cálculo!$G$60 -> 3.5692
A44: ES | B44: Espírito Santo | D44: ARSP | E44: ESGÁS | F44: Residencial | G44: Mensal | H44: 0 | I44: 8 | J44: =Cálculo!G158 -> 0 | K44: =Cálculo!H158 -> 52.81
A45: ES | B45: Espírito Santo | D45: ARSP | E45: ESGÁS | F45: Residencial | G45: Mensal | H45: 8.01 | I45: 16 | J45: =Cálculo!G159 -> 4.6503 | K45: =Cálculo!H159 -> 10.44
A46: ES | B46: Espírito Santo | D46: ARSP | E46: ESGÁS | F46: Residencial | G46: Mensal | H46: 16.01 | I46: 55 | J46: =Cálculo!G160 -> 4.985 | K46: =Cálculo!H160 -> 5.08
A47: ES | B47: Espírito Santo | D47: ARSP | E47: ESGÁS | F47: Residencial | G47: Mensal | H47: 55.01 | J47: =Cálculo!G161 -> 5.0835 | K47: =Cálculo!H161 -> 0
A48: ES | B48: Espírito Santo | D48: ARSP | E48: ESGÁS | F48: Comercial | G48: Mensal | H48: 0 | I48: 200 | J48: =Cálculo!G164 -> 5.3344 | K48: =Cálculo!H164 -> 92.89
A49: ES | B49: Espírito Santo | D49: ARSP | E49: ESGÁS | F49: Comercial | G49: Mensal | H49: 200.01 | I49: 1000 | J49: =Cálculo!G165 -> 5.7315 | K49: =Cálculo!H165 -> 13.48
A50: ES | B50: Espírito Santo | D50: ARSP | E50: ESGÁS | F50: Comercial | G50: Mensal | H50: 1000.01 | I50: 5000 | J50: =Cálculo!G166 -> 5.4599 | K50: =Cálculo!H166 -> 285.11
A51: ES | B51: Espírito Santo | D51: ARSP | E51: ESGÁS | F51: Comercial | G51: Mensal | H51: 5000.01 | I51: 15000 | J51: =Cálculo!G167 -> 5.3762 | K51: =Cálculo!H167 -> 703.36
A52: ES | B52: Espírito Santo | D52: ARSP | E52: ESGÁS | F52: Comercial | G52: Mensal | H52: 15000.01 | J52: =Cálculo!G168 -> 5.1046 | K52: =Cálculo!H168 -> 4777.88
A53: ES | B53: Espírito Santo | D53: ARSP | E53: ESGÁS | F53: Industrial | G53: Mensal | H53: 0 | I53: 1000 | J53: =Cálculo!G171 -> 5.9446 | K53: =Cálculo!H171 -> 112.99
A54: ES | B54: Espírito Santo | D54: ARSP | E54: ESGÁS | F54: Industrial | G54: Mensal | H54: 1000.01 | I54: 5000 | J54: =Cálculo!G172 -> 4.9076 | K54: =Cálculo!H172 -> 1150.04
A55: ES | B55: Espírito Santo | D55: ARSP | E55: ESGÁS | F55: Industrial | G55: Mensal | H55: 5000.01 | I55: 50000 | J55: =Cálculo!G173 -> 3.9834 | K55: =Cálculo!H173 -> 5770.61
A56: ES | B56: Espírito Santo | D56: ARSP | E56: ESGÁS | F56: Industrial | G56: Mensal | H56: 50000.01 | I56: 300000 | J56: =Cálculo!G174 -> 3.9162 | K56: =Cálculo!H174 -> 9128.29
A57: ES | B57: Espírito Santo | D57: ARSP | E57: ESGÁS | F57: Industrial | G57: Mensal | H57: 300000.01 | I57: 500000 | J57: =Cálculo!G175 -> 3.871 | K57: =Cálculo!H175 -> 22721.63
A58: ES | B58: Espírito Santo | D58: ARSP | E58: ESGÁS | F58: Industrial | G58: Mensal | H58: 500000.01 | I58: 1000000 | J58: =Cálculo!G176 -> 3.8259 | K58: =Cálculo!H176 -> 45261.02
A59: ES | B59: Espírito Santo | D59: ARSP | E59: ESGÁS | F59: Industrial | G59: Mensal | H59: 1000000.01 | I59: 10000000 | J59: =Cálculo!G177 -> 3.8034 | K59: =Cálculo!H177 -> 67800.4
A60: ES | B60: Espírito Santo | D60: ARSP | E60: ESGÁS | F60: Industrial | G60: Mensal | H60: 10000000.01 | J60: =Cálculo!G178 -> 3.742 | K60: =Cálculo!H178 -> 681243.52
A61: ES | B61: Espírito Santo | D61: ARSP | E61: ESGÁS | F61: GNV | G61: Faixa Única | J61: =Cálculo!G181 -> 3.677 | K61: =Cálculo!H181 -> 0
A62: MG | B62: Minas Gerais | D62: SECRETARIA DE ESTADO DE DESENVOLVIMENTO ECONÔMICO | E62: GASMIG | F62: Residencial | G62: Mensal | H62: 0 | I62: 1 | J62: =Cálculo!G187 -> 0 | K62: =Cálculo!H187 -> 30.493822
A63: MG | B63: Minas Gerais | D63: SECRETARIA DE ESTADO DE DESENVOLVIMENTO ECONÔMICO | E63: GASMIG | F63: Residencial | G63: Mensal | H63: 1.01 | I63: 7 | J63: =Cálculo!G188 -> 9.194152 | K63: =Cálculo!H188 -> 17.91009
A64: MG | B64: Minas Gerais | D64: SECRETARIA DE ESTADO DE DESENVOLVIMENTO ECONÔMICO | E64: GASMIG | F64: Residencial | G64: Mensal | H64: 7.01 | I64: 16 | J64: =Cálculo!G189 -> 8.145685 | K64: =Cálculo!H189 -> 28.189524
A65: MG | B65: Minas Gerais | D65: SECRETARIA DE ESTADO DE DESENVOLVIMENTO ECONÔMICO | E65: GASMIG | F65: Residencial | G65: Mensal | H65: 16.01 | I65: 41 | J65: =Cálculo!G190 -> 7.962989 | K65: =Cálculo!H190 -> 31.975174
A66: MG | B66: Minas Gerais | D66: SECRETARIA DE ESTADO DE DESENVOLVIMENTO ECONÔMICO | E66: GASMIG | F66: Residencial | G66: Mensal | H66: 41.01 | I66: 200 | J66: =Cálculo!G191 -> 7.490284 | K66: =Cálculo!H191 -> 49.193924
A67: MG | B67: Minas Gerais | D67: SECRETARIA DE ESTADO DE DESENVOLVIMENTO ECONÔMICO | E67: GASMIG | F67: Residencial | G67: Mensal | H67: 200.01 | J67: =Cálculo!G192 -> 7.255371 | K67: =Cálculo!H192 -> 96.203386
A68: MG | B68: Minas Gerais | D68: SECRETARIA DE ESTADO DE DESENVOLVIMENTO ECONÔMICO | E68: GASMIG | F68: Comercial | G68: Mensal | H68: 0 | I68: 50 | J68: =Cálculo!G195 -> 7.585702 | K68: =Cálculo!H195 -> 102.477784
A69: MG | B69: Minas Gerais | D69: SECRETARIA DE ESTADO DE DESENVOLVIMENTO ECONÔMICO | E69: GASMIG | F69: Comercial | G69: Mensal | H69: 50.01 | I69: 150 | J69: =Cálculo!G196 -> 7.526222 | K69: =Cálculo!H196 -> 105.390651
A70: MG | B70: Minas Gerais | D70: SECRETARIA DE ESTADO DE DESENVOLVIMENTO ECONÔMICO | E70: GASMIG | F70: Comercial | G70: Mensal | H70: 150.01 | I70: 300 | J70: =Cálculo!G197 -> 7.228324 | K70: =Cálculo!H197 -> 149.083285
A71: MG | B71: Minas Gerais | D71: SECRETARIA DE ESTADO DE DESENVOLVIMENTO ECONÔMICO | E71: GASMIG | F71: Comercial | G71: Mensal | H71: 300.01 | I71: 600 | J71: =Cálculo!G198 -> 6.673724 | K71: =Cálculo!H198 -> 316.143152
A72: MG | B72: Minas Gerais | D72: SECRETARIA DE ESTADO DE DESENVOLVIMENTO ECONÔMICO | E72: GASMIG | F72: Comercial | G72: Mensal | H72: 600.01 | I72: 1000 | J72: =Cálculo!G199 -> 6.613619 | K72: =Cálculo!H199 -> 350.264847
A73: MG | B73: Minas Gerais | D73: SECRETARIA DE ESTADO DE DESENVOLVIMENTO ECONÔMICO | E73: GASMIG | F73: Comercial | G73: Mensal | H73: 1000.01 | I73: 2000 | J73: =Cálculo!G200 -> 5.885966 | K73: =Cálculo!H200 -> 1076.28545
A74: MG | B74: Minas Gerais | D74: SECRETARIA DE ESTADO DE DESENVOLVIMENTO ECONÔMICO | E74: GASMIG | F74: Comercial | G74: Mensal | H74: 2000.01 | I74: 5000 | J74: =Cálculo!G201 -> 4.57654 | K74: =Cálculo!H201 -> 1455.460462
A75: MG | B75: Minas Gerais | D75: SECRETARIA DE ESTADO DE DESENVOLVIMENTO ECONÔMICO | E75: GASMIG | F75: Comercial | G75: Mensal | H75: 5000.01 | I75: 15000 | J75: =Cálculo!G202 -> 4.464719 | K75: =Cálculo!H202 -> 2014.174013
A76: MG | B76: Minas Gerais | D76: SECRETARIA DE ESTADO DE DESENVOLVIMENTO ECONÔMICO | E76: GASMIG | F76: Comercial | G76: Mensal | H76: 15000.01 | I76: 25000 | J76: =Cálculo!G203 -> 4.37431 | K76: =Cálculo!H203 -> 3373.04967
A77: MG | B77: Minas Gerais | D77: SECRETARIA DE ESTADO DE DESENVOLVIMENTO ECONÔMICO | E77: GASMIG | F77: Comercial | G77: Mensal | H77: 25000.01 | J77: =Cálculo!G204 -> 4.190988 | K77: =Cálculo!H204 -> 7954.220524
A78: MG | B78: Minas Gerais | D78: SECRETARIA DE ESTADO DE DESENVOLVIMENTO ECONÔMICO | E78: GASMIG | F78: Industrial | G78: Mensal | H78: 0 | I78: 12500 | J78: =Cálculo!G207 -> 5.075792
A79: MG | B79: Minas Gerais | D79: SECRETARIA DE ESTADO DE DESENVOLVIMENTO ECONÔMICO | E79: GASMIG | F79: Industrial | G79: Mensal | H79: 12500.01 | I79: 50000 | J79: =Cálculo!G208 -> 3.555872
A80: MG | B80: Minas Gerais | D80: SECRETARIA DE ESTADO DE DESENVOLVIMENTO ECONÔMICO | E80: GASMIG | F80: Industrial | G80: Mensal | H80: 50000.01 | I80: 250000 | J80: =Cálculo!G209 -> 3.433407
A81: MG | B81: Minas Gerais | D81: SECRETARIA DE ESTADO DE DESENVOLVIMENTO ECONÔMICO | E81: GASMIG | F81: Industrial | G81: Mensal | H81: 250000.01 | I81: 750000 | J81: =Cálculo!G210 -> 3.4544569
A82: MG | B82: Minas Gerais | D82: SECRETARIA DE ESTADO DE DESENVOLVIMENTO ECONÔMICO | E82: GASMIG | F82: Industrial | G82: Mensal | H82: 750000.01 | I82: 1500000 | J82: =Cálculo!G211 -> 3.424661
A83: MG | B83: Minas Gerais | D83: SECRETARIA DE ESTADO DE DESENVOLVIMENTO ECONÔMICO | E83: GASMIG | F83: Industrial | G83: Mensal | H83: 1500000.01 | I83: 3000000 | J83: =Cálculo!G212 -> 3.414499
A84: MG | B84: Minas Gerais | D84: SECRETARIA DE ESTADO DE DESENVOLVIMENTO ECONÔMICO | E84: GASMIG | F84: Industrial | G84: Mensal | H84: 3000000.01 | I84: 4500000 | J84: =Cálculo!G213 -> 3.338114
A85: MG | B85: Minas Gerais | D85: SECRETARIA DE ESTADO DE DESENVOLVIMENTO ECONÔMICO | E85: GASMIG | F85: Industrial | G85: Mensal | H85: 4500000.01 | I85: 7000000 | J85: =Cálculo!G214 -> 3.233305
A86: MG | B86: Minas Gerais | D86: SECRETARIA DE ESTADO DE DESENVOLVIMENTO ECONÔMICO | E86: GASMIG | F86: Industrial | G86: Mensal | H86: 7000000.01 | J86: =Cálculo!G215 -> 3.172824
A87: MG | B87: Minas Gerais | D87: SECRETARIA DE ESTADO DE DESENVOLVIMENTO ECONÔMICO | E87: GASMIG | F87: GNV | G87: Faixa Única | J87: =Cálculo!G218 -> 3.80845
A88: PR | B88: Paraná | D88: AGEPAR | E88: COMPAGAS | F88: Residencial | G88: Mensal | H88: 0 | I88: 0.1 | J88: =Cálculo!G932 -> 8.2523 | K88: =Cálculo!H932 -> 19,5699
A89: PR | B89: Paraná | D89: AGEPAR | E89: COMPAGAS | F89: Residencial | G89: Mensal | H89: 0.11 | I89: 0.7 | J89: =Cálculo!G933 -> 7.7248 | K89: =Cálculo!H933 -> 19,5699
A90: PR | B90: Paraná | D90: AGEPAR | E90: COMPAGAS | F90: Residencial | G90: Mensal | H90: 0.71 | I90: 1.5 | J90: =Cálculo!G934 -> 7.6296 | K90: =Cálculo!H934 -> 19,5699
A91: PR | B91: Paraná | D91: AGEPAR | E91: COMPAGAS | F91: Residencial | G91: Mensal | H91: 1.51 | I91: 2 | J91: =Cálculo!G935 -> 7.3969 | K91: =Cálculo!H935 -> 19,5699
A92: PR | B92: Paraná | D92: AGEPAR | E92: COMPAGAS | F92: Residencial | G92: Mensal | H92: 2.01 | I92: 3 | J92: =Cálculo!G936 -> 7.1758 | K92: =Cálculo!H936 -> 19,5699
A93: PR | B93: Paraná | D93: AGEPAR | E93: COMPAGAS | F93: Residencial | G93: Mensal | H93: 3.01 | I93: 6 | J93: =Cálculo!G937 -> 6.8397 | K93: =Cálculo!H937 -> 19,5699
A94: PR | B94: Paraná | D94: AGEPAR | E94: COMPAGAS | F94: Residencial | G94: Mensal | H94: 6.01 | I94: 13 | J94: =Cálculo!G938 -> 6.4532 | K94: =Cálculo!H938 -> 19,5699
A95: PR | B95: Paraná | D95: AGEPAR | E95: COMPAGAS | F95: Residencial | G95: Mensal | H95: 13.01 | J95: =Cálculo!G939 -> 5.7576 | K95: =Cálculo!H939 -> 19,5699
A96: PR | B96: Paraná | D96: AGEPAR | E96: COMPAGAS | F96: Comercial | G96: Diário | H96: 0 | I96: 10 | J96: =Cálculo!G942 -> 7.4681 | K96: =Cálculo!H942 -> 70.3729
A97: PR | B97: Paraná | D97: AGEPAR | E97: COMPAGAS | F97: Comercial | G97: Diário | H97: 10.01 | I97: 20 | J97: =Cálculo!G943 -> 7.4176 | K97: =Cálculo!H943 -> 70.3729
A98: PR | B98: Paraná | D98: AGEPAR | E98: COMPAGAS | F98: Comercial | G98: Diário | H98: 20.01 | I98: 40 | J98: =Cálculo!G944 -> 7.2906 | K98: =Cálculo!H944 -> 70.3729
A99: PR | B99: Paraná | D99: AGEPAR | E99: COMPAGAS | F99: Comercial | G99: Diário | H99: 40.01 | I99: 80 | J99: =Cálculo!G945 -> 7.0858 | K99: =Cálculo!H945 -> 70.3729
A100: PR | B100: Paraná | D100: AGEPAR | E100: COMPAGAS | F100: Comercial | G100: Diário | H100: 80.01 | I100: 160 | J100: =Cálculo!G946 -> 6.5992 | K100: =Cálculo!H946 -> 211.1045
A101: PR | B101: Paraná | D101: AGEPAR | E101: COMPAGAS | F101: Comercial | G101: Diário | H101: 160.01 | I101: 320 | J101: =Cálculo!G947 -> 5.9071 | K101: =Cálculo!H947 -> 211.1045
A102: PR | B102: Paraná | D102: AGEPAR | E102: COMPAGAS | F102: Comercial | G102: Diário | H102: 320.01 | I102: 640 | J102: =Cálculo!G948 -> 5.2965 | K102: =Cálculo!H948 -> 211.1045
A103: PR | B103: Paraná | D103: AGEPAR | E103: COMPAGAS | F103: Comercial | G103: Diário | H103: 640.01 | I103: 1280 | J103: =Cálculo!G949 -> 4.7705 | K103: =Cálculo!H949 -> 211.1045
A104: PR | B104: Paraná | D104: AGEPAR | E104: COMPAGAS | F104: Comercial | G104: Diário | H104: 1280.01 | J104: =Cálculo!G950 -> 4.4758 | K104: =Cálculo!H950 -> 211.1045
A105: PR | B105: Paraná | D105: AGEPAR | E105: COMPAGAS | F105: Industrial | G105: Diário | H105: 0 | I105: 500 | J105: =Cálculo!G953 -> 4.9271
A106: PR | B106: Paraná | D106: AGEPAR | E106: COMPAGAS | F106: Industrial | G106: Diário | H106: 500.01 | I106: 1000 | J106: =Cálculo!G954 -> 4.5879
A107: PR | B107: Paraná | D107: AGEPAR | E107: COMPAGAS | F107: Industrial | G107: Diário | H107: 1000.01 | I107: 2000 | J107: =Cálculo!G955 -> 4.5209
A108: PR | B108: Paraná | D108: AGEPAR | E108: COMPAGAS | F108: Industrial | G108: Diário | H108: 2000.01 | I108: 4000 | J108: =Cálculo!G956 -> 4.5059
A109: PR | B109: Paraná | D109: AGEPAR | E109: COMPAGAS | F109: Industrial | G109: Diário | H109: 4000.01 | I109: 8000 | J109: =Cálculo!G957 -> 4.4621
A110: PR | B110: Paraná | D110: AGEPAR | E110: COMPAGAS | F110: Industrial | G110: Diário | H110: 8000.01 | I110: 16000 | J110: =Cálculo!G958 -> 4.4471
A111: PR | B111: Paraná | D111: AGEPAR | E111: COMPAGAS | F111: Industrial | G111: Diário | H111: 16000.01 | I111: 32000 | J111: =Cálculo!G959 -> 4.4233
A112: PR | B112: Paraná | D112: AGEPAR | E112: COMPAGAS | F112: Industrial | G112: Diário | H112: 32000.01 | I112: 64000 | J112: =Cálculo!G960 -> 4.4061
A113: PR | B113: Paraná | D113: AGEPAR | E113: COMPAGAS | F113: Industrial | G113: Diário | H113: 64000.01 | J113: =Cálculo!G961 -> 3.5485
A114: PR | B114: Paraná | D114: AGEPAR | E114: COMPAGAS | F114: GNV | G114: Faixa Única | J114: =Cálculo!G964 -> 4.1024
A115: SC | B115: Santa Catarina | D115: ARESC | E115: SCGÁS | F115: Residencial | G115: Faixa Única | J115: =Cálculo!G251 -> 7.1505
A116: SC | B116: Santa Catarina | D116: ARESC | E116: SCGÁS | F116: Comercial | G116: Mensal | H116: 0 | I116: 150 | J116: =Cálculo!G254 -> 8.6442 | L116: ICMS 17%
A117: SC | B117: Santa Catarina | D117: ARESC | E117: SCGÁS | F117: Comercial | G117: Mensal | H117: 150.01 | I117: 300 | J117: =Cálculo!G255 -> 6.4224 | L117: ICMS 17%
A118: SC | B118: Santa Catarina | D118: ARESC | E118: SCGÁS | F118: Comercial | G118: Mensal | H118: 300.01 | I118: 2100 | J118: =Cálculo!G256 -> 6.2445 | L118: ICMS 17%
A119: SC | B119: Santa Catarina | D119: ARESC | E119: SCGÁS | F119: Comercial | G119: Mensal | H119: 2100.01 | J119: =Cálculo!G257 -> 4.3943 | L119: ICMS 17%
A120: SC | B120: Santa Catarina | D120: ARESC | E120: SCGÁS | F120: Industrial | G120: Diário | H120: 0 | I120: 5 | J120: =Cálculo!G268 -> 8.2404 | L120: Amarela TG1
A121: SC | B121: Santa Catarina | D121: ARESC | E121: SCGÁS | F121: Industrial | G121: Diário | H121: 5.01 | I121: 10 | J121: =Cálculo!G269 -> 6.0882 | L121: Amarela TG1
A122: SC | B122: Santa Catarina | D122: ARESC | E122: SCGÁS | F122: Industrial | G122: Diário | H122: 10.01 | I122: 70 | J122: =Cálculo!G270 -> 5.9142 | L122: Amarela TG1
A123: SC | B123: Santa Catarina | D123: ARESC | E123: SCGÁS | F123: Industrial | G123: Diário | H123: 70.01 | I123: 1000 | J123: =Cálculo!G271 -> 3.9309 | L123: Amarela TG1
A124: SC | B124: Santa Catarina | D124: ARESC | E124: SCGÁS | F124: Industrial | G124: Diário | H124: 1000.01 | I124: 5000 | J124: =Cálculo!G272 -> 3.809 | L124: Amarela TG1
A125: SC | B125: Santa Catarina | D125: ARESC | E125: SCGÁS | F125: Industrial | G125: Diário | H125: 5000.01 | I125: 10000 | J125: =Cálculo!G273 -> 3.6759 | L125: Amarela TG1
A126: SC | B126: Santa Catarina | D126: ARESC | E126: SCGÁS | F126: Industrial | G126: Diário | H126: 10000.01 | I126: 25000 | J126: =Cálculo!G274 -> 3.5867 | L126: Amarela TG1
A127: SC | B127: Santa Catarina | D127: ARESC | E127: SCGÁS | F127: Industrial | G127: Diário | H127: 25000.01 | I127: 50000 | J127: =Cálculo!G275 -> 3.524 | L127: Amarela TG1
A128: SC | B128: Santa Catarina | D128: ARESC | E128: SCGÁS | F128: Industrial | G128: Diário | H128: 50000.01 | I128: 100000 | J128: =Cálculo!G276 -> 3.4573 | L128: Amarela TG1
A129: SC | B129: Santa Catarina | D129: ARESC | E129: SCGÁS | F129: Industrial | G129: Diário | H129: 100000.01 | I129: 150000 | J129: =Cálculo!G277 -> 3.2703 | L129: Amarela TG1
A130: SC | B130: Santa Catarina | D130: ARESC | E130: SCGÁS | F130: Industrial | G130: Diário | H130: 150000.01 | I130: 200000 | J130: =Cálculo!G278 -> 3.2472 | L130: Amarela TG1
A131: SC | B131: Santa Catarina | D131: ARESC | E131: SCGÁS | F131: Industrial | G131: Diário | H131: 200000.01 | J131: =Cálculo!G279 -> 3.2283 | L131: Amarela TG1
A132: SC | B132: Santa Catarina | D132: ARESC | E132: SCGÁS | F132: GNV | G132: Faixa Única | J132: =Cálculo!G314 -> 3.4814
A133: RS | B133: Rio Grande do Sul | D133: AGERGS | E133: SULGÁS | F133: Residencial | G133: Mensal | H133: 0 | I133: 300 | J133: =Cálculo!G320 -> 7.1623 | K133: =Cálculo!H320 -> 0
A134: RS | B134: Rio Grande do Sul | D134: AGERGS | E134: SULGÁS | F134: Residencial | G134: Mensal | H134: 300.01 | I134: 1500 | J134: =Cálculo!G321 -> 6.0361 | K134: =Cálculo!H321 -> 337.85
A135: RS | B135: Rio Grande do Sul | D135: AGERGS | E135: SULGÁS | F135: Residencial | G135: Mensal | H135: 1500.01 | J135: =Cálculo!G322 -> 5.4263 | K135: =Cálculo!H322 -> 1252.57
A136: RS | B136: Rio Grande do Sul | D136: AGERGS | E136: SULGÁS | F136: Comercial | G136: Mensal | H136: 0 | I136: 200 | J136: =Cálculo!G325 -> 5.9738 | K136: =Cálculo!H325 -> 106.72
A137: RS | B137: Rio Grande do Sul | D137: AGERGS | E137: SULGÁS | F137: Comercial | G137: Mensal | H137: 200.01 | I137: 1500 | J137: =Cálculo!G326 -> 5.8258 | K137: =Cálculo!H326 -> 136.33
A138: RS | B138: Rio Grande do Sul | D138: AGERGS | E138: SULGÁS | F138: Comercial | G138: Mensal | H138: 1500.01 | I138: 10000 | J138: =Cálculo!G327 -> 5.7349 | K138: =Cálculo!H327 -> 272.59
A139: RS | B139: Rio Grande do Sul | D139: AGERGS | E139: SULGÁS | F139: Comercial | G139: Mensal | H139: 10000.01 | J139: =Cálculo!G328 -> 4.6234 | K139: =Cálculo!H328 -> 11387.89
A140: RS | B140: Rio Grande do Sul | D140: AGERGS | E140: SULGÁS | F140: Industrial | G140: Diário | H140: 0 | I140: 500 | J140: =Cálculo!L331 -> 3.8011 | L140: s/ tributos
A141: RS | B141: Rio Grande do Sul | D141: AGERGS | E141: SULGÁS | F141: Industrial | G141: Diário | H141: 500.01 | I141: 1000 | J141: =Cálculo!L332 -> 3.2932 | L141: s/ tributos
A142: RS | B142: Rio Grande do Sul | D142: AGERGS | E142: SULGÁS | F142: Industrial | G142: Diário | H142: 1000.01 | I142: 5000 | J142: =Cálculo!L333 -> 3.223 | L142: s/ tributos
A143: RS | B143: Rio Grande do Sul | D143: AGERGS | E143: SULGÁS | F143: Industrial | G143: Diário | H143: 5000.01 | I143: 10000 | J143: =Cálculo!L334 -> 3.1081 | L143: s/ tributos
A144: RS | B144: Rio Grande do Sul | D144: AGERGS | E144: SULGÁS | F144: Industrial | G144: Diário | H144: 10000.01 | I144: 15000 | J144: =Cálculo!L335 -> 3.097 | L144: s/ tributos
A145: RS | B145: Rio Grande do Sul | D145: AGERGS | E145: SULGÁS | F145: Industrial | G145: Diário | H145: 15000.01 | I145: 25000 | J145: =Cálculo!L336 -> 3.0208 | L145: s/ tributos
A146: RS | B146: Rio Grande do Sul | D146: AGERGS | E146: SULGÁS | F146: Industrial | G146: Diário | H146: 25000.01 | I146: 50000 | J146: =Cálculo!L337 -> 2.9657 | L146: s/ tributos
A147: RS | B147: Rio Grande do Sul | D147: AGERGS | E147: SULGÁS | F147: Industrial | G147: Diário | H147: 50000.01 | I147: 100000 | J147: =Cálculo!L338 -> 2.8875 | L147: s/ tributos
A148: RS | B148: Rio Grande do Sul | D148: AGERGS | E148: SULGÁS | F148: Industrial | G148: Diário | H148: 100000.01 | I148: 200000 | J148: =Cálculo!L339 -> 2.7683 | L148: s/ tributos
A149: RS | B149: Rio Grande do Sul | D149: AGERGS | E149: SULGÁS | F149: Industrial | G149: Diário | H149: 200000.01 | I149: 300000 | J149: =Cálculo!L340 -> 2.7515 | L149: s/ tributos
A150: RS | B150: Rio Grande do Sul | D150: AGERGS | E150: SULGÁS | F150: Industrial | G150: Diário | H150: 300000.01 | I150: 400000 | J150: =Cálculo!L341 -> 2.7287 | L150: s/ tributos
A151: RS | B151: Rio Grande do Sul | D151: AGERGS | E151: SULGÁS | F151: Industrial | G151: Diário | H151: 400000.01 | I151: 500000 | J151: =Cálculo!L342 -> 2.7182 | L151: s/ tributos
A152: RS | B152: Rio Grande do Sul | D152: AGERGS | E152: SULGÁS | F152: GNV | G152: Faixa Única | J152: =Cálculo!L345 -> 0 | L152: s/ tributos
A153: BA | B153: Bahia | D153: AGERBA | E153: BAHIAGÁS | F153: Residencial | G153: Mensal | H153: 0 | I153: 20 | J153: =Cálculo!G351 -> 5.6555 | K153: =Cálculo!H351 -> 8.53
A154: BA | B154: Bahia | D154: AGERBA | E154: BAHIAGÁS | F154: Residencial | G154: Mensal | H154: 20.01 | I154: 100 | J154: =Cálculo!G352 -> 5.0649 | K154: =Cálculo!H352 -> 8.53
A155: BA | B155: Bahia | D155: AGERBA | E155: BAHIAGÁS | F155: Residencial | G155: Mensal | H155: 100.01 | I155: 850 | J155: =Cálculo!G353 -> 4.8049 | K155: =Cálculo!H353 -> 8.53
A156: BA | B156: Bahia | D156: AGERBA | E156: BAHIAGÁS | F156: Residencial | G156: Mensal | H156: 850.01 | I156: 2500 | J156: =Cálculo!G354 -> 4.6915 | K156: =Cálculo!H354 -> 8.53
A157: BA | B157: Bahia | D157: AGERBA | E157: BAHIAGÁS | F157: Residencial | G157: Mensal | H157: 2500.01 | J157: =Cálculo!G355 -> 4.6084 | K157: =Cálculo!H355 -> 8.53
A158: BA | B158: Bahia | D158: AGERBA | E158: BAHIAGÁS | F158: Comercial | G158: Mensal | H158: 0 | I158: 450 | J158: =Cálculo!G358 -> 5.8578
A159: BA | B159: Bahia | D159: AGERBA | E159: BAHIAGÁS | F159: Comercial | G159: Mensal | H159: 450.01 | I159: 1500 | J159: =Cálculo!G359 -> 3.6758
A160: BA | B160: Bahia | D160: AGERBA | E160: BAHIAGÁS | F160: Comercial | G160: Mensal | H160: 1500.01 | I160: 4500 | J160: =Cálculo!G360 -> 3.4912
A161: BA | B161: Bahia | D161: AGERBA | E161: BAHIAGÁS | F161: Comercial | G161: Mensal | H161: 4500.01 | I161: 15000 | J161: =Cálculo!G361 -> 3.3396
A162: BA | B162: Bahia | D162: AGERBA | E162: BAHIAGÁS | F162: Comercial | G162: Mensal | H162: 15000.01 | I162: 30000 | J162: =Cálculo!G362 -> 3.3353
A163: BA | B163: Bahia | D163: AGERBA | E163: BAHIAGÁS | F163: Comercial | G163: Mensal | H163: 30000.01 | I163: 180000 | J163: =Cálculo!G363 -> 3.2617
A164: BA | B164: Bahia | D164: AGERBA | E164: BAHIAGÁS | F164: Comercial | G164: Mensal | H164: 180000.01 | I164: 360000 | J164: =Cálculo!G364 -> 3.2125
A165: BA | B165: Bahia | D165: AGERBA | E165: BAHIAGÁS | F165: Comercial | G165: Mensal | H165: 360000.01 | I165: 600000 | J165: =Cálculo!G365 -> 3.1404
A166: BA | B166: Bahia | D166: AGERBA | E166: BAHIAGÁS | F166: Comercial | G166: Mensal | H166: 600000.01 | I166: 1050000 | J166: =Cálculo!G366 -> 3.0912
A167: BA | B167: Bahia | D167: AGERBA | E167: BAHIAGÁS | F167: Comercial | G167: Mensal | H167: 1050000.01 | I167: 1800000 | J167: =Cálculo!G367 -> 3.0476
A168: BA | B168: Bahia | D168: AGERBA | E168: BAHIAGÁS | F168: Comercial | G168: Mensal | H168: 1800000.01 | I168: 30000000 | J168: =Cálculo!G368 -> 3.0149
A169: BA | B169: Bahia | D169: AGERBA | E169: BAHIAGÁS | F169: Comercial | G169: Mensal | H169: 30000000.01 | J169: =Cálculo!G369 -> 2.9311
A170: BA | B170: Bahia | D170: AGERBA | E170: BAHIAGÁS | F170: Industrial | G170: Diário | H170: 0 | I170: 15 | J170: =Cálculo!G372 -> 5.3129
A171: BA | B171: Bahia | D171: AGERBA | E171: BAHIAGÁS | F171: Industrial | G171: Diário | H171: 15.01 | I171: 50 | J171: =Cálculo!G373 -> 3.4853
A172: BA | B172: Bahia | D172: AGERBA | E172: BAHIAGÁS | F172: Industrial | G172: Diário | H172: 50.01 | I172: 150 | J172: =Cálculo!G374 -> 3.3308
A173: BA | B173: Bahia | D173: AGERBA | E173: BAHIAGÁS | F173: Industrial | G173: Diário | H173: 150.01 | I173: 500 | J173: =Cálculo!G375 -> 3.2539
A174: BA | B174: Bahia | D174: AGERBA | E174: BAHIAGÁS | F174: Industrial | G174: Diário | H174: 500.01 | I174: 1000 | J174: =Cálculo!G376 -> 3.2009
A175: BA | B175: Bahia | D175: AGERBA | E175: BAHIAGÁS | F175: Industrial | G175: Diário | H175: 1000.01 | I175: 6000 | J175: =Cálculo!G377 -> 3.1391
A176: BA | B176: Bahia | D176: AGERBA | E176: BAHIAGÁS | F176: Industrial | G176: Diário | H176: 6000.01 | I176: 12000 | J176: =Cálculo!G378 -> 3.1074
A177: BA | B177: Bahia | D177: AGERBA | E177: BAHIAGÁS | F177: Industrial | G177: Diário | H177: 12000.01 | I177: 20000 | J177: =Cálculo!G379 -> 3.0491
A178: BA | B178: Bahia | D178: AGERBA | E178: BAHIAGÁS | F178: Industrial | G178: Diário | H178: 20000.01 | I178: 35000 | J178: =Cálculo!G380 -> 3.0189
A179: BA | B179: Bahia | D179: AGERBA | E179: BAHIAGÁS | F179: Industrial | G179: Diário | H179: 35000.01 | I179: 60000 | J179: =Cálculo!G381 -> 2.9848
A180: BA | B180: Bahia | D180: AGERBA | E180: BAHIAGÁS | F180: Industrial | G180: Diário | H180: 60000.01 | I180: 400000 | J180: =Cálculo!G382 -> 2.933
A181: BA | B181: Bahia | D181: AGERBA | E181: BAHIAGÁS | F181: Industrial | G181: Diário | H181: 400000.01 | I181: 700000 | J181: =Cálculo!G383 -> 2.9038
A182: BA | B182: Bahia | D182: AGERBA | E182: BAHIAGÁS | F182: Industrial | G182: Diário | H182: 700000.01 | I182: 1000000 | J182: =Cálculo!G384 -> 2.8802
A183: BA | B183: Bahia | D183: AGERBA | E183: BAHIAGÁS | F183: Industrial | G183: Diário | H183: 1000000.01 | J183: =Cálculo!G385 -> 2.8621
A184: BA | B184: Bahia | D184: AGERBA | E184: BAHIAGÁS | F184: GNV | G184: Faixa Única | J184: =Cálculo!G388 -> 2.9311
A185: SE | B185: Sergipe | D185: AGRESE | E185: SERGÁS | F185: Residencial | G185: Faixa Única | J185: =Cálculo!G394 -> 6.3323
A186: SE | B186: Sergipe | D186: AGRESE | E186: SERGÁS | F186: Comercial | G186: Semanal | H186: 0 | I186: 140 | J186: =Cálculo!G397 -> 5.084
A187: SE | B187: Sergipe | D187: AGRESE | E187: SERGÁS | F187: Comercial | G187: Semanal | H187: 140.01 | I187: 350 | J187: =Cálculo!G398 -> 5.0672
A188: SE | B188: Sergipe | D188: AGRESE | E188: SERGÁS | F188: Comercial | G188: Semanal | H188: 350.01 | I188: 700 | J188: =Cálculo!G399 -> 4.9725
A189: SE | B189: Sergipe | D189: AGRESE | E189: SERGÁS | F189: Comercial | G189: Semanal | H189: 750.01 | I189: 2100 | J189: =Cálculo!G400 -> 4.9149
A190: SE | B190: Sergipe | D190: AGRESE | E190: SERGÁS | F190: Comercial | G190: Semanal | H190: 2100.01 | I190: 999999 | J190: =Cálculo!G401 -> 4.6686
A191: SE | B191: Sergipe | D191: AGRESE | E191: SERGÁS | F191: Industrial | G191: Semanal | H191: 0 | I191: 70 | J191: =Cálculo!G404 -> 4.8905
A192: SE | B192: Sergipe | D192: AGRESE | E192: SERGÁS | F192: Industrial | G192: Semanal | H192: 70.01 | I192: 4500 | J192: =Cálculo!G405 -> 4.3144
A193: SE | B193: Sergipe | D193: AGRESE | E193: SERGÁS | F193: Industrial | G193: Semanal | H193: 4500.01 | I193: 9000 | J193: =Cálculo!G406 -> 4.2284
A194: SE | B194: Sergipe | D194: AGRESE | E194: SERGÁS | F194: Industrial | G194: Semanal | H194: 9000.01 | I194: 18000 | J194: =Cálculo!G407 -> 4.1223
A195: SE | B195: Sergipe | D195: AGRESE | E195: SERGÁS | F195: Industrial | G195: Semanal | H195: 18000.01 | I195: 36000 | J195: =Cálculo!G408 -> 4.0405
A196: SE | B196: Sergipe | D196: AGRESE | E196: SERGÁS | F196: Industrial | G196: Semanal | H196: 36000.01 | I196: 72000 | J196: =Cálculo!G409 -> 3.998
A197: SE | B197: Sergipe | D197: AGRESE | E197: SERGÁS | F197: Industrial | G197: Semanal | H197: 72000.01 | I197: 144000 | J197: =Cálculo!G410 -> 3.9524
A198: SE | B198: Sergipe | D198: AGRESE | E198: SERGÁS | F198: Industrial | G198: Semanal | H198: 144000.01 | I198: 288000 | J198: =Cálculo!G411 -> 3.8313
A199: SE | B199: Sergipe | D199: AGRESE | E199: SERGÁS | F199: Industrial | G199: Semanal | H199: 288000.01 | I199: 576000 | J199: =Cálculo!G412 -> 3.7169
A200: SE | B200: Sergipe | D200: AGRESE | E200: SERGÁS | F200: Industrial | G200: Semanal | H200: 576000.01 | I200: 1152000 | J200: =Cálculo!G413 -> 3.5517
... 6007 more rows

Sheet Planilha2 (hidden)
A1: CEG
A2: ESGÁS
A3: GASMIG
A4: SCGÁS
A5: SULGÁS
A6: BAHIAGÁS
A7: SERGÁS
A8: ALGÁS
A9: COPERGÁS
A10: PBGÁS
A11: POTIGÁS
A12: CEGÁS
A13: MSGÁS
A14: CEG RIO
A15: COMGÁS
A16: Naturgy SPS
A17: GÁS BRASILIANO

Sheet Inputs (hidden)
A1: UF | B1: Estado | C1: Município | D1: Distribuidora | E1: Agência Reguladora | F1: UF | G1: Estado | H1: Segmento | I1: RJ | J1: SP | K1: Distribuidoras
A2: AC | B2: Acre | D2: - | F2: AC | G2: Acre | H2: Residencial | I2: Rio de Janeiro | J2: São Paulo | K2: CEG
A3: AL | B3: Alagoas | D3: Algás | E3: ARSAL | F3: AL | G3: Alagoas | H3: Comercial | I3: Angra dos Reis | J3: Aguaí | K3: ESGÁS
A4: AP | B4: Amapá | D4: Gasap | E4: ARSAP | F4: AM | G4: Amapá | H4: Industrial | I4: Araruama | J4: Águas da Prata | K4: GASMIG
A5: AM | B5: Amazonas | D5: Cigás | E5: ARSEPAM | F5: BA | G5: Amazonas | H5: GNV | I5: Arraial do Cabo | J5: Águas de Lindóia | K5: SCGÁS
A6: BA | B6: Bahia | D6: Bahiagás | E6: AGERBA | F6: CE | G6: Bahia | I6: Barra do Piraí | J6: Águas de São Pedro | K6: SULGÁS
A7: CE | B7: Ceará | D7: Cegás | E7: ARCE | F7: ES | G7: Ceará | I7: Barra Mansa | J7: Agudos | K7: BAHIAGÁS
A8: DF | B8: Distrito Federal | D8: Cebgás | E8: ADASA | F8: MS | G8: Distrito Federal | I8: Belford Roxo | J8: Alumínio | K8: SERGÁS
A9: ES | B9: Espírito Santo | D9: ESGás | E9: ARSP | F9: MG | G9: Espírito Santo | I9: Cabo Frio | J9: Americana | K9: ALGÁS
A10: GO | B10: Goiás | D10: Goiasgás | E10: AGR | F10: PB | G10: Goiás | I10: Cachoeira de Macacu | J10: Amparo | K10: COPERGÁS
A11: MA | B11: Maranhão | D11: Gasmar | E11: MOB | F11: PR | G11: Maranhão | I11: Campos dos Goytacazes | J11: Analândia | K11: PBGÁS
A12: MT | B12: Mato Grosso | D12: MTGás | E12: AGER | F12: PE | G12: Mato Grosso | I12: Carapebus | J12: Aparecida | K12: POTIGÁS
A13: MS | B13: Mato Grosso do Sul | D13: MSGás | E13: AGEMS | F13: RJ | G13: Mato Grosso do Sul | I13: Casimiro de Abreu | J13: Araçariguama | K13: CEGÁS
A14: MG | B14: Minas Gerais | D14: Gasmig | E14: SECRETARIA DE ESTADO DE DESENVOLVIMENTO ECONÔMICO | F14: RN | G14: Minas Gerais | I14: Duque de Caxias | J14: Araçatuba | K14: MSGÁS
A15: PA | B15: Pará | D15: Gás do Pará | E15: ARCON | F15: RS | G15: Pará | I15: Engenheiro Paulo de Frontin | J15: Arapeí | K15: CEG RIO
A16: PB | B16: Paraíba | D16: PBGás | E16: ARPB | F16: RR | G16: Paraíba | I16: Guapimirim | J16: Araraquara | K16: COMGÁS
A17: PR | B17: Paraná | D17: Compagas | E17: AGEPAR | F17: SC | G17: Paraná | I17: Iguaba Grande | J17: Araras | K17: Naturgy SPS
A18: PE | B18: Pernambuco | D18: Copergás | E18: ARPE | F18: SE | G18: Pernambuco | I18: Itaboraí | J18: Areias | K18: GÁS BRASILIANO
A19: PI | B19: Piauí | D19: Gaspisa | F19: SP | G19: Piauí | I19: Itaguaí | J19: Artur Nogueira | K19: CIGÁS
A20: RN | B20: Rio Grande do Norte | D20: Potigás | E20: ARSEP | F20: TO | G20: Rio de Janeiro | I20: Itaipava | J20: Arujá | K20: COMPAGAS
A21: RS | B21: Rio Grande do Sul | D21: Sulgás | E21: AGERGS | G21: Rio Grande do Norte | I21: Itaperuna | J21: Atibaia
A22: RO | B22: Rondônia | D22: Rongás | G22: Rio Grande do Sul | I22: Itatiaia | J22: Bananal
A23: RR | B23: Roraima | D23: - | G23: Rondônia | I23: Japeri | J23: Barueri
A24: SC | B24: Santa Catarina | D24: SCGás | E24: ARESC | G24: Roraima | I24: Macaé | J24: Bauru
A25: SE | B25: Sergipe | D25: Sergas | E25: AGRESE | G25: Santa Catarina | I25: Magé | J25: Bertioga
A26: TO | B26: Tocantins | D26: - | G26: São Paulo | I26: Mangaratiba | J26: Biritiba Mirim
A27: RJ | B27: Rio de Janeiro | C27: Rio de Janeiro | D27: Naturgy - CEG | E27: AGENERSA | G27: Sergipe | I27: Maricá | J27: Boituva
A28: RJ | B28: Rio de Janeiro | C28: Angra dos Reis | D28: Naturgy - CEG Rio | E28: AGENERSA | G28: Tocantins | I28: Mesquita | J28: Bom Jesus dos Perdões
A29: RJ | B29: Rio de Janeiro | C29: Araruama | D29: Naturgy - CEG Rio | E29: AGENERSA | I29: Nilópolis | J29: Botucatu
A30: RJ | B30: Rio de Janeiro | C30: Arraial do Cabo | D30: Naturgy - CEG Rio | E30: AGENERSA | I30: Niterói | J30: Bragança Paulista
A31: RJ | B31: Rio de Janeiro | C31: Barra do Piraí | D31: Naturgy - CEG Rio | E31: AGENERSA | I31: Nova Friburgo | J31: Brotas
A32: RJ | B32: Rio de Janeiro | C32: Barra Mansa | D32: Naturgy - CEG Rio | E32: AGENERSA | I32: Nova Iguaçu | J32: Cabreúva
A33: RJ | B33: Rio de Janeiro | C33: Belford Roxo | D33: Naturgy - CEG | E33: AGENERSA | I33: Paracambi | J33: Caçapava
A34: RJ | B34: Rio de Janeiro | C34: Cabo Frio | D34: Naturgy - CEG Rio | E34: AGENERSA | I34: Paraíba do Sul | J34: Cachoeira Paulista
A35: RJ | B35: Rio de Janeiro | C35: Cachoeira de Macacu | D35: Naturgy - CEG Rio | E35: AGENERSA | I35: Paty do Alferes | J35: Caconde
A36: RJ | B36: Rio de Janeiro | C36: Campos dos Goytacazes | D36: Naturgy - CEG Rio | E36: AGENERSA | I36: Petrópolis | J36: Caieiras
A37: RJ | B37: Rio de Janeiro | C37: Carapebus | D37: Naturgy - CEG Rio | E37: AGENERSA | I37: Piraí | J37: Cajamar
A38: RJ | B38: Rio de Janeiro | C38: Casimiro de Abreu | D38: Naturgy - CEG Rio | E38: AGENERSA | I38: Porto Real | J38: Campinas
A39: RJ | B39: Rio de Janeiro | C39: Duque de Caxias | D39: Naturgy - CEG | E39: AGENERSA | I39: Queimados | J39: Campo Limpo Paulista
A40: RJ | B40: Rio de Janeiro | C40: Engenheiro Paulo de Frontin | D40: Naturgy - CEG Rio | E40: AGENERSA | I40: Quissamã | J40: Campos do Jordão
A41: RJ | B41: Rio de Janeiro | C41: Guapimirim | D41: Naturgy - CEG | E41: AGENERSA | I41: Resende | J41: Canas
A42: RJ | B42: Rio de Janeiro | C42: Iguaba Grande | D42: Naturgy - CEG Rio | E42: AGENERSA | I42: Rio Bonito | J42: Capivarí
A43: RJ | B43: Rio de Janeiro | C43: Itaboraí | D43: Naturgy - CEG | E43: AGENERSA | I43: Rio das Flores | J43: Caraguatatuba
A44: RJ | B44: Rio de Janeiro | C44: Itaguaí | D44: Naturgy - CEG | E44: AGENERSA | I44: Rio das Ostras | J44: Carapicuíba
A45: RJ | B45: Rio de Janeiro | C45: Itaipava | D45: Naturgy - CEG Rio | E45: AGENERSA | I45: Santo Antônio de Pádua | J45: Casa Branca
A46: RJ | B46: Rio de Janeiro | C46: Itaperuna | D46: Naturgy - CEG Rio | E46: AGENERSA | I46: Saquarema | J46: Catanduva
A47: RJ | B47: Rio de Janeiro | C47: Itatiaia | D47: Naturgy - CEG Rio | E47: AGENERSA | I47: Seropédica | J47: Cerquilho
A48: RJ | B48: Rio de Janeiro | C48: Japeri | D48: Naturgy - CEG | E48: AGENERSA | I48: São Gonçalo | J48: Cesário Lange
A49: RJ | B49: Rio de Janeiro | C49: Macaé | D49: Naturgy - CEG Rio | E49: AGENERSA | I49: São João de Meriti | J49: Charqueada
A50: RJ | B50: Rio de Janeiro | C50: Magé | D50: Naturgy - CEG | E50: AGENERSA | I50: São Pedro d'Aldeia | J50: Conchal
A51: RJ | B51: Rio de Janeiro | C51: Mangaratiba | D51: Naturgy - CEG | E51: AGENERSA | I51: Teresópolis | J51: Cordeirópolis
A52: RJ | B52: Rio de Janeiro | C52: Maricá | D52: Naturgy - CEG | E52: AGENERSA | I52: Três Rios | J52: Corumbataí
A53: RJ | B53: Rio de Janeiro | C53: Mesquita | D53: Naturgy - CEG | E53: AGENERSA | I53: Valença | J53: Cosmópolis
A54: RJ | B54: Rio de Janeiro | C54: Nilópolis | D54: Naturgy - CEG | E54: AGENERSA | I54: Vassouras | J54: Cotia
A55: RJ | B55: Rio de Janeiro | C55: Niterói | D55: Naturgy - CEG | E55: AGENERSA | I55: Volta Redonda | J55: Cravinhos
A56: RJ | B56: Rio de Janeiro | C56: Nova Friburgo | D56: Naturgy - CEG Rio | E56: AGENERSA | J56: Cruzeiro
A57: RJ | B57: Rio de Janeiro | C57: Nova Iguaçu | D57: Naturgy - CEG | E57: AGENERSA | J57: Cubatão
A58: RJ | B58: Rio de Janeiro | C58: Paracambi | D58: Naturgy - CEG | E58: AGENERSA | J58: Cunha
A59: RJ | B59: Rio de Janeiro | C59: Paraíba do Sul | D59: Naturgy - CEG Rio | E59: AGENERSA | J59: Descalvado
A60: RJ | B60: Rio de Janeiro | C60: Paty do Alferes | D60: Naturgy - CEG Rio | E60: AGENERSA | J60: Diadema
A61: RJ | B61: Rio de Janeiro | C61: Petrópolis | D61: Naturgy - CEG Rio | E61: AGENERSA | J61: Divinolândia
A62: RJ | B62: Rio de Janeiro | C62: Piraí | D62: Naturgy - CEG Rio | E62: AGENERSA | J62: Elias Fausto
A63: RJ | B63: Rio de Janeiro | C63: Porto Real | D63: Naturgy - CEG Rio | E63: AGENERSA | J63: Embú
A64: RJ | B64: Rio de Janeiro | C64: Queimados | D64: Naturgy - CEG | E64: AGENERSA | J64: Embú-Guaçú
A65: RJ | B65: Rio de Janeiro | C65: Quissamã | D65: Naturgy - CEG Rio | E65: AGENERSA | J65: Engenheiro Coelho
A66: RJ | B66: Rio de Janeiro | C66: Resende | D66: Naturgy - CEG Rio | E66: AGENERSA | J66: Espírito Santo do Pinhal
A67: RJ | B67: Rio de Janeiro | C67: Rio Bonito | D67: Naturgy - CEG Rio | E67: AGENERSA | J67: Estiva Gerbi
A68: RJ | B68: Rio de Janeiro | C68: Rio das Flores | D68: Naturgy - CEG Rio | E68: AGENERSA | J68: Ferraz de Vasconcelos
A69: RJ | B69: Rio de Janeiro | C69: Rio das Ostras | D69: Naturgy - CEG Rio | E69: AGENERSA | J69: Francisco Morato
A70: RJ | B70: Rio de Janeiro | C70: Santo Antônio de Pádua | D70: Naturgy - CEG Rio | E70: AGENERSA | J70: Franco da Rocha
A71: RJ | B71: Rio de Janeiro | C71: Saquarema | D71: Naturgy - CEG Rio | E71: AGENERSA | J71: Guararema
A72: RJ | B72: Rio de Janeiro | C72: Seropédica | D72: Naturgy - CEG | E72: AGENERSA | J72: Guaratinguetá
A73: RJ | B73: Rio de Janeiro | C73: São Gonçalo | D73: Naturgy - CEG | E73: AGENERSA | J73: Guarujá
A74: RJ | B74: Rio de Janeiro | C74: São João de Meriti | D74: Naturgy - CEG | E74: AGENERSA | J74: Guarulhos
A75: RJ | B75: Rio de Janeiro | C75: São Pedro d'Aldeia | D75: Naturgy - CEG Rio | E75: AGENERSA | J75: Holambra
A76: RJ | B76: Rio de Janeiro | C76: Teresópolis | D76: Naturgy - CEG Rio | E76: AGENERSA | J76: Hortolândia
A77: RJ | B77: Rio de Janeiro | C77: Três Rios | D77: Naturgy - CEG Rio | E77: AGENERSA | J77: Ibitinga
A78: RJ | B78: Rio de Janeiro | C78: Valença | D78: Naturgy - CEG Rio | E78: AGENERSA | J78: Igaraçu do Tietê
A79: RJ | B79: Rio de Janeiro | C79: Vassouras | D79: Naturgy - CEG Rio | E79: AGENERSA | J79: Igaratá
A80: RJ | B80: Rio de Janeiro | C80: Volta Redonda | D80: Naturgy - CEG Rio | E80: AGENERSA | J80: Ilha Bela
A81: SP | B81: São Paulo | C81: São Paulo | D81: Comgás | E81: ARSESP | J81: Indaiatuba
A82: SP | B82: São Paulo | C82: Alumínio | D82: Naturgy SPS | E82: ARSESP | J82: Iperó
A83: SP | B83: São Paulo | C83: Araçariguama | D83: Naturgy SPS | E83: ARSESP | J83: Ipeúna
A84: SP | B84: São Paulo | C84: Boituva | D84: Naturgy SPS | E84: ARSESP | J84: Iracemápolis
A85: SP | B85: São Paulo | C85: Botucatu | D85: Naturgy SPS | E85: ARSESP | J85: Itanhaém
A86: SP | B86: São Paulo | C86: Cerquilho | D86: Naturgy SPS | E86: ARSESP | J86: Itapecerica da Serra
A87: SP | B87: São Paulo | C87: Cesário Lange | D87: Naturgy SPS | E87: ARSESP | J87: Itapetininga
A88: SP | B88: São Paulo | C88: Iperó | D88: Naturgy SPS | E88: ARSESP | J88: Itapevi
A89: SP | B89: São Paulo | C89: Itapetininga | D89: Naturgy SPS | E89: ARSESP | J89: Itapira
A90: SP | B90: São Paulo | C90: Itu | D90: Naturgy SPS | E90: ARSESP | J90: Itápolis
A91: SP | B91: São Paulo | C91: Laranjal Paulista | D91: Naturgy SPS | E91: ARSESP | J91: Itaquaquecetuba
A92: SP | B92: São Paulo | C92: Mairinque | D92: Naturgy SPS | E92: ARSESP | J92: Itatiba
A93: SP | B93: São Paulo | C93: Porto Feliz | D93: Naturgy SPS | E93: ARSESP | J93: Itirapina
A94: SP | B94: São Paulo | C94: Salto | D94: Naturgy SPS | E94: ARSESP | J94: Itobi
A95: SP | B95: São Paulo | C95: São Roque | D95: Naturgy SPS | E95: ARSESP | J95: Itu
A96: SP | B96: São Paulo | C96: Sorocaba | D96: Naturgy SPS | E96: ARSESP | J96: Itupeva
A97: SP | B97: São Paulo | C97: Tatuí | D97: Naturgy SPS | E97: ARSESP | J97: Jacareí
A98: SP | B98: São Paulo | C98: Tietê | D98: Naturgy SPS | E98: ARSESP | J98: Jaguariúna
A99: SP | B99: São Paulo | C99: Votorantim | D99: Naturgy SPS | E99: ARSESP | J99: Jambeiro
A100: SP | B100: São Paulo | C100: Agudos | D100: Gás Brasiliano | E100: ARSESP | J100: Jandira
A101: SP | B101: São Paulo | C101: Araraquara | D101: Gás Brasiliano | E101: ARSESP | J101: Jarinu
A102: SP | B102: São Paulo | C102: Catanduva | D102: Gás Brasiliano | E102: ARSESP | J102: Joanópolis
A103: SP | B103: São Paulo | C103: Descalvado | D103: Gás Brasiliano | E103: ARSESP | J103: Jundiaí
A104: SP | B104: São Paulo | C104: Igaraçu do Tietê | D104: Gás Brasiliano | E104: ARSESP | J104: Juquitiba
A105: SP | B105: São Paulo | C105: Lençóis Paulista | D105: Gás Brasiliano | E105: ARSESP | J105: Lagoinha
A106: SP | B106: São Paulo | C106: Marília | D106: Gás Brasiliano | E106: ARSESP | J106: Laranjal Paulista
A107: SP | B107: São Paulo | C107: Pederneiras | D107: Gás Brasiliano | E107: ARSESP | J107: Lavrinhas
A108: SP | B108: São Paulo | C108: Ribeirão Preto | D108: Gás Brasiliano | E108: ARSESP | J108: Leme
A109: SP | B109: São Paulo | C109: Valparaíso | D109: Gás Brasiliano | E109: ARSESP | J109: Lençóis Paulista
A110: SP | B110: São Paulo | C110: Araçatuba | D110: Gás Brasiliano | E110: ARSESP | J110: Limeira
A111: SP | B111: São Paulo | C111: Bauru | D111: Gás Brasiliano | E111: ARSESP | J111: Lindóia
A112: SP | B112: São Paulo | C112: Cravinhos | D112: Gás Brasiliano | E112: ARSESP | J112: Lins
A113: SP | B113: São Paulo | C113: Ibitinga | D113: Gás Brasiliano | E113: ARSESP | J113: Lorena
A114: SP | B114: São Paulo | C114: Itápolis | D114: Gás Brasiliano | E114: ARSESP | J114: Louveira
A115: SP | B115: São Paulo | C115: Lins | D115: Gás Brasiliano | E115: ARSESP | J115: Mairinque
A116: SP | B116: São Paulo | C116: Matão | D116: Gás Brasiliano | E116: ARSESP | J116: Mairiporã
A117: SP | B117: São Paulo | C117: Porto Ferreira | D117: Gás Brasiliano | E117: ARSESP | J117: Marília
A118: SP | B118: São Paulo | C118: São Carlos | D118: Gás Brasiliano | E118: ARSESP | J118: Matão
A119: SP | B119: São Paulo | C119: Aguaí | D119: Comgás | E119: ARSESP | J119: Mauá
A120: SP | B120: São Paulo | C120: Águas da Prata | D120: Comgás | E120: ARSESP | J120: Mococa
A121: SP | B121: São Paulo | C121: Águas de Lindóia | D121: Comgás | E121: ARSESP | J121: Mogi das Cruzes
A122: SP | B122: São Paulo | C122: Águas de São Pedro | D122: Comgás | E122: ARSESP | J122: Mogi-Guaçu
A123: SP | B123: São Paulo | C123: Americana | D123: Comgás | E123: ARSESP | J123: Mogi-Mirim
A124: SP | B124: São Paulo | C124: Amparo | D124: Comgás | E124: ARSESP | J124: Mombuca
A125: SP | B125: São Paulo | C125: Analândia | D125: Comgás | E125: ARSESP | J125: Mongaguá
A126: SP | B126: São Paulo | C126: Aparecida | D126: Comgás | E126: ARSESP | J126: Monte Alegre do Sul
A127: SP | B127: São Paulo | C127: Arapeí | D127: Comgás | E127: ARSESP | J127: Monte Mor
A128: SP | B128: São Paulo | C128: Araras | D128: Comgás | E128: ARSESP | J128: Monteiro Lobato
A129: SP | B129: São Paulo | C129: Areias | D129: Comgás | E129: ARSESP | J129: Morungaba
A130: SP | B130: São Paulo | C130: Artur Nogueira | D130: Comgás | E130: ARSESP | J130: Natividade da Serra
A131: SP | B131: São Paulo | C131: Arujá | D131: Comgás | E131: ARSESP | J131: Nazaré Paulista
A132: SP | B132: São Paulo | C132: Atibaia | D132: Comgás | E132: ARSESP | J132: Nova Odessa
A133: SP | B133: São Paulo | C133: Bananal | D133: Comgás | E133: ARSESP | J133: Osasco
A134: SP | B134: São Paulo | C134: Barueri | D134: Comgás | E134: ARSESP | J134: Paraibuna
A135: SP | B135: São Paulo | C135: Bertioga | D135: Comgás | E135: ARSESP | J135: Paulínia
A136: SP | B136: São Paulo | C136: Biritiba Mirim | D136: Comgás | E136: ARSESP | J136: Pederneiras
A137: SP | B137: São Paulo | C137: Bom Jesus dos Perdões | D137: Comgás | E137: ARSESP | J137: Pedra Bela
A138: SP | B138: São Paulo | C138: Bragança Paulista | D138: Comgás | E138: ARSESP | J138: Pedreira
A139: SP | B139: São Paulo | C139: Brotas | D139: Comgás | E139: ARSESP | J139: Peruíbe
A140: SP | B140: São Paulo | C140: Cabreúva | D140: Comgás | E140: ARSESP | J140: Pindamonhangaba
A141: SP | B141: São Paulo | C141: Caçapava | D141: Comgás | E141: ARSESP | J141: Pinhalzinho
A142: SP | B142: São Paulo | C142: Cachoeira Paulista | D142: Comgás | E142: ARSESP | J142: Piquete
A143: SP | B143: São Paulo | C143: Caconde | D143: Comgás | E143: ARSESP | J143: Piracaia
A144: SP | B144: São Paulo | C144: Caieiras | D144: Comgás | E144: ARSESP | J144: Piracicaba
A145: SP | B145: São Paulo | C145: Cajamar | D145: Comgás | E145: ARSESP | J145: Pirapora do Bom Jesus
A146: SP | B146: São Paulo | C146: Campinas | D146: Comgás | E146: ARSESP | J146: Pirassununga
A147: SP | B147: São Paulo | C147: Campo Limpo Paulista | D147: Comgás | E147: ARSESP | J147: Poá
A148: SP | B148: São Paulo | C148: Campos do Jordão | D148: Comgás | E148: ARSESP | J148: Porto Feliz
A149: SP | B149: São Paulo | C149: Canas | D149: Comgás | E149: ARSESP | J149: Porto Ferreira
A150: SP | B150: São Paulo | C150: Capivarí | D150: Comgás | E150: ARSESP | J150: Potim
A151: SP | B151: São Paulo | C151: Caraguatatuba | D151: Comgás | E151: ARSESP | J151: Praia Grande
A152: SP | B152: São Paulo | C152: Carapicuíba | D152: Comgás | E152: ARSESP | J152: Queluz
A153: SP | B153: São Paulo | C153: Casa Branca | D153: Comgás | E153: ARSESP | J153: Rafard
A154: SP | B154: São Paulo | C154: Charqueada | D154: Comgás | E154: ARSESP | J154: Redenção da Serra
A155: SP | B155: São Paulo | C155: Conchal | D155: Comgás | E155: ARSESP | J155: Ribeirão Pires
A156: SP | B156: São Paulo | C156: Cordeirópolis | D156: Comgás | E156: ARSESP | J156: Ribeirão Preto
A157: SP | B157: São Paulo | C157: Corumbataí | D157: Comgás | E157: ARSESP | J157: Rio Claro
A158: SP | B158: São Paulo | C158: Cosmópolis | D158: Comgás | E158: ARSESP | J158: Rio das Pedras
A159: SP | B159: São Paulo | C159: Cotia | D159: Comgás | E159: ARSESP | J159: Rio Grande da Serra
A160: SP | B160: São Paulo | C160: Cruzeiro | D160: Comgás | E160: ARSESP | J160: Roseira
A161: SP | B161: São Paulo | C161: Cubatão | D161: Comgás | E161: ARSESP | J161: Salesópolis
A162: SP | B162: São Paulo | C162: Cunha | D162: Comgás | E162: ARSESP | J162: Saltinho
A163: SP | B163: São Paulo | C163: Diadema | D163: Comgás | E163: ARSESP | J163: Salto
A164: SP | B164: São Paulo | C164: Divinolândia | D164: Comgás | E164: ARSESP | J164: Santa Bárbara D'oeste
A165: SP | B165: São Paulo | C165: Elias Fausto | D165: Comgás | E165: ARSESP | J165: Santa Branca
A166: SP | B166: São Paulo | C166: Embú | D166: Comgás | E166: ARSESP | J166: Santa Cruz da Conceição
A167: SP | B167: São Paulo | C167: Embú-Guaçú | D167: Comgás | E167: ARSESP | J167: Santa Cruz das Palmeiras
A168: SP | B168: São Paulo | C168: Engenheiro Coelho | D168: Comgás | E168: ARSESP | J168: Santa Gertrudes
A169: SP | B169: São Paulo | C169: Espírito Santo do Pinhal | D169: Comgás | E169: ARSESP | J169: Santa Izabel
A170: SP | B170: São Paulo | C170: Estiva Gerbi | D170: Comgás | E170: ARSESP | J170: Santa Maria da Serra
A171: SP | B171: São Paulo | C171: Ferraz de Vasconcelos | D171: Comgás | E171: ARSESP | J171: Santana do Parnaíba
A172: SP | B172: São Paulo | C172: Francisco Morato | D172: Comgás | E172: ARSESP | J172: Santo André
A173: SP | B173: São Paulo | C173: Franco da Rocha | D173: Comgás | E173: ARSESP | J173: Santo Antonio da Posse
A174: SP | B174: São Paulo | C174: Guararema | D174: Comgás | E174: ARSESP | J174: Santo Antonio do Jardim
A175: SP | B175: São Paulo | C175: Guaratinguetá | D175: Comgás | E175: ARSESP | J175: Santo Antonio do Pinhal
A176: SP | B176: São Paulo | C176: Guarujá | D176: Comgás | E176: ARSESP | J176: Santos
A177: SP | B177: São Paulo | C177: Guarulhos | D177: Comgás | E177: ARSESP | J177: São Bento do Sapucaí
A178: SP | B178: São Paulo | C178: Holambra | D178: Comgás | E178: ARSESP | J178: São Bernardo do Campo
A179: SP | B179: São Paulo | C179: Hortolândia | D179: Comgás | E179: ARSESP | J179: São Caetano do Sul
A180: SP | B180: São Paulo | C180: Igaratá | D180: Comgás | E180: ARSESP | J180: São Carlos
A181: SP | B181: São Paulo | C181: Ilha Bela | D181: Comgás | E181: ARSESP | J181: São João da Boa Vista
A182: SP | B182: São Paulo | C182: Indaiatuba | D182: Comgás | E182: ARSESP | J182: São José do Barreiro
A183: SP | B183: São Paulo | C183: Ipeúna | D183: Comgás | E183: ARSESP | J183: São José do Rio Pardo
A184: SP | B184: São Paulo | C184: Iracemápolis | D184: Comgás | E184: ARSESP | J184: São José dos Campos
A185: SP | B185: São Paulo | C185: Itanhaém | D185: Comgás | E185: ARSESP | J185: São Lourenço da Serra
A186: SP | B186: São Paulo | C186: Itapecerica da Serra | D186: Comgás | E186: ARSESP | J186: São Luis do Paraitinga
A187: SP | B187: São Paulo | C187: Itapevi | D187: Comgás | E187: ARSESP | J187: São Pedro
A188: SP | B188: São Paulo | C188: Itapira | D188: Comgás | E188: ARSESP | J188: São Roque
A189: SP | B189: São Paulo | C189: Itaquaquecetuba | D189: Comgás | E189: ARSESP | J189: São Sebastião
A190: SP | B190: São Paulo | C190: Itatiba | D190: Comgás | E190: ARSESP | J190: São Sebastião da Grama
A191: SP | B191: São Paulo | C191: Itirapina | D191: Comgás | E191: ARSESP | J191: São Vicente
A192: SP | B192: São Paulo | C192: Itobi | D192: Comgás | E192: ARSESP | J192: Serra Negra
A193: SP | B193: São Paulo | C193: Itupeva | D193: Comgás | E193: ARSESP | J193: Silveiras
A194: SP | B194: São Paulo | C194: Jacareí | D194: Comgás | E194: ARSESP | J194: Socorro
A195: SP | B195: São Paulo | C195: Jaguariúna | D195: Comgás | E195: ARSESP | J195: Sorocaba
A196: SP | B196: São Paulo | C196: Jambeiro | D196: Comgás | E196: ARSESP | J196: Sumaré
A197: SP | B197: São Paulo | C197: Jandira | D197: Comgás | E197: ARSESP | J197: Suzano
A198: SP | B198: São Paulo | C198: Jarinu | D198: Comgás | E198: ARSESP | J198: Taboão da Serra
A199: SP | B199: São Paulo | C199: Joanópolis | D199: Comgás | E199: ARSESP | J199: Tambaú
A200: SP | B200: São Paulo | C200: Jundiaí | D200: Comgás | E200: ARSESP | J200: Tapiratiba
... 94 more rows
